ENTITY,COST_CENTRE,COST_CENTRE_DESCRIPTION,SERVICE,DIRECTORATE,SUBJECTIVE,SUBJECTIVE_DESCRIPTION,SUPPLIER_NAME,DESCRIPTION,VOUCHER_NUM,AMOUNT,PAYMENT_DATE,LINE_AMOUNT,PAID_AMOUNT
51,600001,Corporate Properties,Natural Resources and Assets,Infrastructure and Planning,21209,R&M - Gas - Reactive,Davey & Gilbert Ltd,MATERIALS,2443662 ,658.34, 15/01/2019,410.84,790.01
51,600001,Corporate Properties,Natural Resources and Assets,Infrastructure and Planning,21209,R&M - Gas - Reactive,Davey & Gilbert Ltd,LABOUR,2443662 ,658.34, 15/01/2019,247.50,790.01
51,600001,Corporate Properties,Natural Resources and Assets,Infrastructure and Planning,43532,Professional Fees - Other,Sayfa Systems UK Ltd,Sayfa: Milestone 1. 08/11/18 - Retest 2018 Completed and cleaning of PV Panels,2447173 ,"1,440.00", 17/01/2019,"1,440.00","1,728.00"
51,600001,Corporate Properties,Natural Resources and Assets,Infrastructure and Planning,43532,Professional Fees - Other,Sayfa Systems UK Ltd,VAT,2447173 ,"1,440.00", 17/01/2019,-288.00,"1,728.00"
51,600001,Corporate Properties,Natural Resources and Assets,Infrastructure and Planning,43532,Professional Fees - Other,Sayfa Systems UK Ltd,VAT,2447173 ,"1,440.00", 17/01/2019,288.00,"1,728.00"
51,600001,Corporate Properties,Natural Resources and Assets,Infrastructure and Planning,22501,Rent,Duchy Of Cornwall,Rent for Water Resources,2453239 ,"1,150.00", 24/01/2019,"1,150.00","1,150.00"
51,600001,Corporate Properties,Natural Resources and Assets,Infrastructure and Planning,31602,Air Travel,RBS Commercial Card Division,30-11-2018|6459|TRAVEL TEAM|ISLES OF SCILLY SS CO|TR21 0LJ|4411|RETURN FLIGHTS FOR VINNY LOVERIDGE - 235627|IOS_NSTINSON,2450082 ,"10,070.35", 25/01/2019,152.00,"10,375.06"
51,600001,Corporate Properties,Natural Resources and Assets,Infrastructure and Planning,31602,Air Travel,RBS Commercial Card Division,17-12-2018|6459|TRAVEL TEAM|ISLES OF SCILLY SS CO|TR21 0LJ|4411|RETURN FLIGHTS MARK HARRIS - 237186|IOS_NSTINSON,2450082 ,"10,070.35", 25/01/2019,152.00,"10,375.06"
51,600001,Corporate Properties,Natural Resources and Assets,Infrastructure and Planning,22002,Electricity,British Gas Business,601209671-973356820 CARN GWAVAL PRIMARY SCHOOL DATE 26/11/18,2453850 ,749.96, 29/01/2019,749.96,899.95
51,600001,Corporate Properties,Natural Resources and Assets,Infrastructure and Planning,22002,Electricity,British Gas Business,601209671-957418635 CARN GWAVAL PRIMARY SCHOOL DATE 14/12/18,2453843 ,771.27, 29/01/2019,771.27,925.52
51,600001,Corporate Properties,Natural Resources and Assets,Infrastructure and Planning,22002,Electricity,Edf Energy Plc,EDF PEC December 2018,2443247 ,"1,059.49", 31/01/2019,"1,059.49","1,271.38"
51,600001,Corporate Properties,Natural Resources and Assets,Infrastructure and Planning,21201,R&M - Buildings - Reactive,Polartek,Service Air Con & Heat Pumps as required,2458904 ,527.00, 05/02/2019,12.82,627.00
51,600001,Corporate Properties,Natural Resources and Assets,Infrastructure and Planning,21201,R&M - Buildings - Reactive,Polartek,Service Air Con & Heat Pumps as required,2458904 ,527.00, 05/02/2019,237.18,627.00
51,600001,Corporate Properties,Natural Resources and Assets,Infrastructure and Planning,21201,R&M - Buildings - Reactive,Polartek,Service Air Con & Heat Pumps as required,2458904 ,527.00, 05/02/2019,3.20,627.00
51,600001,Corporate Properties,Natural Resources and Assets,Infrastructure and Planning,21201,R&M - Buildings - Reactive,Polartek,Service Air Con & Heat Pumps as required,2458904 ,527.00, 05/02/2019,59.30,627.00
51,600001,Corporate Properties,Natural Resources and Assets,Infrastructure and Planning,22002,Electricity,British Gas,958423852 line436,2458225 ,459.55, 05/02/2019,459.55,551.46
51,600001,Corporate Properties,Natural Resources and Assets,Infrastructure and Planning,31601,Rail,Polartek,Service Air Con & Heat Pumps as required,2458904 ,527.00, 05/02/2019,0.36,627.00
51,600001,Corporate Properties,Natural Resources and Assets,Infrastructure and Planning,31601,Rail,Polartek,Service Air Con & Heat Pumps as required,2458904 ,527.00, 05/02/2019,6.64,627.00
51,600001,Corporate Properties,Natural Resources and Assets,Infrastructure and Planning,21201,R&M - Buildings - Reactive,Hamson Barron Smith Ltd,"Carry out building inspection of Museum, ATC Tower & Town Hall",2464069 ,"1,300.00", 07/02/2019,"1,300.00","1,560.00"
51,600001,Corporate Properties,Natural Resources and Assets,Infrastructure and Planning,22002,Electricity,British Gas,INV 710629708 LINE 153,2490687 ,634.61, 08/03/2019,634.61,761.53
51,600001,Corporate Properties,Natural Resources and Assets,Infrastructure and Planning,22002,Electricity,British Gas,INV 955437032 LINE 498,2490653 ,418.87, 08/03/2019,418.87,502.64
51,600001,Corporate Properties,Natural Resources and Assets,Infrastructure and Planning,22002,Electricity,British Gas,"BRITISH GAS, CARN GWARVAL 13TH DEC 2018 - 2ND FEB 2019",2494582 ,"2,076.25", 12/03/2019,"2,076.25","2,491.50"
51,600001,Corporate Properties,Natural Resources and Assets,Infrastructure and Planning,45105,Telephone Usage,The Phone Co-Op Ltd,Phone Coop PEC - Feb,2502948 ,540.28, 19/03/2019,540.28,648.34
51,600001,Corporate Properties,Natural Resources and Assets,Infrastructure and Planning,31602,Air Travel,RBS Commercial Card Division,15-02-2019|6459|TRAVEL TEAM|ISLES OF SCILLY SS CO|TR21 0LJ|4411|FLIGHT 245442 AMENDMENT|IOS_NSTINSON,2507927 ,"18,805.89", 22/03/2019,16.15,"19,035.00"
51,600001,Corporate Properties,Natural Resources and Assets,Infrastructure and Planning,31602,Air Travel,RBS Commercial Card Division,04-02-2019|6459|TRAVEL TEAM|ISLES OF SCILLY SS CO|TR21 0LJ|4411|FLIGHT 245892|IOS_NSTINSON,2507927 ,"18,805.89", 22/03/2019,161.50,"19,035.00"
51,600001,Corporate Properties,Natural Resources and Assets,Infrastructure and Planning,31602,Air Travel,RBS Commercial Card Division,04-02-2019|6459|TRAVEL TEAM|ISLES OF SCILLY SS CO|TR21 0LJ|4411|FLIGHT 245892|IOS_NSTINSON,2507927 ,"18,805.89", 22/03/2019,165.30,"19,035.00"
51,600001,Corporate Properties,Natural Resources and Assets,Infrastructure and Planning,31602,Air Travel,RBS Commercial Card Division,30-01-2019|6459|TRAVEL TEAM|ISLES OF SCILLY SS CO|TR21 0LJ|4411|FLIGHT 245000 - OPE|IOS_NSTINSON,2507927 ,"18,805.89", 22/03/2019,320.62,"19,035.00"
51,600001,Corporate Properties,Natural Resources and Assets,Infrastructure and Planning,31602,Air Travel,RBS Commercial Card Division,30-01-2019|6459|TRAVEL TEAM|ISLES OF SCILLY SS CO|TR21 0LJ|4411|FLIGHT 245001 - OPE|IOS_NSTINSON,2507927 ,"18,805.89", 22/03/2019,218.50,"19,035.00"
51,600001,Corporate Properties,Natural Resources and Assets,Infrastructure and Planning,31602,Air Travel,RBS Commercial Card Division,30-01-2019|6459|TRAVEL TEAM|ISLES OF SCILLY SS CO|TR21 0LJ|4411|FLIGHT 245002 - OPE|IOS_NSTINSON,2507927 ,"18,805.89", 22/03/2019,320.62,"19,035.00"
51,600001,Corporate Properties,Natural Resources and Assets,Infrastructure and Planning,31602,Air Travel,RBS Commercial Card Division,30-01-2019|6459|TRAVEL TEAM|ISLES OF SCILLY SS CO|TR21 0LJ|4411|FLIGHT 245003 - OPE|IOS_NSTINSON,2507927 ,"18,805.89", 22/03/2019,320.62,"19,035.00"
51,600001,Corporate Properties,Natural Resources and Assets,Infrastructure and Planning,31602,Air Travel,RBS Commercial Card Division,30-01-2019|6459|TRAVEL TEAM|ISLES OF SCILLY SS CO|TR21 0LJ|4411|FLIGHT 245006 - OPE|IOS_NSTINSON,2507927 ,"18,805.89", 22/03/2019,218.50,"19,035.00"
51,600001,Corporate Properties,Natural Resources and Assets,Infrastructure and Planning,31602,Air Travel,RBS Commercial Card Division,30-01-2019|6459|TRAVEL TEAM|ISLES OF SCILLY SS CO|TR21 0LJ|4411|FLIGHT 245004 - OPE|IOS_NSTINSON,2507927 ,"18,805.89", 22/03/2019,320.62,"19,035.00"
51,600001,Corporate Properties,Natural Resources and Assets,Infrastructure and Planning,31602,Air Travel,RBS Commercial Card Division,31-01-2019|6459|TRAVEL TEAM|ISLES OF SCILLY SS CO|TR21 0LJ|4411|FLIGHT 245286 OPE|IOS_NSTINSON,2507927 ,"18,805.89", 22/03/2019,320.62,"19,035.00"
51,600001,Corporate Properties,Natural Resources and Assets,Infrastructure and Planning,31602,Air Travel,RBS Commercial Card Division,31-01-2019|6459|TRAVEL TEAM|ISLES OF SCILLY SS CO|TR21 0LJ|4411|FLIGHT 245287 OPE|IOS_NSTINSON,2507927 ,"18,805.89", 22/03/2019,320.62,"19,035.00"
51,600001,Corporate Properties,Natural Resources and Assets,Infrastructure and Planning,31602,Air Travel,RBS Commercial Card Division,01-02-2019|6459|TRAVEL TEAM|ISLES OF SCILLY SS CO|TR21 0LJ|4411|FLIGHT 245442|IOS_NSTINSON,2507927 ,"18,805.89", 22/03/2019,160.55,"19,035.00"
51,600001,Corporate Properties,Natural Resources and Assets,Infrastructure and Planning,31602,Air Travel,RBS Commercial Card Division,11-02-2019|6459|TRAVEL TEAM|ISLES OF SCILLY SS CO|TR21 0LJ|4411|FLIGHT 247129|IOS_NSTINSON,2507927 ,"18,805.89", 22/03/2019,113.06,"19,035.00"
51,600001,Corporate Properties,Natural Resources and Assets,Infrastructure and Planning,22002,Electricity,British Gas,INV 968415832 Line 568,2513623 ,505.50, 27/03/2019,505.50,606.60
51,600001,Corporate Properties,Natural Resources and Assets,Infrastructure and Planning,21201,R&M - Buildings - Reactive,Dorma Uk Ltd,Engineer call out - Electric doors at Park House & Library,2501525 ,506.80, 28/03/2019,506.80,608.16
51,600002,Public Conveniences,Natural Resources and Assets,Infrastructure and Planning,22002,Electricity,Edf Energy Plc,EDF Unmetered Supply: Street Lighting; November,2433076 ,440.28, 15/01/2019,440.28,528.34
51,600002,Public Conveniences,Natural Resources and Assets,Infrastructure and Planning,73942,Repairs,St Martins Services,"St Martin's Works to public toilet: Water connection, Replacement of DAB submersible pump in underground tank pump and labour, and alterations to plumbing and fitting taps",2506248 ,"3,100.00", 28/03/2019,"3,100.00","3,720.00"
51,600002,Public Conveniences,Natural Resources and Assets,Infrastructure and Planning,73942,Repairs,St Martins Services,"St Martin's Works to public toilet:
Water connection, Replacement of DAB submersible pump in underground tank pump and labour, and alterations to plumbing and fitting taps",2506248 ,"3,100.00", 28/03/2019,"-3,100.00","3,720.00"
51,600002,Public Conveniences,Natural Resources and Assets,Infrastructure and Planning,73942,Repairs,St Martins Services,"St Martin's Works to public toilet:
Water connection, Replacement of DAB submersible pump in underground tank pump and labour, and alterations to plumbing and fitting taps",2506248 ,"3,100.00", 28/03/2019,"3,100.00","3,720.00"
51,600003,Commercial Property,Natural Resources and Assets,Infrastructure and Planning,21201,R&M - Buildings - Reactive,Polartek,Service Air Con & Heat Pumps as required,2458904 ,527.00, 05/02/2019,3.20,627.00
51,600003,Commercial Property,Natural Resources and Assets,Infrastructure and Planning,21201,R&M - Buildings - Reactive,Polartek,Service Air Con & Heat Pumps as required,2458904 ,527.00, 05/02/2019,59.30,627.00
51,600003,Commercial Property,Natural Resources and Assets,Infrastructure and Planning,21201,R&M - Buildings - Reactive,Polartek,Service Air Con & Heat Pumps as required,2458904 ,527.00, 05/02/2019,6.40,627.00
51,600003,Commercial Property,Natural Resources and Assets,Infrastructure and Planning,21201,R&M - Buildings - Reactive,Polartek,Service Air Con & Heat Pumps as required,2458904 ,527.00, 05/02/2019,118.60,627.00
51,600003,Commercial Property,Natural Resources and Assets,Infrastructure and Planning,21216,R&M - Other - Reactive,Davey & Gilbert Ltd,Air Source Heat Pumps at PEC - 2 x fan replacement,2458936 ,"1,752.81", 05/02/2019,"1,752.81","2,103.37"
51,600003,Commercial Property,Natural Resources and Assets,Infrastructure and Planning,31603,Other Public Transport,Polartek,Service Air Con & Heat Pumps as required,2458904 ,527.00, 05/02/2019,1.02,627.00
51,600003,Commercial Property,Natural Resources and Assets,Infrastructure and Planning,31603,Other Public Transport,Polartek,Service Air Con & Heat Pumps as required,2458904 ,527.00, 05/02/2019,18.98,627.00
51,600003,Commercial Property,Natural Resources and Assets,Infrastructure and Planning,49002,Miscellaneous Expenditure,Cornwall Council,Legal Services - Commercial Property PEC Garage and Workshop,2479680 ,"3,292.80", 19/03/2019,163.20,"3,951.36"
51,600003,Commercial Property,Natural Resources and Assets,Infrastructure and Planning,49002,Miscellaneous Expenditure,P & P Lifts Ltd,Annual lift servicing contract for IOS Council sites - Park House/Library,2494126 ,"1,040.00", 19/03/2019,"1,040.00","1,248.00"
51,600003,Commercial Property,Natural Resources and Assets,Infrastructure and Planning,49002,Miscellaneous Expenditure,Edf Energy Plc,Line 526,2513460 ,"1,151.24", 27/03/2019,"1,151.24","1,381.49"
51,600003,Commercial Property,Natural Resources and Assets,Infrastructure and Planning,49002,Miscellaneous Expenditure,Edf Energy Plc,Line 466,2513449 ,"1,059.49", 27/03/2019,"1,059.49","1,271.38"
51,600003,Commercial Property,Natural Resources and Assets,Infrastructure and Planning,49002,Miscellaneous Expenditure,Edf Energy Plc,Line 393,2513434 ,804.19, 27/03/2019,804.19,965.03
51,600003,Commercial Property,Natural Resources and Assets,Infrastructure and Planning,49002,Miscellaneous Expenditure,Edf Energy Plc,Line 171,2513424 ,473.50, 27/03/2019,473.50,568.20
51,600003,Commercial Property,Natural Resources and Assets,Infrastructure and Planning,49002,Miscellaneous Expenditure,Edf Energy Plc,4309606,2513469 ,431.26, 27/03/2019,431.26,517.51
51,600003,Commercial Property,Natural Resources and Assets,Infrastructure and Planning,49002,Miscellaneous Expenditure,Valuation Office Agency,Rental review by valuation office,2507812 ,718.35, 28/03/2019,718.35,862.02
51,600004,Coast & Flood Protection,Natural Resources and Assets,Infrastructure and Planning,46103,Hotel Expenses,RBS Commercial Card Division,29-11-2018|7369|CRAIG DRYDEN|TRAVELODGE|OX9 3AT|3615||,2450082 ,"10,070.35", 25/01/2019,96.67,"10,375.06"
51,600005,AONB,Natural Resources and Assets,Infrastructure and Planning,89207,Consultancy Costs,Milestone Environmental Limited,Lower Moors Works - Hydro survey,2433208 ,"4,793.50", 08/01/2019,"1,300.36","5,752.20"
51,600005,AONB,Natural Resources and Assets,Infrastructure and Planning,89207,Consultancy Costs,Milestone Environmental Limited,Lower Moors Works - Hydro survey,2473190 ,"1,473.18", 14/02/2019,399.64,"1,767.82"
51,600010,Operational R & M Services,Operational Services,Infrastructure and Planning,31102,Vehicle Repair and Maintenance,Sibleys Fuel & Marine Services,Sibleys Fuel and Marine Services December 2018,2435194 ,"5,469.75", 10/01/2019,"4,395.96","5,904.30"
51,600010,Operational R & M Services,Operational Services,Infrastructure and Planning,31102,Vehicle Repair and Maintenance,Sibleys Fuel & Marine Services,Sibleys Fuel and Marine Services December 2018,2435194 ,"5,469.75", 10/01/2019,"1,073.79","5,904.30"
51,600010,Operational R & M Services,Operational Services,Infrastructure and Planning,31102,Vehicle Repair and Maintenance,RBS Commercial Card Division,10-12-2018|7369|CRAIG DRYDEN|DVLA VEHICLE TAX|SA6 7JL|9399||,2450082 ,"10,070.35", 25/01/2019,167.50,"10,375.06"
51,600010,Operational R & M Services,Operational Services,Infrastructure and Planning,31102,Vehicle Repair and Maintenance,RBS Commercial Card Division,18-12-2018|7393|JULIAN WRIGHT|ISLAND HARDWARE|TR21 0JD|5251|TORCH BATTERIES|,2450082 ,"10,070.35", 25/01/2019,4.16,"10,375.06"
51,600010,Operational R & M Services,Operational Services,Infrastructure and Planning,31102,Vehicle Repair and Maintenance,RBS Commercial Card Division,10-12-2018|7369|CRAIG DRYDEN|DVLA VEHICLE TAX|SA6 7JL|9399||,2450082 ,"10,070.35", 25/01/2019,252.50,"10,375.06"
51,600010,Operational R & M Services,Operational Services,Infrastructure and Planning,31602,Air Travel,RBS Commercial Card Division,06-12-2018|6459|TRAVEL TEAM|ISLES OF SCILLY SS CO|TR21 0LJ|4411|RETURN FLIGHTS FOR JAMES LOCKYER - 236295|IOS_NSTINSON,2450082 ,"10,070.35", 25/01/2019,113.06,"10,375.06"
51,600010,Operational R & M Services,Operational Services,Infrastructure and Planning,31602,Air Travel,RBS Commercial Card Division,06-12-2018|6459|TRAVEL TEAM|ISLES OF SCILLY SS CO|TR21 0LJ|4411|AMENDMENT FOR JAMES LOCKYER - 236295|IOS_NSTINSON,2450082 ,"10,070.35", 25/01/2019,6.50,"10,375.06"
51,600010,Operational R & M Services,Operational Services,Infrastructure and Planning,41103,Equipment - Spares,RBS Commercial Card Division,19-12-2018|7393|JULIAN WRIGHT|SOUTHARD ENG|TR21 0HU|5551|SPARK PLUGS FOR MOWING EQUIPMENT|,2450082 ,"10,070.35", 25/01/2019,14.32,"10,375.06"
51,600010,Operational R & M Services,Operational Services,Infrastructure and Planning,49002,Miscellaneous Expenditure,Aspli Safety Ltd,Traffic signs and cones,2452324 ,480.73, 31/01/2019,480.73,576.88
51,600010,Operational R & M Services,Operational Services,Infrastructure and Planning,31102,Vehicle Repair and Maintenance,Sibleys Fuel & Marine Services,Sibleys Fuel and Marine Services January 2019,2465425 ,"7,025.48", 12/02/2019,"5,767.49","7,565.46"
51,600010,Operational R & M Services,Operational Services,Infrastructure and Planning,31102,Vehicle Repair and Maintenance,Sibleys Fuel & Marine Services,Sibleys Fuel and Marine Services January 2019,2465425 ,"7,025.48", 12/02/2019,"1,257.99","7,565.46"
51,600010,Operational R & M Services,Operational Services,Infrastructure and Planning,31102,Vehicle Repair and Maintenance,Sibleys Fuel & Marine Services,Sibleys Fuel and Marine Services January 2019,2465425 ,"7,025.48", 12/02/2019,"-7,025.48","7,565.46"
51,600010,Operational R & M Services,Operational Services,Infrastructure and Planning,31102,Vehicle Repair and Maintenance,Sibleys Fuel & Marine Services,Sibleys Fuel and Marine Services January 2019,2465425 ,"7,025.48", 12/02/2019,"7,025.48","7,565.46"
51,600010,Operational R & M Services,Operational Services,Infrastructure and Planning,27012,Washroom And Hygeine Services,RBS Commercial Card Division,16-01-2019|7393|JULIAN WRIGHT|ISLAND HARDWARE|TR21 0JD|5251|CLEANING WIPES FOR TEA SHED|,2478449 ,"18,207.67", 22/02/2019,4.16,"19,082.78"
51,600010,Operational R & M Services,Operational Services,Infrastructure and Planning,41118,Health & Safety Equipment,RBS Commercial Card Division,28-12-2018|7393|JULIAN WRIGHT|ISLAND HARDWARE|TR21 0JD|5251|DISPOSABLE GLOVES|,2478449 ,"18,207.67", 22/02/2019,27.96,"19,082.78"
51,600010,Operational R & M Services,Operational Services,Infrastructure and Planning,31102,Vehicle Repair and Maintenance,Steve Oates t/a Doerwheal,Steve Oates Vehicle Maintenance,2488285 ,600.00, 05/03/2019,600.00,720.00
51,600010,Operational R & M Services,Operational Services,Infrastructure and Planning,49002,Miscellaneous Expenditure,James Lockyer Associates Ltd,Topographical survey-Moorwell,2488391 ,"2,300.00", 14/03/2019,"2,300.00","2,760.00"
51,600010,Operational R & M Services,Operational Services,Infrastructure and Planning,31105,Vehicle Parts,RBS Commercial Card Division,06-02-2019|7369|CRAIG DRYDEN|LINCAT LTD|LN6 3QZ|5399||,2507927 ,"18,805.89", 22/03/2019,61.56,"19,035.00"
51,600010,Operational R & M Services,Operational Services,Infrastructure and Planning,21111,R&M - Rechargeable - Planned,Jewson Ltd,"Materials for a fence at 20, Ennor Cl. For Airport re-charge.",2500329 ,701.06, 28/03/2019,701.06,841.27
51,600012,Highways,Operational Services,Infrastructure and Planning,49002,Miscellaneous Expenditure,Jewson Ltd,Rock salt for highways. 2 x baulk bags 112 x 25 kg,2430779 ,717.48, 08/01/2019,717.48,860.98
51,600012,Highways,Operational Services,Infrastructure and Planning,89408,Other Costs,RBS Commercial Card Division,10-12-2018|7369|CRAIG DRYDEN|WWW.DIGITALPRINTING.CO|BT3 9JP|7338||,2450082 ,"10,070.35", 25/01/2019,36.51,"10,375.06"
51,600012,Highways,Operational Services,Infrastructure and Planning,41302,Materials,Instarmac Group Plc,"Tubs of tarmac, overbanding tape and tac coat spray",2488299 ,"1,129.68", 21/03/2019,"1,129.68","1,355.62"
51,600012,Highways,Operational Services,Infrastructure and Planning,31203,Vehicle Excise (VED),RBS Commercial Card Division,25-02-2019|7393|JULIAN WRIGHT|DVLA VEHICLE TAX|SA6 7JL|9399|ROAD TAX FOR ROAD SWEEPER|,2507927 ,"18,805.89", 22/03/2019,167.50,"19,035.00"
51,600013,Open Spaces & Beaches,Operational Services,Infrastructure and Planning,31602,Air Travel,RBS Commercial Card Division,15-01-2019|6459|TRAVEL TEAM|ISLES OF SCILLY SS CO|TR21 0LJ|4411|FLIGHT 241790|IOS_NSTINSON,2478449 ,"18,207.67", 22/02/2019,164.00,"19,082.78"
51,600020,Building Control,Planning and Development,Infrastructure and Planning,22002,Electricity,Edf Energy Plc,"EDF Meter, waste. January 2019",2443252 ,636.59, 31/01/2019,636.59,763.15
51,600020,Building Control,Planning and Development,Infrastructure and Planning,22002,Electricity,Edf Energy Plc,"EDF Meter, waste. January 2019",2443252 ,636.59, 31/01/2019,"-1,754.61",763.15
51,600020,Building Control,Planning and Development,Infrastructure and Planning,22002,Electricity,Edf Energy Plc,"EDF Meter, waste. January 2019",2443252 ,636.59, 31/01/2019,"1,754.61",763.15
51,600020,Building Control,Planning and Development,Infrastructure and Planning,22002,Electricity,British Gas,Line 609 INV 964440449,2513648 ,530.71, 27/03/2019,530.71,636.85
51,600021,Development Management,Planning and Development,Infrastructure and Planning,43505,Consultants - Other,Enfusion Ltd,"Enfusion: rewrite HRA report, stage 3 of regulation 19 consultation 2019",2494236 ,"2,990.00", 12/03/2019,"2,990.00","3,588.00"
51,600021,Development Management,Planning and Development,Infrastructure and Planning,43506,Professional Fees - Legal,Cornwall Council,Section 106 Unilateral Undertaking Tregarthen Hotel Isles of Scilly - Legal Fees,2479680 ,"3,292.80", 19/03/2019,28.80,"3,951.36"
51,600021,Development Management,Planning and Development,Infrastructure and Planning,43532,Professional Fees - Other,Exmoor National Park Authority,Exmoor Agreement with CIOS for Planning works,2501806 ,"1,920.00", 19/03/2019,"1,920.00","2,304.00"
51,600022,Strategic Planning,Planning and Development,Infrastructure and Planning,43001,Photocopying & Printing,Cornwall Council,Print Work - CCMAR - 0137 leaflet inserted into C5 envelope mail merged B/W,2449945 ,713.31, 22/01/2019,713.31,855.97
51,600022,Strategic Planning,Planning and Development,Infrastructure and Planning,43532,Professional Fees - Other,PSUk Communications LTD,Proof reading and Editing Services,2453264 ,487.90, 24/01/2019,487.90,585.48
51,600022,Strategic Planning,Planning and Development,Infrastructure and Planning,43536,Assessment Fees,Cornwall Council,"Land to the north of Ennor Castle, old town, St Mary's - Heritage impact assessment.",2459035 ,"1,680.55", 05/02/2019,"1,680.55","2,016.66"
51,600022,Strategic Planning,Planning and Development,Infrastructure and Planning,45301,Postage/Franking Charges,Royal Mail Group Ltd,ROYAL MAIL FLYER PRINT AND DELIVER,2465304 ,600.00, 12/02/2019,600.00,600.00
51,600030,Fire & Rescue,Fire and Rescue,Infrastructure and Planning,49002,Miscellaneous Expenditure,Cornwall Council,IOS Collaboration Costs 2017-18,2443305 ,"53,276.00", 15/01/2019,"53,276.00","53,276.00"
51,600030,Fire & Rescue,Fire and Rescue,Infrastructure and Planning,31602,Air Travel,RBS Commercial Card Division,"04-12-2018|6459|TRAVEL TEAM|WWW.ISLEOFSCILLY-TRAVE|TR21 0LJ|4411|3 X SINGLES FOR S HICKS, T HICKS & J HICKS - 236010|IOS_NSTINSON",2450082 ,"10,070.35", 25/01/2019,267.00,"10,375.06"
51,600030,Fire & Rescue,Fire and Rescue,Infrastructure and Planning,31602,Air Travel,RBS Commercial Card Division,"04-12-2018|6459|TRAVEL TEAM|WWW.ISLEOFSCILLY-TRAVE|TR21 0LJ|4411|3 SINGLE FLIGHTS FOR S HICKS, T HICKS & J HICKS - 236009|IOS_NSTINSON",2450082 ,"10,070.35", 25/01/2019,267.00,"10,375.06"
51,600030,Fire & Rescue,Fire and Rescue,Infrastructure and Planning,31602,Air Travel,RBS Commercial Card Division,13-12-2018|6459|TRAVEL TEAM|ISLES OF SCILLY SS CO|TR21 0LJ|4411|RETURN FLIGHTS FOR KATH BILBY - 236928|IOS_NSTINSON,2450082 ,"10,070.35", 25/01/2019,152.00,"10,375.06"
51,600030,Fire & Rescue,Fire and Rescue,Infrastructure and Planning,31602,Air Travel,RBS Commercial Card Division,19-12-2018|6459|TRAVEL TEAM|WWW.ISLEOFSCILLY-TRAVE|TR21 0LJ|4411|RETURN FLIGHTS FOR J JOHNSON & A WATTS - 237411|IOS_NSTINSON,2450082 ,"10,070.35", 25/01/2019,356.00,"10,375.06"
51,600030,Fire & Rescue,Fire and Rescue,Infrastructure and Planning,41109,R&M of Plant & Equipment,RBS Commercial Card Division,07-12-2018|7393|JULIAN WRIGHT|ISLAND HARDWARE|TR21 0JD|5251|LIGHTS FOR LFRS|,2450082 ,"10,070.35", 25/01/2019,6.32,"10,375.06"
51,600030,Fire & Rescue,Fire and Rescue,Infrastructure and Planning,46103,Hotel Expenses,RBS Commercial Card Division,"27-11-2018|2872|RUSSELL SCHILD|PREMIER INN|TR14 0RT|3811|LAFS COURSES: B. GILLET, B. JULIAN, W. HENSLEY|IOS_TLEIJSER",2450082 ,"10,070.35", 25/01/2019,337.50,"10,375.06"
51,600030,Fire & Rescue,Fire and Rescue,Infrastructure and Planning,46103,Hotel Expenses,RBS Commercial Card Division,"04-12-2018|2872|RUSSELL SCHILD|PREMIER INN|TR14 0RT|3811|LAFRS COURSE ACCOMMODATION - MR S. HICKS, MR T. HICK, MR J. HICKS|IOS_TLEIJSER",2450082 ,"10,070.35", 25/01/2019,143.75,"10,375.06"
51,600030,Fire & Rescue,Fire and Rescue,Infrastructure and Planning,11305,Fire Pension - Contributions Refund,Cornwall Council,Pension Fun - Hymans Roberston April 2018 Invoice - Provision of 31 March 2018 FRS17 accounting report,2459036 ,720.00, 05/02/2019,720.00,864.00
51,600030,Fire & Rescue,Fire and Rescue,Infrastructure and Planning,49002,Miscellaneous Expenditure,Firefighter Protection UK Ltd,Fire Fighting Gloves LAFS,2458877 ,549.50, 05/02/2019,549.50,659.40
51,600030,Fire & Rescue,Fire and Rescue,Infrastructure and Planning,31102,Vehicle Repair and Maintenance,Steve Oates t/a Doerwheal,Steve Oates Repairs to Fire Towers Feb 2019,2473170 ,720.00, 14/02/2019,720.00,864.00
51,600030,Fire & Rescue,Fire and Rescue,Infrastructure and Planning,31602,Air Travel,RBS Commercial Card Division,28-12-2018|6459|TRAVEL TEAM|WWW.ISLEOFSCILLY-TRAVE|TR21 0LJ|4411|RETURN FLIGHTS FOR IAN NIMMO & DAVID MUMFORD - 238032|IOS_NSTINSON,2478449 ,"18,207.67", 22/02/2019,343.00,"19,082.78"
51,600030,Fire & Rescue,Fire and Rescue,Infrastructure and Planning,31602,Air Travel,RBS Commercial Card Division,10-01-2019|6459|TRAVEL TEAM|WWW.ISLEOFSCILLY-TRAVE|TR21 0LJ|4411|RETURN FLIGHT FOR STEVE CARR - 240630|IOS_NSTINSON,2478449 ,"18,207.67", 22/02/2019,169.00,"19,082.78"
51,600030,Fire & Rescue,Fire and Rescue,Infrastructure and Planning,31602,Air Travel,RBS Commercial Card Division,10-01-2019|6459|TRAVEL TEAM|WWW.ISLEOFSCILLY-TRAVE|TR21 0LJ|4411|RETURN FLIGHTS FOR ANDY WATTS & MURRAY GUY - 240624|IOS_NSTINSON,2478449 ,"18,207.67", 22/02/2019,330.00,"19,082.78"
51,600030,Fire & Rescue,Fire and Rescue,Infrastructure and Planning,31602,Air Travel,RBS Commercial Card Division,10-01-2019|6459|TRAVEL TEAM|WWW.ISLEOFSCILLY-TRAVE|TR21 0LJ|4411|RETURN FLIGHT FOR KATIE GRAHAM - 240657|IOS_NSTINSON,2478449 ,"18,207.67", 22/02/2019,169.00,"19,082.78"
51,600030,Fire & Rescue,Fire and Rescue,Infrastructure and Planning,31602,Air Travel,RBS Commercial Card Division,15-01-2019|6459|TRAVEL TEAM|WWW.ISLEOFSCILLY-TRAVE|TR21 0LJ|4411|RETURN FLIGHTS FOR I NEIL - 241890|IOS_NSTINSON,2478449 ,"18,207.67", 22/02/2019,178.00,"19,082.78"
51,600030,Fire & Rescue,Fire and Rescue,Infrastructure and Planning,31602,Air Travel,RBS Commercial Card Division,15-01-2019|6459|TRAVEL TEAM|WWW.ISLEOFSCILLY-TRAVE|TR21 0LJ|4411|RETURN FLIGHT FOR RAPH WARD - 241888|IOS_NSTINSON,2478449 ,"18,207.67", 22/02/2019,178.00,"19,082.78"
51,600030,Fire & Rescue,Fire and Rescue,Infrastructure and Planning,31602,Air Travel,RBS Commercial Card Division,15-01-2019|6459|TRAVEL TEAM|WWW.ISLEOFSCILLY-TRAVE|TR21 0LJ|4411|RETURN FLIGHTS FOR J WRIGLEY & P WILLIAMS - 241884|IOS_NSTINSON,2478449 ,"18,207.67", 22/02/2019,348.00,"19,082.78"
51,600030,Fire & Rescue,Fire and Rescue,Infrastructure and Planning,31602,Air Travel,RBS Commercial Card Division,15-01-2019|6459|TRAVEL TEAM|WWW.ISLEOFSCILLY-TRAVE|TR21 0LJ|4411|RETURN FLIGHTS FOR S BAXTER & A ONEIL - 241882|IOS_NSTINSON,2478449 ,"18,207.67", 22/02/2019,348.00,"19,082.78"
51,600030,Fire & Rescue,Fire and Rescue,Infrastructure and Planning,31602,Air Travel,RBS Commercial Card Division,15-01-2019|6459|TRAVEL TEAM|WWW.ISLEOFSCILLY-TRAVE|TR21 0LJ|4411|RETURN FLIGHTS FOR H MILLER & N GOULD - 241878|IOS_NSTINSON,2478449 ,"18,207.67", 22/02/2019,348.00,"19,082.78"
51,600030,Fire & Rescue,Fire and Rescue,Infrastructure and Planning,31602,Air Travel,RBS Commercial Card Division,15-01-2019|6459|TRAVEL TEAM|WWW.ISLEOFSCILLY-TRAVE|TR21 0LJ|4411|RETURN FLIGHTS FOR JIM JOHNSON & JOHN WILLIAMS - 241873|IOS_NSTINSON,2478449 ,"18,207.67", 22/02/2019,330.00,"19,082.78"
51,600030,Fire & Rescue,Fire and Rescue,Infrastructure and Planning,31602,Air Travel,RBS Commercial Card Division,15-01-2019|6459|TRAVEL TEAM|WWW.ISLEOFSCILLY-TRAVE|TR21 0LJ|4411|RETURN FLIGHT FOR RAPH WARD - 241815|IOS_NSTINSON,2478449 ,"18,207.67", 22/02/2019,169.00,"19,082.78"
51,600030,Fire & Rescue,Fire and Rescue,Infrastructure and Planning,31602,Air Travel,RBS Commercial Card Division,16-01-2019|6459|TRAVEL TEAM|WWW.ISLEOFSCILLY-TRAVE|TR21 0LJ|4411|RETURN FLIGHTS FOR J JOHNSON - 242036|IOS_NSTINSON,2478449 ,"18,207.67", 22/02/2019,178.00,"19,082.78"
51,600030,Fire & Rescue,Fire and Rescue,Infrastructure and Planning,31602,Air Travel,RBS Commercial Card Division,21-01-2019|6459|TRAVEL TEAM|WWW.ISLEOFSCILLY-TRAVE|TR21 0LJ|4411|RETURN FLIGHTS FOR K GRAHAM - 243002|IOS_NSTINSON,2478449 ,"18,207.67", 22/02/2019,178.00,"19,082.78"
51,600030,Fire & Rescue,Fire and Rescue,Infrastructure and Planning,31602,Air Travel,RBS Commercial Card Division,21-01-2019|6459|TRAVEL TEAM|WWW.ISLEOFSCILLY-TRAVE|TR21 0LJ|4411|SINGLE FOR M GUY - 243004|IOS_NSTINSON,2478449 ,"18,207.67", 22/02/2019,89.00,"19,082.78"
51,600030,Fire & Rescue,Fire and Rescue,Infrastructure and Planning,31602,Air Travel,RBS Commercial Card Division,21-01-2019|6459|TRAVEL TEAM|ISLES OF SCILLY SS CO|TR21 0LJ|4411|CREDIT FOR RAPH WARD - 241815|IOS_NSTINSON,2478449 ,"18,207.67", 22/02/2019,-84.50,"19,082.78"
51,600030,Fire & Rescue,Fire and Rescue,Infrastructure and Planning,31602,Air Travel,RBS Commercial Card Division,24-01-2019|6459|TRAVEL TEAM|WWW.ISLEOFSCILLY-TRAVE|TR21 0LJ|4411|SINGLE FLIGHT FOR M GUY - 243769|IOS_NSTINSON,2478449 ,"18,207.67", 22/02/2019,89.00,"19,082.78"
51,600030,Fire & Rescue,Fire and Rescue,Infrastructure and Planning,41115,First Aid Equipment,RBS Commercial Card Division,15-01-2019|2872|RUSSELL SCHILD|SJASUPLIES|S8 0XN|8398|LAFRS MEDICAL SUPPLIES|,2478449 ,"18,207.67", 22/02/2019,62.45,"19,082.78"
51,600030,Fire & Rescue,Fire and Rescue,Infrastructure and Planning,46103,Hotel Expenses,RBS Commercial Card Division,28-12-2018|2872|RUSSELL SCHILD|PREMIER INN|TR14 0RT|3811|LAFRS COURSE ACCOMMODATION|IOS_TLEIJSER,2478449 ,"18,207.67", 22/02/2019,139.17,"19,082.78"
51,600030,Fire & Rescue,Fire and Rescue,Infrastructure and Planning,46103,Hotel Expenses,RBS Commercial Card Division,10-01-2019|2872|RUSSELL SCHILD|PREMIER INN|TR14 0RT|3811|LAFRS TRAILER DRIVING COURSE - ANDY WATTS & MURRAY GUY|,2478449 ,"18,207.67", 22/02/2019,331.67,"19,082.78"
51,600030,Fire & Rescue,Fire and Rescue,Infrastructure and Planning,46103,Hotel Expenses,RBS Commercial Card Division,16-01-2019|2872|RUSSELL SCHILD|THE GIPSY HILL HOTEL|EX1 3RN|7011|JIM JOHNSON - LAFRS COURSE ACCOMMODATION|,2478449 ,"18,207.67", 22/02/2019,57.50,"19,082.78"
51,600030,Fire & Rescue,Fire and Rescue,Infrastructure and Planning,46103,Hotel Expenses,RBS Commercial Card Division,15-01-2019|7369|CRAIG DRYDEN|PREMIER INN|TR14 0RT|3811||IOS_TLEIJSER,2478449 ,"18,207.67", 22/02/2019,85.00,"19,082.78"
51,600030,Fire & Rescue,Fire and Rescue,Infrastructure and Planning,46103,Hotel Expenses,RBS Commercial Card Division,15-01-2019|7369|CRAIG DRYDEN|PREMIER INN|TR14 0RT|3811||IOS_TLEIJSER,2478449 ,"18,207.67", 22/02/2019,340.00,"19,082.78"
51,600030,Fire & Rescue,Fire and Rescue,Infrastructure and Planning,46103,Hotel Expenses,RBS Commercial Card Division,15-01-2019|7369|CRAIG DRYDEN|PREMIER INN|TR14 0RT|3811||IOS_TLEIJSER,2478449 ,"18,207.67", 22/02/2019,340.00,"19,082.78"
51,600030,Fire & Rescue,Fire and Rescue,Infrastructure and Planning,46103,Hotel Expenses,RBS Commercial Card Division,15-01-2019|7369|CRAIG DRYDEN|PREMIER INN|TR14 0RT|3811||IOS_TLEIJSER,2478449 ,"18,207.67", 22/02/2019,282.50,"19,082.78"
51,600030,Fire & Rescue,Fire and Rescue,Infrastructure and Planning,21101,R&M - Buildings - Planned,Steve Oates t/a Doerwheal,Steve Oates Works to Fire Tower Feb 2019,2483578 ,"1,929.98", 28/02/2019,"1,929.98","2,315.98"
51,600030,Fire & Rescue,Fire and Rescue,Infrastructure and Planning,21101,R&M - Buildings - Planned,Steve Oates t/a Doerwheal,Steve Oates Works on Fire Tower 14-16th Feb 2019,2488277 ,"1,124.99", 05/03/2019,"1,124.99","1,349.99"
51,600030,Fire & Rescue,Fire and Rescue,Infrastructure and Planning,21201,R&M - Buildings - Reactive,Steve Oates t/a Doerwheal,Steve Oates Phase Two on Fire Tower Feb 24th,2488280 ,"1,003.99", 05/03/2019,"1,003.99","1,204.79"
51,600030,Fire & Rescue,Fire and Rescue,Infrastructure and Planning,49329,Fire Rig Maintenance,Steve Oates t/a Doerwheal,Steve Oates Fire Tower 18-19th Feb,2488278 ,977.50, 05/03/2019,977.50,"1,173.00"
51,600030,Fire & Rescue,Fire and Rescue,Infrastructure and Planning,28001,Maintenance of Grounds,Steve Oates t/a Doerwheal,Steve Oates Fire Tower 26th Feb - 01 March,2494221 ,"1,047.98", 12/03/2019,"1,047.98","1,257.58"
51,600030,Fire & Rescue,Fire and Rescue,Infrastructure and Planning,31102,Vehicle Repair and Maintenance,Steve Oates t/a Doerwheal,Steve Oates fire January 2019,2494291 ,754.50, 12/03/2019,754.50,905.40
51,600030,Fire & Rescue,Fire and Rescue,Infrastructure and Planning,43532,Professional Fees - Other,Cornwall Council,Cornwall Council SLA with IOS Fire Service,2493876 ,"60,000.00", 12/03/2019,"60,000.00","60,000.00"
51,600030,Fire & Rescue,Fire and Rescue,Infrastructure and Planning,49002,Miscellaneous Expenditure,Firefighter Protection UK Ltd,FIRE FIGHTING GLOVES FOR LAFS,2499560 ,516.00, 14/03/2019,516.00,619.20
51,600030,Fire & Rescue,Fire and Rescue,Infrastructure and Planning,31602,Air Travel,RBS Commercial Card Division,13-02-2019|6459|TRAVEL TEAM|WWW.ISLEOFSCILLY-TRAVE|TR21 0LJ|4411|FLIGHT 247583|IOS_NSTINSON,2507927 ,"18,805.89", 22/03/2019,170.00,"19,035.00"
51,600030,Fire & Rescue,Fire and Rescue,Infrastructure and Planning,31602,Air Travel,RBS Commercial Card Division,14-02-2019|6459|TRAVEL TEAM|ISLES OF SCILLY SS CO|TR21 0LJ|4411|FLIGHT 247586 AMENDMENT|IOS_NSTINSON,2507927 ,"18,805.89", 22/03/2019,57.00,"19,035.00"
51,600030,Fire & Rescue,Fire and Rescue,Infrastructure and Planning,31602,Air Travel,RBS Commercial Card Division,14-02-2019|6459|TRAVEL TEAM|ISLES OF SCILLY SS CO|TR21 0LJ|4411|FLIGHT 248522|IOS_NSTINSON,2507927 ,"18,805.89", 22/03/2019,165.30,"19,035.00"
51,600030,Fire & Rescue,Fire and Rescue,Infrastructure and Planning,31602,Air Travel,RBS Commercial Card Division,19-02-2019|6459|TRAVEL TEAM|WWW.ISLEOFSCILLY-TRAVE|TR21 0LJ|4411|FLIGHT 248528|IOS_NSTINSON,2507927 ,"18,805.89", 22/03/2019,165.00,"19,035.00"
51,600030,Fire & Rescue,Fire and Rescue,Infrastructure and Planning,31602,Air Travel,RBS Commercial Card Division,19-02-2019|6459|TRAVEL TEAM|WWW.ISLEOFSCILLY-TRAVE|TR21 0LJ|4411|FLIGHT 248524|IOS_NSTINSON,2507927 ,"18,805.89", 22/03/2019,165.00,"19,035.00"
51,600030,Fire & Rescue,Fire and Rescue,Infrastructure and Planning,31602,Air Travel,RBS Commercial Card Division,04-02-2019|6459|TRAVEL TEAM|ISLES OF SCILLY SS CO|TR21 0LJ|4411|FLIGHT 226478 REFUND|IOS_NSTINSON,2507927 ,"18,805.89", 22/03/2019,-165.00,"19,035.00"
51,600030,Fire & Rescue,Fire and Rescue,Infrastructure and Planning,31602,Air Travel,RBS Commercial Card Division,12-02-2019|6459|TRAVEL TEAM|ISLES OF SCILLY SS CO|TR21 0LJ|4411|FLIGHT REFUND 243073|IOS_NSTINSON,2507927 ,"18,805.89", 22/03/2019,-90.50,"19,035.00"
51,600030,Fire & Rescue,Fire and Rescue,Infrastructure and Planning,31602,Air Travel,RBS Commercial Card Division,13-02-2019|6459|TRAVEL TEAM|WWW.ISLEOFSCILLY-TRAVE|TR21 0LJ|4411|FLIGHT 247586|IOS_NSTINSON,2507927 ,"18,805.89", 22/03/2019,340.00,"19,035.00"
51,600030,Fire & Rescue,Fire and Rescue,Infrastructure and Planning,31602,Air Travel,RBS Commercial Card Division,26-02-2019|6459|TRAVEL TEAM|ISLES OF SCILLY SS CO|TR21 0LJ|4411|NAME CHANGE|IOS_NSTINSON,2507927 ,"18,805.89", 22/03/2019,20.00,"19,035.00"
51,600030,Fire & Rescue,Fire and Rescue,Infrastructure and Planning,41115,First Aid Equipment,RBS Commercial Card Division,24-02-2019|2872|RUSSELL SCHILD|SJASUPLIES|S8 0XN|8398|FIRST AID STOCK|,2507927 ,"18,805.89", 22/03/2019,20.03,"19,035.00"
51,600030,Fire & Rescue,Fire and Rescue,Infrastructure and Planning,45101,Mobile Phones,RBS Commercial Card Division,20-02-2019|7369|CRAIG DRYDEN|WWW.RADIOTRONICS.CO.UK|DN22 7WF|4812||,2507927 ,"18,805.89", 22/03/2019,100.00,"19,035.00"
51,600030,Fire & Rescue,Fire and Rescue,Infrastructure and Planning,45102,Pagers,RBS Commercial Card Division,21-02-2019|7369|CRAIG DRYDEN|RADIOTRONICS LIMITED|DN22 7WF|4812||,2507927 ,"18,805.89", 22/03/2019,18.78,"19,035.00"
51,600030,Fire & Rescue,Fire and Rescue,Infrastructure and Planning,49002,Miscellaneous Expenditure,Engelbert Strauss Ltd,PPE for Airport RFFS,2513956 ,436.88, 28/03/2019,436.88,524.26
51,600031,Emergency Planning,Fire and Rescue,Infrastructure and Planning,12301,Training,Serco Ltd,emergency planning course 18th-22nd March,2499534 ,"2,025.00", 14/03/2019,"2,025.00","2,430.00"
51,600031,Emergency Planning,Fire and Rescue,Infrastructure and Planning,31602,Air Travel,RBS Commercial Card Division,07-02-2019|6459|TRAVEL TEAM|ISLES OF SCILLY SS CO|TR21 0LJ|4411|FLIGHT 246496|IOS_NSTINSON,2507927 ,"18,805.89", 22/03/2019,161.50,"19,035.00"
51,600032,Wholetime -2006 Scheme Fire Pension,Fire and Rescue,Infrastructure and Planning,11412,Pension Payments - Firefighters,Cornwall Council,Fire Pensions Apr18 � Jan 19 / Teacher Pensions Apr18 � Jan 19,2467865 ,"8,207.22", 12/02/2019,"2,483.66","8,207.22"
51,600032,Wholetime -2006 Scheme Fire Pension,Fire and Rescue,Infrastructure and Planning,11412,Pension Payments - Firefighters,Cornwall Council,Fire Pensions 2017-18 / Teacher Pensions 2017-18,2467863 ,"5,374.63", 21/02/2019,"1,206.65","5,374.63"
51,600032,Wholetime -2006 Scheme Fire Pension,Fire and Rescue,Infrastructure and Planning,45208,IT Software Support,Cornwall Council,Cornwall Council Minor Works Oct 2018-Jan 2019,2488266 ,"4,454.92", 14/03/2019,"4,454.92","5,345.90"
51,600032,Wholetime -2006 Scheme Fire Pension,Fire and Rescue,Infrastructure and Planning,11412,Pension Payments - Firefighters,Cornwall Council,Fire Pensions Feb19 � Mar19,2509741 ,"2,406.62", 28/03/2019,497.12,"2,406.62"
51,600040,Waste Collection and Operations,Waste and Recycling,Infrastructure and Planning,22002,Electricity,Edf Energy Plc,Annual metering charge for Porthmellon Waste site December 2018,2429867 ,432.00, 03/01/2019,432.00,518.40
51,600040,Waste Collection and Operations,Waste and Recycling,Infrastructure and Planning,49002,Miscellaneous Expenditure,Essential Safety Wear Ltd,essential safetywear order for disposable gloves 70 boxes for both W&R M&R,2433067 ,547.27, 08/01/2019,547.27,656.73
51,600040,Waste Collection and Operations,Waste and Recycling,Infrastructure and Planning,49002,Miscellaneous Expenditure,Harrison Fork Trucks Ltd,Parts for forklift truck from Harrisons,2434922 ,433.60, 08/01/2019,433.60,520.32
51,600040,Waste Collection and Operations,Waste and Recycling,Infrastructure and Planning,49002,Miscellaneous Expenditure,Bryher Forge,Ted Langdon (Bryher Forge) Bryher waste management contract,2433054 ,875.00, 08/01/2019,875.00,875.00
51,600040,Waste Collection and Operations,Waste and Recycling,Infrastructure and Planning,46119,Haulage Costs,Mr R F Legg,R F Legg waste disposal St Agnes January 2019,2441906 ,750.00, 15/01/2019,750.00,900.00
51,600040,Waste Collection and Operations,Waste and Recycling,Infrastructure and Planning,49002,Miscellaneous Expenditure,AF & C L Watts,Green waste going to Andy Watts for composting,2447534 ,"4,990.00", 22/01/2019,"4,990.00","4,990.00"
51,600040,Waste Collection and Operations,Waste and Recycling,Infrastructure and Planning,49002,Miscellaneous Expenditure,AF & C L Watts,Green waste going to Andy Watts for composting,2447534 ,"4,990.00", 22/01/2019,"-4,990.00","4,990.00"
51,600040,Waste Collection and Operations,Waste and Recycling,Infrastructure and Planning,57069,Waste Disposal Contracts - Private Contractors,AF & C L Watts,"Green waste disposal to Andy Watts at Parting Carn Farm, for composting Jan 2019",2447534 ,"4,990.00", 22/01/2019,"4,990.00","4,990.00"
51,600040,Waste Collection and Operations,Waste and Recycling,Infrastructure and Planning,22501,Rent,Duchy Of Cornwall,Moorwell �B� Incinerator March � Sept 2017,2453270 ,881.85, 24/01/2019,881.85,881.85
51,600040,Waste Collection and Operations,Waste and Recycling,Infrastructure and Planning,22501,Rent,Duchy Of Cornwall,Rent for Moorwell Depot �A�,2453227 ,"1,687.50", 24/01/2019,"1,687.50","1,687.50"
51,600040,Waste Collection and Operations,Waste and Recycling,Infrastructure and Planning,22501,Rent,Duchy Of Cornwall,Moorwell �B� Incinerator Sept 2017 � March 2018,2453267 ,881.85, 24/01/2019,881.85,881.85
51,600040,Waste Collection and Operations,Waste and Recycling,Infrastructure and Planning,49002,Miscellaneous Expenditure,Bryher Forge,Ted Langdon (Bryher Forge) Bryher waste management contract,2453092 ,875.00, 24/01/2019,875.00,875.00
51,600040,Waste Collection and Operations,Waste and Recycling,Infrastructure and Planning,31105,Vehicle Parts,RBS Commercial Card Division,03-12-2018|7393|JULIAN WRIGHT|T HARVEY & SONS LTD|TR16 4BQ|5511|PARTS FOR REFUSE COLLECTION VEHICLES|,2450082 ,"10,070.35", 25/01/2019,207.79,"10,375.06"
51,600040,Waste Collection and Operations,Waste and Recycling,Infrastructure and Planning,31203,Vehicle Excise (VED),RBS Commercial Card Division,03-12-2018|7393|JULIAN WRIGHT|POST OFFICE COUNTER|TR21 0LR|9402|ROAD TAX FOR NEW RECYCLING VEHICLE|,2450082 ,"10,070.35", 25/01/2019,252.50,"10,375.06"
51,600040,Waste Collection and Operations,Waste and Recycling,Infrastructure and Planning,41104,Equipment & Plant - Direct Purchase,RBS Commercial Card Division,27-12-2018|7393|JULIAN WRIGHT|SOUTHARD ENG|TR21 0HU|5551|TESTED SHACKLES TO REPLACE STOCK RUINED BY WASTE OPERATIVES|,2450082 ,"10,070.35", 25/01/2019,31.16,"10,375.06"
51,600040,Waste Collection and Operations,Waste and Recycling,Infrastructure and Planning,57069,Waste Disposal Contracts - Private Contractors,Viridor Waste Management Ltd,Viridor glass skip,2437114 ,783.89, 29/01/2019,783.89,940.67
51,600040,Waste Collection and Operations,Waste and Recycling,Infrastructure and Planning,31102,Vehicle Repair and Maintenance,Steve Oates t/a Doerwheal,Steve Oates waste and recycling January 2019,2460535 ,745.00, 05/02/2019,745.00,894.00
51,600040,Waste Collection and Operations,Waste and Recycling,Infrastructure and Planning,46119,Haulage Costs,Island Carriers,Island Carriers January 2019 waste and recycling,2460665 ,"3,834.04", 05/02/2019,"3,834.04","4,600.87"
51,600040,Waste Collection and Operations,Waste and Recycling,Infrastructure and Planning,49002,Miscellaneous Expenditure,ESE Direct Ltd,"The purchase of  waste site barriers, post and chains, signage",2448521 ,537.69, 05/02/2019,537.69,645.23
51,600040,Waste Collection and Operations,Waste and Recycling,Infrastructure and Planning,49002,Miscellaneous Expenditure,ESE Direct Ltd,"The purchase of  waste site barriers, post and chains, signage",2458120 ,763.90, 05/02/2019,763.90,916.68
51,600040,Waste Collection and Operations,Waste and Recycling,Infrastructure and Planning,46118,Freight Costs,Isles Of Scilly Steamship Co,Isles of Scilly Steamship Co. December freight waste,2458942 ,"7,226.80", 07/02/2019,"7,226.80","8,672.16"
51,600040,Waste Collection and Operations,Waste and Recycling,Infrastructure and Planning,46119,Haulage Costs,Suez Recycling and Recovery UK Ltd (was Sita UK Ltd),Suez for December 2018,2443390 ,"13,651.40", 07/02/2019,"13,651.40","16,381.68"
51,600040,Waste Collection and Operations,Waste and Recycling,Infrastructure and Planning,46119,Haulage Costs,Suez Recycling and Recovery UK Ltd (was Sita UK Ltd),Suez January 2019,2443390 ,"13,651.40", 07/02/2019,"-13,651.40","16,381.68"
51,600040,Waste Collection and Operations,Waste and Recycling,Infrastructure and Planning,46119,Haulage Costs,Suez Recycling and Recovery UK Ltd (was Sita UK Ltd),Suez January 2019,2443390 ,"13,651.40", 07/02/2019,"13,651.40","16,381.68"
51,600040,Waste Collection and Operations,Waste and Recycling,Infrastructure and Planning,46119,Haulage Costs,Island Carriers,Island Carriers - Waste/Recycling for February 2019,2467756 ,"3,397.52", 12/02/2019,"3,397.52","4,077.05"
51,600040,Waste Collection and Operations,Waste and Recycling,Infrastructure and Planning,46119,Haulage Costs,Mr R F Legg,Waste disposal St Agnes for February 2019,2465441 ,750.00, 12/02/2019,750.00,900.00
51,600040,Waste Collection and Operations,Waste and Recycling,Infrastructure and Planning,46119,Haulage Costs,Island Carriers,Island Carriers Waste - April 2018,2467735 ,"2,873.21", 12/02/2019,"2,873.21","3,447.88"
51,600040,Waste Collection and Operations,Waste and Recycling,Infrastructure and Planning,41107,Equipment Special Purchases,Soho Commercial Ltd,Purchase of 8 wheelie bins from Soho commercial ltd,2472262 ,"1,952.00", 14/02/2019,"1,952.00","2,342.40"
51,600040,Waste Collection and Operations,Waste and Recycling,Infrastructure and Planning,46119,Haulage Costs,Island Carriers,Island Carriers Waste -  May 2018,2473060 ,"3,270.95", 14/02/2019,"3,270.95","3,925.16"
51,600040,Waste Collection and Operations,Waste and Recycling,Infrastructure and Planning,49002,Miscellaneous Expenditure,Wessex GS Ltd,"Purchase of 2 injectors for the new dustcart from Wessex DAF, Formal Business Park,Camborne.",2415615 ,580.00, 14/02/2019,580.00,696.00
51,600040,Waste Collection and Operations,Waste and Recycling,Infrastructure and Planning,41304,Cleaning & Domestic Materials,The Consortium,Consortium-Cleaning Supplies for Morwell.,2460607 ,"1,547.53", 19/02/2019,"1,547.53","1,857.04"
51,600040,Waste Collection and Operations,Waste and Recycling,Infrastructure and Planning,12301,Training,RBS Commercial Card Division,25-01-2019|7369|CRAIG DRYDEN|CHARTERED INST OF|NN1 1SX|8999||,2478449 ,"18,207.67", 22/02/2019,16.67,"19,082.78"
51,600040,Waste Collection and Operations,Waste and Recycling,Infrastructure and Planning,31105,Vehicle Parts,RBS Commercial Card Division,28-12-2018|7393|JULIAN WRIGHT|POST OFFICE COUNTER|TR21 0LR|9402|POSTAGE FOR INJECTORS RETURNED FOR SURCHARGE|,2478449 ,"18,207.67", 22/02/2019,5.50,"19,082.78"
51,600040,Waste Collection and Operations,Waste and Recycling,Infrastructure and Planning,31601,Rail,RBS Commercial Card Division,25-01-2019|7369|CRAIG DRYDEN|GWR WEBSALES|SN1 1HL|4112||,2478449 ,"18,207.67", 22/02/2019,35.33,"19,082.78"
51,600040,Waste Collection and Operations,Waste and Recycling,Infrastructure and Planning,31602,Air Travel,RBS Commercial Card Division,25-01-2019|6459|TRAVEL TEAM|ISLES OF SCILLY SS CO|TR21 0LJ|4411|RETURN FLIGHTS FOR REBECCA WILLIAMS - 244082|IOS_NSTINSON,2478449 ,"18,207.67", 22/02/2019,172.55,"19,082.78"
51,600040,Waste Collection and Operations,Waste and Recycling,Infrastructure and Planning,41103,Equipment - Spares,RBS Commercial Card Division,31-12-2018|7393|JULIAN WRIGHT|ISLAND HARDWARE|TR21 0JD|5251|HOSE PIPE CONNECTORS|,2478449 ,"18,207.67", 22/02/2019,16.44,"19,082.78"
51,600040,Waste Collection and Operations,Waste and Recycling,Infrastructure and Planning,46103,Hotel Expenses,RBS Commercial Card Division,25-01-2019|7369|CRAIG DRYDEN|WWW.WARWICKHOUSEPENZAN|TR18 4DW|7011||,2478449 ,"18,207.67", 22/02/2019,54.17,"19,082.78"
51,600040,Waste Collection and Operations,Waste and Recycling,Infrastructure and Planning,46103,Hotel Expenses,RBS Commercial Card Division,25-01-2019|7369|CRAIG DRYDEN|PREMIER INN|EX4 4BG|3811||,2478449 ,"18,207.67", 22/02/2019,51.67,"19,082.78"
51,600040,Waste Collection and Operations,Waste and Recycling,Infrastructure and Planning,22501,Rent,Duchy Of Cornwall,Moorwell Dept �A 25 Dec 2018 - 24 Mar 2019,2478361 ,"1,687.50", 26/02/2019,"1,687.50","1,687.50"
51,600040,Waste Collection and Operations,Waste and Recycling,Infrastructure and Planning,22501,Rent,Duchy Of Cornwall,Moorwell �B� Incinerator ect 29 Sep 2018 � Mar 2019,2478365 ,881.85, 26/02/2019,881.85,881.85
51,600040,Waste Collection and Operations,Waste and Recycling,Infrastructure and Planning,22002,Electricity,Edf Energy Plc,EDF Meter Waste for February 2019,2472414 ,835.36, 28/02/2019,7.48,"1,000.93"
51,600040,Waste Collection and Operations,Waste and Recycling,Infrastructure and Planning,22002,Electricity,Edf Energy Plc,EDF Meter Waste for February 2019,2472414 ,835.36, 28/02/2019,827.88,"1,000.93"
51,600040,Waste Collection and Operations,Waste and Recycling,Infrastructure and Planning,22002,Electricity,Edf Energy Plc,EDF Meter Waste for February 2019,2472414 ,835.36, 28/02/2019,-835.36,"1,000.93"
51,600040,Waste Collection and Operations,Waste and Recycling,Infrastructure and Planning,22002,Electricity,Edf Energy Plc,EDF Meter Waste for February 2019,2472414 ,835.36, 28/02/2019,835.36,"1,000.93"
51,600040,Waste Collection and Operations,Waste and Recycling,Infrastructure and Planning,42501,Protective Clothing,Essential Safety Wear Ltd,"PPE for W&R and M&R, helemts gloves coat sweatshirt goggles",2484087 ,571.68, 28/02/2019,571.68,686.02
51,600040,Waste Collection and Operations,Waste and Recycling,Infrastructure and Planning,46119,Haulage Costs,Suez Recycling and Recovery UK Ltd (was Sita UK Ltd),Suez for February 2019,2474043 ,"17,242.10", 28/02/2019,"17,242.10","20,690.52"
51,600040,Waste Collection and Operations,Waste and Recycling,Infrastructure and Planning,49002,Miscellaneous Expenditure,Bryher Forge,Ted Langdon (Bryher Forge) Bryher waste management contract,2483175 ,875.00, 28/02/2019,875.00,875.00
51,600040,Waste Collection and Operations,Waste and Recycling,Infrastructure and Planning,21101,R&M - Buildings - Planned,Steve Oates t/a Doerwheal,Steve Oates Rebuild Skips Feb 24th,2488283 ,"1,561.66", 05/03/2019,"1,561.66","1,874.00"
51,600040,Waste Collection and Operations,Waste and Recycling,Infrastructure and Planning,41103,Equipment - Spares,Harrison Fork Trucks Ltd,Steering ram for fork truck,2486158 ,716.97, 05/03/2019,716.97,860.36
51,600040,Waste Collection and Operations,Waste and Recycling,Infrastructure and Planning,27011,Bin container rental,Sue Sherris,Invoice for storage container at content farm,2490039 ,"1,200.00", 07/03/2019,"1,200.00","1,200.00"
51,600040,Waste Collection and Operations,Waste and Recycling,Infrastructure and Planning,46119,Haulage Costs,Mr R F Legg,Legg - Waste Disposal St Agnes: March 2019,2490407 ,750.00, 07/03/2019,750.00,900.00
51,600040,Waste Collection and Operations,Waste and Recycling,Infrastructure and Planning,21101,R&M - Buildings - Planned,Steve Oates t/a Doerwheal,Steve Oates Rebuild Skips 28 Feb,2494766 ,600.00, 12/03/2019,600.00,720.00
51,600040,Waste Collection and Operations,Waste and Recycling,Infrastructure and Planning,41103,Equipment - Spares,Blue Machinery (Spares) Ltd,Parts for Doppstadt shredder,2491804 ,"1,449.68", 14/03/2019,"1,449.68","1,739.62"
51,600040,Waste Collection and Operations,Waste and Recycling,Infrastructure and Planning,41103,Equipment - Spares,Blue Machinery (Spares) Ltd,Parts for Doppstadt shredder,2491804 ,"1,449.68", 14/03/2019,"-1,409.68","1,739.62"
51,600040,Waste Collection and Operations,Waste and Recycling,Infrastructure and Planning,41103,Equipment - Spares,Blue Machinery (Spares) Ltd,Parts for Doppstadt shredder,2491804 ,"1,449.68", 14/03/2019,"1,409.68","1,739.62"
51,600040,Waste Collection and Operations,Waste and Recycling,Infrastructure and Planning,46118,Freight Costs,Isles Of Scilly Steamship Co,Isles of Scilly Travel Freight - Waste Recycling: March 2019,2499322 ,"2,508.75", 19/03/2019,"2,508.75","3,010.53"
51,600040,Waste Collection and Operations,Waste and Recycling,Infrastructure and Planning,41103,Equipment - Spares,Technical Engineering Services UK Ltd,Purchase of 3/4/6mm dura screens for the glass machine. including del from Technical Eng Services,2506241 ,"1,435.00", 21/03/2019,"1,435.00","1,722.00"
51,600040,Waste Collection and Operations,Waste and Recycling,Infrastructure and Planning,31602,Air Travel,RBS Commercial Card Division,15-02-2019|6459|TRAVEL TEAM|ISLES OF SCILLY SS CO|TR21 0LJ|4411|FLIGHT 247894|IOS_NSTINSON,2507927 ,"18,805.89", 22/03/2019,218.50,"19,035.00"
51,600040,Waste Collection and Operations,Waste and Recycling,Infrastructure and Planning,31602,Air Travel,RBS Commercial Card Division,15-02-2019|6459|TRAVEL TEAM|ISLES OF SCILLY SS CO|TR21 0LJ|4411|FLIGHT 247895|IOS_NSTINSON,2507927 ,"18,805.89", 22/03/2019,218.50,"19,035.00"
51,600040,Waste Collection and Operations,Waste and Recycling,Infrastructure and Planning,31602,Air Travel,RBS Commercial Card Division,31-01-2019|6459|TRAVEL TEAM|ISLES OF SCILLY SS CO|TR21 0LJ|4411|FLIGHT 245176|IOS_NSTINSON,2507927 ,"18,805.89", 22/03/2019,350.80,"19,035.00"
51,600040,Waste Collection and Operations,Waste and Recycling,Infrastructure and Planning,41103,Equipment - Spares,Blue Machinery (Spares) Ltd,Parts for Doppstadt shredder,2506333 ,883.29, 26/03/2019,883.29,"1,059.95"
51,600040,Waste Collection and Operations,Waste and Recycling,Infrastructure and Planning,49002,Miscellaneous Expenditure,Bryher Forge,Ted Langdon (Bryher Forge) Bryher waste management contract,2509689 ,875.00, 26/03/2019,875.00,875.00
51,600040,Waste Collection and Operations,Waste and Recycling,Infrastructure and Planning,57069,Waste Disposal Contracts - Private Contractors,St Martins Services,James Morton Waste Contract 2017/2018,2506246 ,"24,960.00", 26/03/2019,"24,960.00","29,952.00"
51,600042,Waste Recycling (Code Closed),Waste and Recycling,Infrastructure and Planning,22002,Electricity,Edf Energy Plc,Porthmellon Industrial centre,2415641 ,459.62, 03/01/2019,1.64,551.22
51,600042,Waste Recycling (Code Closed),Waste and Recycling,Infrastructure and Planning,22002,Electricity,Edf Energy Plc,Porthmellon Industrial centre,2415641 ,459.62, 03/01/2019,457.98,551.22
51,600042,Waste Recycling (Code Closed),Waste and Recycling,Infrastructure and Planning,57069,Waste Disposal Contracts - Private Contractors,Tresco Estate,Tresco Waste Contract,2432823 ,"1,597.22", 15/01/2019,"1,597.22","1,916.66"
51,600042,Waste Recycling (Code Closed),Waste and Recycling,Infrastructure and Planning,43506,Professional Fees - Legal,Currie & Brown UK Ltd,Pre Contract as per P. Chamings email to S Parsons and C Dryden dated 23/02/2017,2450069 ,560.00, 29/01/2019,560.00,672.00
51,600042,Waste Recycling (Code Closed),Waste and Recycling,Infrastructure and Planning,57069,Waste Disposal Contracts - Private Contractors,Suez Recycling and Recovery UK Ltd (was Sita UK Ltd),Suez: Waste & Recycling For Month of November 2018,2459792 ,"20,236.30", 19/02/2019,"20,236.30","24,283.56"
51,600042,Waste Recycling (Code Closed),Waste and Recycling,Infrastructure and Planning,57069,Waste Disposal Contracts - Private Contractors,Tresco Estate,Tresco Waste Contract,2463834 ,"1,597.22", 21/02/2019,"1,597.22","1,916.66"
51,600042,Waste Recycling (Code Closed),Waste and Recycling,Infrastructure and Planning,73414,Waste / Refuse Exp,Polystar Plastics Ltd,"Commercial Waste Sacks:
Bags, light grey with printed logo + bio-degradable25/roll 200/box 
Qty 10,000 bags @ 102/1000",2459672 ,"1,122.00", 21/02/2019,"1,122.00","1,346.40"
51,600042,Waste Recycling (Code Closed),Waste and Recycling,Infrastructure and Planning,57069,Waste Disposal Contracts - Private Contractors,Wheal Alfred Metals Recycling Ltd,IOS Light Iron,2465481 ,"1,600.00", 14/03/2019,-800.00,"1,920.00"
51,600042,Waste Recycling (Code Closed),Waste and Recycling,Infrastructure and Planning,57069,Waste Disposal Contracts - Private Contractors,Wheal Alfred Metals Recycling Ltd,IOS Light Iron,2465481 ,"1,600.00", 14/03/2019,800.00,"1,920.00"
51,600042,Waste Recycling (Code Closed),Waste and Recycling,Infrastructure and Planning,57069,Waste Disposal Contracts - Private Contractors,Wheal Alfred Metals Recycling Ltd,IOS Light Iron,2465481 ,"1,600.00", 14/03/2019,800.00,"1,920.00"
51,600042,Waste Recycling (Code Closed),Waste and Recycling,Infrastructure and Planning,57069,Waste Disposal Contracts - Private Contractors,Wheal Alfred Metals Recycling Ltd,IOS Light Iron,2465481 ,"1,600.00", 14/03/2019,800.00,"1,920.00"
51,600042,Waste Recycling (Code Closed),Waste and Recycling,Infrastructure and Planning,57069,Waste Disposal Contracts - Private Contractors,Wheal Alfred Metals Recycling Ltd,IOS Light Iron,2465481 ,"1,600.00", 14/03/2019,-800.00,"1,920.00"
51,600042,Waste Recycling (Code Closed),Waste and Recycling,Infrastructure and Planning,57069,Waste Disposal Contracts - Private Contractors,Wheal Alfred Metals Recycling Ltd,IOS Light Iron,2465481 ,"1,600.00", 14/03/2019,-800.00,"1,920.00"
51,600042,Waste Recycling (Code Closed),Waste and Recycling,Infrastructure and Planning,57069,Waste Disposal Contracts - Private Contractors,Wheal Alfred Metals Recycling Ltd,IOS Light Iron,2465481 ,"1,600.00", 14/03/2019,800.00,"1,920.00"
51,600042,Waste Recycling (Code Closed),Waste and Recycling,Infrastructure and Planning,57069,Waste Disposal Contracts - Private Contractors,Wheal Alfred Metals Recycling Ltd,IOS Light Iron,2465481 ,"1,600.00", 14/03/2019,800.00,"1,920.00"
51,600050,Water & Sewerage,Operational Services,Infrastructure and Planning,49002,Miscellaneous Expenditure,Tecker Ltd,Two man team to cover some of Bryher basic daily operations whilst Chris Potterton away,2434926 ,"3,792.00", 08/01/2019,"3,792.00","4,550.40"
51,600050,Water & Sewerage,Operational Services,Infrastructure and Planning,49002,Miscellaneous Expenditure,Oil & Water Supplies Ltd,ES4 12 19T 400V pump,2437093 ,"1,678.30", 10/01/2019,"1,678.30","2,013.96"
51,600050,Water & Sewerage,Operational Services,Infrastructure and Planning,49002,Miscellaneous Expenditure,Pfs (Helston) Ltd,"FS-430-S3 safety, suction delivery hose, PVC stub flanges, galvanised backing rings, PVC plain tee, PVC plain elbows, PVC plain bush, antibacterial hand wipes, 150mm MDPE, cutting discs, locks, motion lights",2437762 ,"2,313.79", 10/01/2019,"2,313.79","2,776.56"
51,600050,Water & Sewerage,Operational Services,Infrastructure and Planning,49002,Miscellaneous Expenditure,Pfs (Helston) Ltd,"Wear light kit, tie rod kit, tungsten carbon shaft bushing, heavy wear parts kit, bearing stage diffuser, works to wet ends",2437758 ,"2,954.00", 10/01/2019,"2,674.00","3,544.80"
51,600050,Water & Sewerage,Operational Services,Infrastructure and Planning,49002,Miscellaneous Expenditure,Pfs (Helston) Ltd,"Wear light kit, tie rod kit, tungsten carbon shaft bushing, heavy wear parts kit, bearing stage diffuser, works to wet ends",2437758 ,"2,954.00", 10/01/2019,280.00,"3,544.80"
51,600050,Water & Sewerage,Operational Services,Infrastructure and Planning,49002,Miscellaneous Expenditure,Pfs (Helston) Ltd,"Specialist assorted equipment required for various works. Specialist wire drill/grinder set, trolley sprayer, industrial pump sprayer, red oxide primer, IBC tank cover, duplex slings, buckle strap",2437764 ,"1,962.73", 10/01/2019,"1,962.73","2,355.28"
51,600050,Water & Sewerage,Operational Services,Infrastructure and Planning,49002,Miscellaneous Expenditure,Oil & Water Supplies Ltd,Water treatment chemicals SBS 40 (25kg drums) x 32,2438303 ,902.08, 10/01/2019,902.08,"1,082.50"
51,600050,Water & Sewerage,Operational Services,Infrastructure and Planning,49002,Miscellaneous Expenditure,Oil & Water Supplies Ltd,Water treatment chemicals Sodium Hydroxide IBC twaddle 60 with tamper proof seal,2439080 ,"1,387.00", 15/01/2019,"1,387.00","1,664.40"
51,600050,Water & Sewerage,Operational Services,Infrastructure and Planning,49002,Miscellaneous Expenditure,Terran Design Systems Ltd,"Install new cables and carry out electrical modifications to pump station for chemical dosing, testing safety PLC and UV systems after modifications. Testing cables and equipment with TDR",2443438 ,"2,525.00", 15/01/2019,"2,525.00","3,030.00"
51,600050,Water & Sewerage,Operational Services,Infrastructure and Planning,49002,Miscellaneous Expenditure,Pfs (Helston) Ltd,"25 kg bags Juraperle PH media for Bryher water treatment, Honda STH-50X 2"" semi trash petrol pump for Bryher water operations",2437766 ,"1,275.40", 22/01/2019,100.00,"1,530.48"
51,600050,Water & Sewerage,Operational Services,Infrastructure and Planning,49002,Miscellaneous Expenditure,Pfs (Helston) Ltd,"25 kg bags Juraperle PH media for Bryher water treatment, Honda STH-50X 2"" semi trash petrol pump for Bryher water operations",2437766 ,"1,275.40", 22/01/2019,"1,175.40","1,530.48"
51,600050,Water & Sewerage,Operational Services,Infrastructure and Planning,31601,Rail,RBS Commercial Card Division,11-12-2018|7369|CRAIG DRYDEN|WWW.GWR.COM|SN1 1HL|4112||,2450082 ,"10,070.35", 25/01/2019,-170.00,"10,375.06"
51,600050,Water & Sewerage,Operational Services,Infrastructure and Planning,31602,Air Travel,RBS Commercial Card Division,28-11-2018|6459|TRAVEL TEAM|ISLES OF SCILLY SS CO|TR21 0LJ|4411|RETURN FLIGHTS FOR CHRISTIAN WADE & JAMES SULLENS - 235396|IOS_NSTINSON,2450082 ,"10,070.35", 25/01/2019,425.60,"10,375.06"
51,600050,Water & Sewerage,Operational Services,Infrastructure and Planning,31602,Air Travel,RBS Commercial Card Division,28-11-2018|6459|TRAVEL TEAM|ISLES OF SCILLY SS CO|TR21 0LJ|4411|RETURN FLIGHTS SUE PENNISON - 235395|IOS_NSTINSON,2450082 ,"10,070.35", 25/01/2019,165.30,"10,375.06"
51,600050,Water & Sewerage,Operational Services,Infrastructure and Planning,31602,Air Travel,RBS Commercial Card Division,14-12-2018|6459|TRAVEL TEAM|ISLES OF SCILLY SS CO|TR21 0LJ|4411|RETURN FLIGHTS FOR MATTHEW STALKER - 237071|IOS_NSTINSON,2450082 ,"10,070.35", 25/01/2019,218.50,"10,375.06"
51,600050,Water & Sewerage,Operational Services,Infrastructure and Planning,31602,Air Travel,RBS Commercial Card Division,20-12-2018|6459|TRAVEL TEAM|ISLES OF SCILLY SS CO|TR21 0LJ|4411|RETURN FLIGHTS FOR MATT WEBOURNE - 237592|IOS_NSTINSON,2450082 ,"10,070.35", 25/01/2019,203.78,"10,375.06"
51,600050,Water & Sewerage,Operational Services,Infrastructure and Planning,22002,Electricity,British Gas,Line 189,2426129 ,"1,609.39", 05/02/2019,"1,609.39","1,931.26"
51,600050,Water & Sewerage,Operational Services,Infrastructure and Planning,22002,Electricity,British Gas,958418786 line403,2458161 ,698.58, 05/02/2019,698.58,838.29
51,600050,Water & Sewerage,Operational Services,Infrastructure and Planning,22002,Electricity,British Gas,973356819 line392,2458150 ,694.12, 05/02/2019,694.12,832.94
51,600050,Water & Sewerage,Operational Services,Infrastructure and Planning,22002,Electricity,British Gas,Line 265,2426091 ,542.89, 05/02/2019,542.89,651.46
51,600050,Water & Sewerage,Operational Services,Infrastructure and Planning,22002,Electricity,British Gas,Line 186,2426158 ,"7,979.71", 05/02/2019,"7,979.71","9,575.65"
51,600050,Water & Sewerage,Operational Services,Infrastructure and Planning,22002,Electricity,British Gas,957418631 line 443,2458235 ,"2,538.60", 05/02/2019,"2,538.60","3,046.32"
51,600050,Water & Sewerage,Operational Services,Infrastructure and Planning,22002,Electricity,British Gas,973356817 line394,2458149 ,"3,047.09", 05/02/2019,"-3,047.09","3,656.50"
51,600050,Water & Sewerage,Operational Services,Infrastructure and Planning,22002,Electricity,British Gas,973356817 line394,2458149 ,"3,047.09", 05/02/2019,"3,047.09","3,656.50"
51,600050,Water & Sewerage,Operational Services,Infrastructure and Planning,22002,Electricity,British Gas,973356817 line394,2458149 ,"3,047.09", 05/02/2019,"3,047.09","3,656.50"
51,600050,Water & Sewerage,Operational Services,Infrastructure and Planning,49002,Miscellaneous Expenditure,Oil & Water Supplies Ltd,"1000 litres of Sodium Hydroxide IBC twaddle 60, with tamper proof seal",2459024 ,"1,387.00", 05/02/2019,"1,387.00","1,664.40"
51,600050,Water & Sewerage,Operational Services,Infrastructure and Planning,49002,Miscellaneous Expenditure,Idexx Laboratories Limited,"98-12973-00 Colilert
98-06161-00 Anti foam vessels
2 x 98-21378-00 Quantitrays",2443819 ,903.00, 07/02/2019,26.00,"1,083.60"
51,600050,Water & Sewerage,Operational Services,Infrastructure and Planning,49002,Miscellaneous Expenditure,Idexx Laboratories Limited,"98-12973-00 Colilert
98-06161-00 Anti foam vessels
2 x 98-21378-00 Quantitrays",2443819 ,903.00, 07/02/2019,877.00,"1,083.60"
51,600050,Water & Sewerage,Operational Services,Infrastructure and Planning,21224,R&M - Responsive Grounds maintenance,C.G Ground Works And General Building,C.G Ground Works and General Building Water Leak Tregarthens Hill,2467852 ,701.36, 12/02/2019,701.36,701.36
51,600050,Water & Sewerage,Operational Services,Infrastructure and Planning,49002,Miscellaneous Expenditure,Kirton Water Treatment Services Ltd,"Water-Carry out specialist repairs to RO Unit high pressure manifolds.
Carry out pressure testing, make alterations to simplify manifolds to reduce future system shutdowns.",2467685 ,"1,697.50", 12/02/2019,"1,697.50","2,037.00"
51,600050,Water & Sewerage,Operational Services,Infrastructure and Planning,49002,Miscellaneous Expenditure,Pfs (Helston) Ltd,"Water-Brush set, 1/25 micron bag filters, wall brackets, plasson threaded riser, plasson fittings, cleaning equipment, UPVC fittings, ball valves, cleaner, UPVC glue, UPVC pipe, solvent cement, pressure gauges, hand wash system, bush/socket",2465483 ,"1,670.21", 12/02/2019,50.00,"2,004.23"
51,600050,Water & Sewerage,Operational Services,Infrastructure and Planning,49002,Miscellaneous Expenditure,Pfs (Helston) Ltd,"Water-Brush set, 1/25 micron bag filters, wall brackets, plasson threaded riser, plasson fittings, cleaning equipment, UPVC fittings, ball valves, cleaner, UPVC glue, UPVC pipe, solvent cement, pressure gauges, hand wash system, bush/socket",2465483 ,"1,670.21", 12/02/2019,"1,620.21","2,004.23"
51,600050,Water & Sewerage,Operational Services,Infrastructure and Planning,49002,Miscellaneous Expenditure,Pfs (Helston) Ltd,"Water-Softener salt tablets 25kg, plasson tee, plasson elbow, male end, HPPE water pipe, solvent cement, brush set, strimmer cord, s/s/ injection manifold, step drill set, plasson insert, pressure gauges, towelling/heavy duty rags",2465487 ,"1,664.26", 12/02/2019,100.00,"1,997.12"
51,600050,Water & Sewerage,Operational Services,Infrastructure and Planning,49002,Miscellaneous Expenditure,Pfs (Helston) Ltd,"Water-Softener salt tablets 25kg, plasson tee, plasson elbow, male end, HPPE water pipe, solvent cement, brush set, strimmer cord, s/s/ injection manifold, step drill set, plasson insert, pressure gauges, towelling/heavy duty rags",2465487 ,"1,664.26", 12/02/2019,"1,564.26","1,997.12"
51,600050,Water & Sewerage,Operational Services,Infrastructure and Planning,49002,Miscellaneous Expenditure,Pfs (Helston) Ltd,Maypole MP6819 Galvanised trailer (1.9 x 1.2),2465488 ,765.00, 12/02/2019,765.00,918.00
51,600050,Water & Sewerage,Operational Services,Infrastructure and Planning,49002,Miscellaneous Expenditure,Kirton Water Treatment Services Ltd,"Water - RO Unit High pressure membrane replacement.
Shutdown/isolate trains, remove and replace high pressure membranes, flush new membranes, recommence plant operation",2467698 ,"1,050.00", 12/02/2019,"1,050.00","1,260.00"
51,600050,Water & Sewerage,Operational Services,Infrastructure and Planning,49002,Miscellaneous Expenditure,Pfs (Helston) Ltd,Repair of specialist water extraction equipment,2465489 ,454.15, 12/02/2019,454.15,544.98
51,600050,Water & Sewerage,Operational Services,Infrastructure and Planning,49002,Miscellaneous Expenditure,Oil & Water Supplies Ltd,1250kgs Sodium Hydroxide Caustic Soda IBC with tamper proof seals,2465609 ,"1,387.00", 12/02/2019,"1,387.00","1,664.40"
51,600050,Water & Sewerage,Operational Services,Infrastructure and Planning,49002,Miscellaneous Expenditure,Terran Design Systems Ltd,"Water - cable containment, install 525 invertors, site works",2468512 ,"1,400.00", 12/02/2019,"1,400.00","1,680.00"
51,600050,Water & Sewerage,Operational Services,Infrastructure and Planning,49002,Miscellaneous Expenditure,Terran Design Systems Ltd,"Water - Intake pump wiring assistance, control panel works on valve monitoring, maintenance on RO Unit",2472605 ,"1,400.00", 14/02/2019,"1,400.00","1,680.00"
51,600050,Water & Sewerage,Operational Services,Infrastructure and Planning,25001,Fixtures and Fittings (attached to building only),SJ Andrew And Sons Ltd,"Stainless sheet, flat and welding rods for work at bio bubble",2474235 ,"1,069.92", 19/02/2019,"1,069.92","1,283.90"
51,600050,Water & Sewerage,Operational Services,Infrastructure and Planning,49002,Miscellaneous Expenditure,Oil & Water Supplies Ltd,Water - Uplift of RO Cleanse 24 (32 drums) carriage back to our depot clean drums and dispose of drums,2477585 ,836.00, 21/02/2019,836.00,"1,003.20"
51,600050,Water & Sewerage,Operational Services,Infrastructure and Planning,49002,Miscellaneous Expenditure,Terran Design Systems Ltd,Water - 3 x replacement hydro-static level probes for Telegraph reservoir including junction box,2478257 ,"1,589.00", 21/02/2019,"1,589.00","1,906.80"
51,600050,Water & Sewerage,Operational Services,Infrastructure and Planning,22501,Rent,Mrs Patricia Wales,RENT FOR 8 LITTLEPORTH,2480787 ,700.00, 26/02/2019,700.00,700.00
51,600050,Water & Sewerage,Operational Services,Infrastructure and Planning,49002,Miscellaneous Expenditure,Oil & Water Supplies Ltd,Water - Anti-scalent Pro Tek R.O Plus 11 (25kg drums) x 32,2483688 ,"3,222.40", 28/02/2019,"3,222.40","3,866.88"
51,600050,Water & Sewerage,Operational Services,Infrastructure and Planning,22002,Electricity,British Gas,INV 132395758 LINE 424,2490615 ,"7,929.40", 08/03/2019,"7,929.40","9,515.28"
51,600050,Water & Sewerage,Operational Services,Infrastructure and Planning,22002,Electricity,British Gas,INV 132395760 LINE 423,2490620 ,"1,508.84", 08/03/2019,"1,508.84","1,810.60"
51,600050,Water & Sewerage,Operational Services,Infrastructure and Planning,22002,Electricity,British Gas,INV 310711249 LINE 493,2490659 ,"1,194.96", 08/03/2019,"1,194.96","1,433.95"
51,600050,Water & Sewerage,Operational Services,Infrastructure and Planning,22002,Electricity,British Gas,INV 972380958 LINE 474,2490662 ,792.86, 08/03/2019,792.86,951.43
51,600050,Water & Sewerage,Operational Services,Infrastructure and Planning,46119,Haulage Costs,Richard Hand Haulage,Richard Hand Haulage for Feb 2019,2494659 ,723.74, 12/03/2019,723.74,868.49
51,600050,Water & Sewerage,Operational Services,Infrastructure and Planning,49002,Miscellaneous Expenditure,Oil & Water Supplies Ltd,Water- PRO Tek SBS40 25kg drums treatment chemical,2494812 ,"1,127.68", 12/03/2019,"1,127.68","1,353.22"
51,600050,Water & Sewerage,Operational Services,Infrastructure and Planning,49002,Miscellaneous Expenditure,Oil & Water Supplies Ltd,"Water - Extra treatment chemicals, 2 x PRO Tek Clean HC LBR Sodium Hypochlorite 250 kg drums",2494819 ,"1,020.26", 12/03/2019,"1,020.26","1,224.31"
51,600050,Water & Sewerage,Operational Services,Infrastructure and Planning,49002,Miscellaneous Expenditure,Oil & Water Supplies Ltd,Water - treatment chemicals Sodium Hydroxide IBC 60 twaddle Caustic Soda 1250 kgs with tamper proof seals,2493881 ,"1,387.00", 12/03/2019,"1,387.00","1,664.40"
51,600050,Water & Sewerage,Operational Services,Infrastructure and Planning,49002,Miscellaneous Expenditure,Adaptainer Ltd,"Water - New shipped once from factory 20ft container complete with lock box, airflow vents, in green, 5 year wind and watertight warranty plus delivery to Penzance",2488208 ,"2,695.00", 12/03/2019,"2,695.00","3,234.00"
51,600050,Water & Sewerage,Operational Services,Infrastructure and Planning,49002,Miscellaneous Expenditure,Kirton Water Treatment Services Ltd,"Water-Carry out specialist repairs to RO Unit high pressure manifolds.
Carry out pressure testing, make alterations to simplify manifolds to reduce future system shutdowns.",2491492 ,"1,697.50", 12/03/2019,"1,697.50","2,037.00"
51,600050,Water & Sewerage,Operational Services,Infrastructure and Planning,49002,Miscellaneous Expenditure,Oil & Water Supplies Ltd,Water - PRO Tek Anti-scalent R.O Plus 11 25kg drums x 32,2494813 ,"3,222.40", 12/03/2019,"3,222.40","3,866.88"
51,600050,Water & Sewerage,Operational Services,Infrastructure and Planning,49002,Miscellaneous Expenditure,Terran Design Systems Ltd,"Water - Replacement pH and ORP probes, carriage.",2493864 ,"1,106.00", 12/03/2019,"1,106.00","1,327.20"
51,600050,Water & Sewerage,Operational Services,Infrastructure and Planning,49002,Miscellaneous Expenditure,Kirton Water Treatment Services Ltd,"Water - RO Unit High pressure membrane replacement.
Shutdown/isolate trains, remove and replace high pressure membranes, flush new membranes, recommence plant operation",2491494 ,"1,050.00", 12/03/2019,"1,050.00","1,260.00"
51,600050,Water & Sewerage,Operational Services,Infrastructure and Planning,49002,Miscellaneous Expenditure,Oil & Water Supplies Ltd,"Water - Treatment chemicals - 1000 litres Sodium Hydroxide Caustic Soda IBC 1250kg, with tamper proof seals",2493946 ,836.00, 12/03/2019,836.00,"1,003.20"
51,600050,Water & Sewerage,Operational Services,Infrastructure and Planning,41118,Health & Safety Equipment,Ashfield Products Ltd,Ash Safety water safety equipment Feb 2019,2498747 ,"6,327.16", 14/03/2019,"6,327.16","7,592.59"
51,600050,Water & Sewerage,Operational Services,Infrastructure and Planning,49002,Miscellaneous Expenditure,Terran Design Systems Ltd,"Water - Replace service reservoir hydrostatic sensors, change out/calibrate pH/ORP sensors at service reservoir and R.O Unit, support membrane replacement, firmware update at three sites, rebuild scada PC and basic reload of scada database",2499450 ,"4,080.00", 14/03/2019,"4,080.00","4,896.00"
51,600050,Water & Sewerage,Operational Services,Infrastructure and Planning,49002,Miscellaneous Expenditure,Palintest Ltd,"PT983 x 1, PL404 x 2, PT595/5 x 1, PT 435 x 3, AP155 x 2  Plus delivery including remote area and hazardous chemicals",2482907 ,473.20, 19/03/2019,50.00,567.84
51,600050,Water & Sewerage,Operational Services,Infrastructure and Planning,49002,Miscellaneous Expenditure,Palintest Ltd,"PT983 x 1, PL404 x 2, PT595/5 x 1, PT 435 x 3, AP155 x 2  Plus delivery including remote area and hazardous chemicals",2482907 ,473.20, 19/03/2019,423.20,567.84
51,600050,Water & Sewerage,Operational Services,Infrastructure and Planning,46103,Hotel Expenses,Star Castle Hotel,Star Castle Hotel - Richard Challis 21-28th Feb Water,2494886 ,437.50, 21/03/2019,437.50,525.00
51,600050,Water & Sewerage,Operational Services,Infrastructure and Planning,46103,Hotel Expenses,Star Castle Hotel,Star Castle Hotel - Richard Challis 21-28th Feb Water,2494886 ,437.50, 21/03/2019,-525.00,525.00
51,600050,Water & Sewerage,Operational Services,Infrastructure and Planning,46103,Hotel Expenses,Star Castle Hotel,Star Castle Hotel - Richard Challis 21-28th Feb Water,2494886 ,437.50, 21/03/2019,525.00,525.00
51,600050,Water & Sewerage,Operational Services,Infrastructure and Planning,49002,Miscellaneous Expenditure,Oil & Water Supplies Ltd,Water - R.O Cleanse 24 25kg drums x 32,2494833 ,"2,150.08", 21/03/2019,"2,150.08","2,580.10"
51,600050,Water & Sewerage,Operational Services,Infrastructure and Planning,31602,Air Travel,RBS Commercial Card Division,05-02-2019|6459|TRAVEL TEAM|ISLES OF SCILLY SS CO|TR21 0LJ|4411|FLIGHT 246024|IOS_NSTINSON,2507927 ,"18,805.89", 22/03/2019,330.60,"19,035.00"
51,600050,Water & Sewerage,Operational Services,Infrastructure and Planning,31602,Air Travel,RBS Commercial Card Division,30-01-2019|7369|CRAIG DRYDEN|PREMIER INN|TR27 4PN|3811||,2507927 ,"18,805.89", 22/03/2019,84.00,"19,035.00"
51,600050,Water & Sewerage,Operational Services,Infrastructure and Planning,31602,Air Travel,RBS Commercial Card Division,01-02-2019|6459|TRAVEL TEAM|ISLES OF SCILLY SS CO|TR21 0LJ|4411|FLIGHT 248352|IOS_NSTINSON,2507927 ,"18,805.89", 22/03/2019,156.75,"19,035.00"
51,600050,Water & Sewerage,Operational Services,Infrastructure and Planning,31602,Air Travel,RBS Commercial Card Division,25-02-2019|6459|TRAVEL TEAM|ISLES OF SCILLY SS CO|TR21 0LJ|4411|FLIGHT 249737|IOS_NSTINSON,2507927 ,"18,805.89", 22/03/2019,338.20,"19,035.00"
51,600050,Water & Sewerage,Operational Services,Infrastructure and Planning,45302,Postal/Secure Courier,RBS Commercial Card Division,07-02-2019|7393|JULIAN WRIGHT|POST OFFICE COUNTER|TR21 0LR|9402|POSTAGE OF SCUSI SEAL FOR REPAIR|,2507927 ,"18,805.89", 22/03/2019,26.60,"19,035.00"
51,600050,Water & Sewerage,Operational Services,Infrastructure and Planning,46103,Hotel Expenses,RBS Commercial Card Division,12-02-2019|2872|RUSSELL SCHILD|THE WHITE HART HOT|EX20 1HD|5812|M TOMKINSON & J SMITH - WATER DEPARTMENT ACCOMMODATION|,2507927 ,"18,805.89", 22/03/2019,207.00,"19,035.00"
51,600050,Water & Sewerage,Operational Services,Infrastructure and Planning,46103,Hotel Expenses,RBS Commercial Card Division,25-02-2019|7393|JULIAN WRIGHT|THE WHITE HART HOT|EX20 1HD|5812|ACCOMMODATION FOR TWO PEOPLE FOR CONFINED SPACE TRAINING COURSE|,2507927 ,"18,805.89", 22/03/2019,234.60,"19,035.00"
51,600050,Water & Sewerage,Operational Services,Infrastructure and Planning,49002,Miscellaneous Expenditure,Oil & Water Supplies Ltd,"Water - Treatment chemicals - 1000 litres Sodium Hydroxide Caustic Soda IBC 1250kg, with tamper proof seals",2494808 ,"1,387.00", 26/03/2019,"1,387.00","1,664.40"
51,600050,Water & Sewerage,Operational Services,Infrastructure and Planning,49002,Miscellaneous Expenditure,Toot's Taxis,Taxis for water sampling Jan,2465529 ,545.50, 26/03/2019,519.50,545.50
51,600050,Water & Sewerage,Operational Services,Infrastructure and Planning,22002,Electricity,British Gas,INV 959442586 Line 604,2513719 ,680.68, 27/03/2019,680.68,816.81
51,600050,Water & Sewerage,Operational Services,Infrastructure and Planning,22002,Electricity,British Gas,Line 550,2513610 ,"6,645.28", 27/03/2019,"6,645.28","7,974.33"
51,600050,Water & Sewerage,Operational Services,Infrastructure and Planning,22002,Electricity,British Gas,INV 959442587 Line 604,2513730 ,474.13, 27/03/2019,474.13,568.95
51,600050,Water & Sewerage,Operational Services,Infrastructure and Planning,22002,Electricity,British Gas,Line 600 INV 965421574,2513705 ,"5,135.63", 27/03/2019,"5,135.63","6,162.75"
51,600050,Water & Sewerage,Operational Services,Infrastructure and Planning,22002,Electricity,British Gas,Line 563,2513732 ,992.89, 27/03/2019,992.89,"1,191.46"
51,600050,Water & Sewerage,Operational Services,Infrastructure and Planning,22002,Electricity,British Gas,Line 534,2513559 ,564.97, 27/03/2019,564.97,677.96
51,600050,Water & Sewerage,Operational Services,Infrastructure and Planning,12301,Training,South West Water Ltd,South West Water Training - Hatherleigh,2494151 ,776.00, 28/03/2019,776.00,931.20
51,600050,Water & Sewerage,Operational Services,Infrastructure and Planning,49002,Miscellaneous Expenditure,C.G Ground Works And General Building,Excavate in overland cables at three road track crossings,2506252 ,"1,037.50", 28/03/2019,"1,037.50","1,245.00"
51,600050,Water & Sewerage,Operational Services,Infrastructure and Planning,22002,Electricity,British Gas,962324765,2515788 ,494.89, 29/03/2019,494.89,593.86
51,600060,Airport,Operational Services,Infrastructure and Planning,21101,R&M - Buildings - Planned,Mr A Gilbert,"A GILBERT, NO.1 AIRPORT BUNGALOWS LOFT INSULATION",2431655 ,890.00, 03/01/2019,602.00,832.40
51,600060,Airport,Operational Services,Infrastructure and Planning,21101,R&M - Buildings - Planned,Mr A Gilbert,"A GILBERT, NO.1 AIRPORT BUNGALOWS LOFT INSULATION",2431655 ,890.00, 03/01/2019,288.00,832.40
51,600060,Airport,Operational Services,Infrastructure and Planning,22002,Electricity,Edf Energy Plc,ELECTRICITY,2410081 ,"2,501.65", 03/01/2019,"2,501.65","3,001.98"
51,600060,Airport,Operational Services,Infrastructure and Planning,43534,Licences,Civil Aviation Authority,line 60,2410750 ,698.80, 07/01/2019,698.80,698.80
51,600060,Airport,Operational Services,Infrastructure and Planning,43534,Licences,Civil Aviation Authority,linwe 7,2410749 ,698.80, 07/01/2019,698.80,698.80
51,600060,Airport,Operational Services,Infrastructure and Planning,43534,Licences,Civil Aviation Authority,line 132,2410752 ,698.80, 07/01/2019,698.80,698.80
51,600060,Airport,Operational Services,Infrastructure and Planning,43534,Licences,Civil Aviation Authority,line 264,2410757 ,698.80, 07/01/2019,698.80,698.80
51,600060,Airport,Operational Services,Infrastructure and Planning,43544,Student Tuition Fees,Civil Aviation Authority,,2410776 ,698.80, 07/01/2019,698.80,698.80
51,600060,Airport,Operational Services,Infrastructure and Planning,21110,R&M - Electrical - Planned,CU Phosco Lighting Ltd,"CU Phosoco Lighting 
Winch, D/D, Delivery",2430789 ,677.06, 08/01/2019,677.06,812.47
51,600060,Airport,Operational Services,Infrastructure and Planning,22001,Heating Oil,Sibleys Fuel & Marine Services,"Oil for Airport Boiler & Hot Rig
1st April 2018 - 31st March 2019",2435312 ,"1,386.18", 08/01/2019,90.18,"1,469.02"
51,600060,Airport,Operational Services,Infrastructure and Planning,22001,Heating Oil,Sibleys Fuel & Marine Services,"Oil for Airport Boiler & Hot Rig
1st April 2018 - 31st March 2019",2435312 ,"1,386.18", 08/01/2019,"-1,386.18","1,469.02"
51,600060,Airport,Operational Services,Infrastructure and Planning,22001,Heating Oil,Sibleys Fuel & Marine Services,"Oil for Airport Boiler & Hot Rig
1st April 2018 - 31st March 2019",2435312 ,"1,386.18", 08/01/2019,"1,386.18","1,469.02"
51,600060,Airport,Operational Services,Infrastructure and Planning,22001,Heating Oil,Sibleys Fuel & Marine Services,"Oil for Airport Boiler & Hot Rig
1st April 2018 - 31st March 2019",2435312 ,"1,386.18", 08/01/2019,"1,296.00","1,469.02"
51,600060,Airport,Operational Services,Infrastructure and Planning,31102,Vehicle Repair and Maintenance,David Parr Engineering,D Parr Engineering   All Airport vehicles breakdown & repair as required @ 38.00 per hr  1st April 2018 - 31st March 2019,2439613 ,419.59, 15/01/2019,419.59,503.51
51,600060,Airport,Operational Services,Infrastructure and Planning,31102,Vehicle Repair and Maintenance,David Parr Engineering,"D Parr Engineering Contract
All Airport Vehicles & Machinery
1st April 2018 - 31st March 2019",2439396 ,"1,160.00", 15/01/2019,"1,160.00","1,392.00"
51,600060,Airport,Operational Services,Infrastructure and Planning,41102,Equipment Rental,Servicom (High Tech) Ltd,"Hire and Servicing of Airport UHF radios
1st April 2018 - 31st March 2019",2435208 ,778.16, 15/01/2019,778.16,933.78
51,600060,Airport,Operational Services,Infrastructure and Planning,21110,R&M - Electrical - Planned,T.A Hicks Electrical Ltd,Airport Caf� replacing element and fan.,2447241 ,630.34, 17/01/2019,150.00,726.41
51,600060,Airport,Operational Services,Infrastructure and Planning,21110,R&M - Electrical - Planned,T.A Hicks Electrical Ltd,Airport Caf� replacing element and fan.,2447241 ,630.34, 17/01/2019,480.34,726.41
51,600060,Airport,Operational Services,Infrastructure and Planning,21110,R&M - Electrical - Planned,T.A Hicks Electrical Ltd,Airport Caf� replacing element and fan.,2447241 ,630.34, 17/01/2019,-630.34,726.41
51,600060,Airport,Operational Services,Infrastructure and Planning,21110,R&M - Electrical - Planned,T.A Hicks Electrical Ltd,Airport Caf� replacing element and fan.,2447241 ,630.34, 17/01/2019,630.34,726.41
51,600060,Airport,Operational Services,Infrastructure and Planning,22002,Electricity,Edf Energy Plc,ELECTRICITY,2435257 ,"2,443.11", 17/01/2019,"2,443.11","2,931.73"
51,600060,Airport,Operational Services,Infrastructure and Planning,28001,Maintenance of Grounds,Matthew Rogers,Matthew Rogers Drainage Works From Runways,2439217 ,"4,230.00", 17/01/2019,"4,230.00","4,230.00"
51,600060,Airport,Operational Services,Infrastructure and Planning,41104,Equipment & Plant - Direct Purchase,Iavna Ltd,"IAVNA - Electrical Supplies 
1st April 2018 - 31st March 2019",2427889 ,794.50, 17/01/2019,794.50,953.40
51,600060,Airport,Operational Services,Infrastructure and Planning,31102,Vehicle Repair and Maintenance,David Parr Engineering,"D Parr Engineering Contract
All Airport Vehicles & Machinery
1st April 2018 - 31st March 2019",2448461 ,"1,160.00", 22/01/2019,"1,160.00","1,392.00"
51,600060,Airport,Operational Services,Infrastructure and Planning,31602,Air Travel,RBS Commercial Card Division,19-12-2018|6459|TRAVEL TEAM|WWW.ISLEOFSCILLY-TRAVE|TR21 0LJ|4411|RETURN FLIGHT FOR G GLENN - 237430|IOS_NSTINSON,2450082 ,"10,070.35", 25/01/2019,170.00,"10,375.06"
51,600060,Airport,Operational Services,Infrastructure and Planning,31602,Air Travel,RBS Commercial Card Division,19-12-2018|6459|TRAVEL TEAM|WWW.ISLEOFSCILLY-TRAVE|TR21 0LJ|4411|RETURN FLIGHTS FOR M MARKS - 237440|IOS_NSTINSON,2450082 ,"10,070.35", 25/01/2019,214.50,"10,375.06"
51,600060,Airport,Operational Services,Infrastructure and Planning,31602,Air Travel,RBS Commercial Card Division,19-12-2018|6459|TRAVEL TEAM|WWW.ISLEOFSCILLY-TRAVE|TR21 0LJ|4411|RETURN FLIGHTS FOR M MARKS - 237441|IOS_NSTINSON,2450082 ,"10,070.35", 25/01/2019,214.50,"10,375.06"
51,600060,Airport,Operational Services,Infrastructure and Planning,31602,Air Travel,RBS Commercial Card Division,19-12-2018|6459|TRAVEL TEAM|WWW.ISLEOFSCILLY-TRAVE|TR21 0LJ|4411|RETURN FLIGHTS FOR M MARKS - 237442|IOS_NSTINSON,2450082 ,"10,070.35", 25/01/2019,230.00,"10,375.06"
51,600060,Airport,Operational Services,Infrastructure and Planning,41103,Equipment - Spares,RBS Commercial Card Division,04-12-2018|2872|RUSSELL SCHILD|WWW.SHREDDERREPAIR|LU6 1EF|5943|AIRPORT OFFICES SHREDDER REPAIR PARTS|IOS_TLEIJSER,2450082 ,"10,070.35", 25/01/2019,34.94,"10,375.06"
51,600060,Airport,Operational Services,Infrastructure and Planning,41108,Audio/Visual Equipment,RBS Commercial Card Division,12-12-2018|2872|RUSSELL SCHILD|AMZN MKTP UK M23D54CW4|0|5942|AIRPORT EXTERNAL CHRISTMAS LIGHTS REPLACEMENT|IOS_TLEIJSER,2450082 ,"10,070.35", 25/01/2019,43.98,"10,375.06"
51,600060,Airport,Operational Services,Infrastructure and Planning,41201,Office Furniture,RBS Commercial Card Division,28-11-2018|2872|RUSSELL SCHILD|AMZN MKTP UK M00SS6L74|0|5942|ATC VCR ATCO CHAIR REPAIR LEGS|IOS_TLEIJSER,2450082 ,"10,070.35", 25/01/2019,17.90,"10,375.06"
51,600060,Airport,Operational Services,Infrastructure and Planning,46103,Hotel Expenses,RBS Commercial Card Division,20-12-2018|2872|RUSSELL SCHILD|PREMIER INN|TR27 4PN|3811|ACCOMMODATION EN-ROUTE TEESSIDE FIRE COLLEGE|IOS_TLEIJSER,2450082 ,"10,070.35", 25/01/2019,56.67,"10,375.06"
51,600060,Airport,Operational Services,Infrastructure and Planning,43534,Licences,Civil Aviation Authority,,2458319 ,698.80, 01/02/2019,698.80,698.80
51,600060,Airport,Operational Services,Infrastructure and Planning,21110,R&M - Electrical - Planned,Cornwall Refrigeration solutions Ltd,"Matt Marks 
Airport Ground Lighting Repairs & Maintenance 1st April 2018 - 31st March 2019",2468354 ,"1,420.00", 12/02/2019,"1,420.00","1,704.00"
51,600060,Airport,Operational Services,Infrastructure and Planning,89204,Design Fees,NU Approach,Supply of Garmin Valiation database for LPV Instrument Approach,2472249 ,"6,588.00", 12/02/2019,"6,588.00","6,588.00"
51,600060,Airport,Operational Services,Infrastructure and Planning,21101,R&M - Buildings - Planned,Record UK,Record Doors Parts for door repairs 1st April 2018 - 31st March 2019,2450040 ,"1,464.20", 14/02/2019,"1,464.20","1,757.04"
51,600060,Airport,Operational Services,Infrastructure and Planning,41103,Equipment - Spares,Record UK,Record Doors UK,2458943 ,608.00, 14/02/2019,608.00,729.60
51,600060,Airport,Operational Services,Infrastructure and Planning,41104,Equipment & Plant - Direct Purchase,Boc Ltd,Line No 196 3048905692,2473260 ,556.80, 15/02/2019,556.80,668.16
51,600060,Airport,Operational Services,Infrastructure and Planning,41104,Equipment & Plant - Direct Purchase,Boc Ltd,Line No 487 3050752821,2473248 ,445.03, 15/02/2019,445.03,534.04
51,600060,Airport,Operational Services,Infrastructure and Planning,43534,Licences,Civil Aviation Authority,LINE 408,2473392 ,698.80, 15/02/2019,698.80,698.80
51,600060,Airport,Operational Services,Infrastructure and Planning,41102,Equipment Rental,Servicom (High Tech) Ltd,"Hire and Servicing of Airport UHF radios
1st April 2018 - 31st March 2019",2463969 ,778.16, 21/02/2019,778.16,933.78
51,600060,Airport,Operational Services,Infrastructure and Planning,31602,Air Travel,RBS Commercial Card Division,25-01-2019|6459|TRAVEL TEAM|WWW.ISLEOFSCILLY-TRAVE|TR21 0LJ|4411|RETURN FLIGHT FOR A HICHENS - 244017|IOS_NSTINSON,2478449 ,"18,207.67", 22/02/2019,160.00,"19,082.78"
51,600060,Airport,Operational Services,Infrastructure and Planning,31602,Air Travel,RBS Commercial Card Division,21-01-2019|6459|TRAVEL TEAM|WWW.ISLEOFSCILLY-TRAVE|TR21 0LJ|4411|RETURN FLIGHTS FOR G TIBBS - 243073|IOS_NSTINSON,2478449 ,"18,207.67", 22/02/2019,181.00,"19,082.78"
51,600060,Airport,Operational Services,Infrastructure and Planning,31602,Air Travel,RBS Commercial Card Division,24-01-2019|6459|TRAVEL TEAM|WWW.ISLEOFSCILLY-TRAVE|TR21 0LJ|4411|RETURN FLIGHTS FOR I HAMILTON & B WEBBER - 243780|IOS_NSTINSON,2478449 ,"18,207.67", 22/02/2019,460.00,"19,082.78"
51,600060,Airport,Operational Services,Infrastructure and Planning,41103,Equipment - Spares,RBS Commercial Card Division,26-01-2019|2872|RUSSELL SCHILD|PAYPAL  ANEELAASHRA|TW91EH|5999|AIRPORT SHREDDER PARTS|,2478449 ,"18,207.67", 22/02/2019,49.99,"19,082.78"
51,600060,Airport,Operational Services,Infrastructure and Planning,41103,Equipment - Spares,RBS Commercial Card Division,14-01-2019|2872|RUSSELL SCHILD|AMAZON.CO.UK MB8WU3MM4|L2338|5969|SPECIALIST BULBS FOR LIGHT FITTINGS|,2478449 ,"18,207.67", 22/02/2019,10.41,"19,082.78"
51,600060,Airport,Operational Services,Infrastructure and Planning,41103,Equipment - Spares,RBS Commercial Card Division,16-01-2019|2872|RUSSELL SCHILD|RS COMPONENTS|NN179RS|5065|AGL PAPI BLACK HEAT RESISTORS|,2478449 ,"18,207.67", 22/02/2019,31.90,"19,082.78"
51,600060,Airport,Operational Services,Infrastructure and Planning,41103,Equipment - Spares,RBS Commercial Card Division,19-01-2019|2872|RUSSELL SCHILD|AMZN MKTP UK MB8SQ06M4|0|5942|AIRPORT CLEANING SUPPLIES - PART OF BULK ORDER|,2478449 ,"18,207.67", 22/02/2019,7.08,"19,082.78"
51,600060,Airport,Operational Services,Infrastructure and Planning,41120,Catering Equipment,RBS Commercial Card Division,13-01-2019|2872|RUSSELL SCHILD|AO RETAIL LIMITED|BL6 6QQ|5722|COOKER FOR 2 AIRPORT BUNGALOWS|,2478449 ,"18,207.67", 22/02/2019,249.17,"19,082.78"
51,600060,Airport,Operational Services,Infrastructure and Planning,41302,Materials,RBS Commercial Card Division,24-01-2019|2872|RUSSELL SCHILD|FLEXIBLE & SPECIAL|AL4 0JX|5065|FLOOD LIGHT CABLE|,2478449 ,"18,207.67", 22/02/2019,263.32,"19,082.78"
51,600060,Airport,Operational Services,Infrastructure and Planning,41304,Cleaning & Domestic Materials,RBS Commercial Card Division,20-01-2019|2872|RUSSELL SCHILD|AMZN MKTP UK MB5A96D74|0|5942|CLEANING EQUIPMENT SPARES PART OF BULK ORDER|,2478449 ,"18,207.67", 22/02/2019,52.08,"19,082.78"
51,600060,Airport,Operational Services,Infrastructure and Planning,41304,Cleaning & Domestic Materials,RBS Commercial Card Division,20-01-2019|2872|RUSSELL SCHILD|AMZN MKTP UK MB7YX4DQ4|0|5942|AIRPORT CLEANING SUPPLIES (PART OF MULTI ORDER)|,2478449 ,"18,207.67", 22/02/2019,28.95,"19,082.78"
51,600060,Airport,Operational Services,Infrastructure and Planning,41304,Cleaning & Domestic Materials,RBS Commercial Card Division,22-01-2019|2872|RUSSELL SCHILD|AMZN MKTP UK MB3E712X4|0|5942|AIRPORT CLEANING PRODUCT|,2478449 ,"18,207.67", 22/02/2019,20.82,"19,082.78"
51,600060,Airport,Operational Services,Infrastructure and Planning,43532,Professional Fees - Other,RBS Commercial Card Division,16-01-2019|2872|RUSSELL SCHILD|DUCHY HOSPITAL|TR1 3UP|8062|STEPHEN LANE MEDICAL|,2478449 ,"18,207.67", 22/02/2019,150.00,"19,082.78"
51,600060,Airport,Operational Services,Infrastructure and Planning,46103,Hotel Expenses,RBS Commercial Card Division,05-01-2019|2872|RUSSELL SCHILD|PREMIER INN|DL1 4PJ|3811|FIRE SERVICE COLLEGE 1 NIGHT ACCOMMODATION DUE TO COLLEGE CAMPUS NOT OPEN UNTIL SUNDAY|,2478449 ,"18,207.67", 22/02/2019,63.75,"19,082.78"
51,600060,Airport,Operational Services,Infrastructure and Planning,46103,Hotel Expenses,RBS Commercial Card Division,10-01-2019|2872|RUSSELL SCHILD|MERCHANT HOUSE|TR1 2DP|7011|ACCOMMODATION FOR FIRST AID COURSE - STEVE CARR|,2478449 ,"18,207.67", 22/02/2019,165.00,"19,082.78"
51,600060,Airport,Operational Services,Infrastructure and Planning,46103,Hotel Expenses,RBS Commercial Card Division,10-01-2019|2872|RUSSELL SCHILD|MERCHANT HOUSE|TR1 2DP|7011|ACCOMMODATION FOR FIRST AID COURSE - KATIE GRAHAM|,2478449 ,"18,207.67", 22/02/2019,165.00,"19,082.78"
51,600060,Airport,Operational Services,Infrastructure and Planning,46103,Hotel Expenses,RBS Commercial Card Division,15-01-2019|2872|RUSSELL SCHILD|COUNTY ARMS|TR1 3PY|7011|GERALD GLENN - CAA EU CLASS 3 MEDICAL ACCOMMODATION|,2478449 ,"18,207.67", 22/02/2019,82.50,"19,082.78"
51,600060,Airport,Operational Services,Infrastructure and Planning,46103,Hotel Expenses,RBS Commercial Card Division,21-01-2019|2872|RUSSELL SCHILD|PREMIER INN|PL14 3PR|3811|LGV COURSE ACCOMMODATION KATIE GRAHAM|,2478449 ,"18,207.67", 22/02/2019,283.71,"19,082.78"
51,600060,Airport,Operational Services,Infrastructure and Planning,46103,Hotel Expenses,RBS Commercial Card Division,24-01-2019|2872|RUSSELL SCHILD|THE LONG BOAT INN|TR18 2HZ|7011|COURSE ACCOMMODATION MURRAY GUY|,2478449 ,"18,207.67", 22/02/2019,48.75,"19,082.78"
51,600060,Airport,Operational Services,Infrastructure and Planning,46103,Hotel Expenses,RBS Commercial Card Division,24-01-2019|2872|RUSSELL SCHILD|PREMIER INN|PL14 3PR|3811|LGV COURSE ACCOMMODATION MURRAY GUY|,2478449 ,"18,207.67", 22/02/2019,286.62,"19,082.78"
51,600060,Airport,Operational Services,Infrastructure and Planning,21102,R&M - Painting - Planned,Wright Construction,Wright Construction Decorate arrival and departure areas,2478263 ,"2,250.00", 26/02/2019,"2,250.00","2,700.00"
51,600060,Airport,Operational Services,Infrastructure and Planning,41302,Materials,Copperchase Ltd,Copperchase Hardware Repair & CPT Incoterms,2486069 ,"1,761.36", 05/03/2019,"1,761.36","2,113.63"
51,600060,Airport,Operational Services,Infrastructure and Planning,41308,Construction Materials,Pernic Forge,Pernic Forge - smoking area screen for St Mary's Airport,2489938 ,"4,000.00", 07/03/2019,"4,000.00","4,800.00"
51,600060,Airport,Operational Services,Infrastructure and Planning,89155,Double Glazing - CHL ENTITY 33 USE ONLY,Mr A Gilbert,Anthony Gilbert 1 Airport Bungalows Replace Windows,2489895 ,"4,680.00", 07/03/2019,"2,480.00","4,240.00"
51,600060,Airport,Operational Services,Infrastructure and Planning,89155,Double Glazing - CHL ENTITY 33 USE ONLY,Mr A Gilbert,Anthony Gilbert 1 Airport Bungalows Replace Windows,2489895 ,"4,680.00", 07/03/2019,"2,200.00","4,240.00"
51,600060,Airport,Operational Services,Infrastructure and Planning,22002,Electricity,British Gas,INV 132395759 LINE 422,2490624 ,443.53, 08/03/2019,443.53,532.23
51,600060,Airport,Operational Services,Infrastructure and Planning,22001,Heating Oil,Sibleys Fuel & Marine Services,"Oil for Airport Boiler & Hot Rig
1st April 2018 - 31st March 2019",2493898 ,"1,371.00", 12/03/2019,"1,256.00","1,456.80"
51,600060,Airport,Operational Services,Infrastructure and Planning,31102,Vehicle Repair and Maintenance,David Parr Engineering,"D Parr Engineering Contract
All Airport Vehicles & Machinery
1st April 2018 - 31st March 2019",2493836 ,"1,160.00", 12/03/2019,"1,160.00","1,392.00"
51,600060,Airport,Operational Services,Infrastructure and Planning,31204,Derv Purchases,Sibleys Fuel & Marine Services,Airport & Airport Fire vehicles fuel 1st April 2018 - 31st March 2019,2493898 ,"1,371.00", 12/03/2019,115.00,"1,456.80"
51,600060,Airport,Operational Services,Infrastructure and Planning,45206,IT Software Purchases,Joint Application Development Enterprises Ltd,Jade Bespoke Web Application Solution Development,2491712 ,"2,250.00", 12/03/2019,"2,250.00","2,700.00"
51,600060,Airport,Operational Services,Infrastructure and Planning,45206,IT Software Purchases,Joint Application Development Enterprises Ltd,Jade Bespoke Web Application Solution Development,2491712 ,"2,250.00", 12/03/2019,"-2,700.00","2,700.00"
51,600060,Airport,Operational Services,Infrastructure and Planning,45206,IT Software Purchases,Joint Application Development Enterprises Ltd,Jade Bespoke Web Application Solution Development,2491712 ,"2,250.00", 12/03/2019,"2,700.00","2,700.00"
51,600060,Airport,Operational Services,Infrastructure and Planning,21110,R&M - Electrical - Planned,Cornwall Refrigeration solutions Ltd,"Matt Marks 
Airport Ground Lighting Repairs & Maintenance 1st April 2018 - 31st March 2019",2499500 ,"1,800.00", 14/03/2019,"1,800.00","2,160.00"
51,600060,Airport,Operational Services,Infrastructure and Planning,31102,Vehicle Repair and Maintenance,David Parr Engineering,D Parr Engineering   All Airport vehicles breakdown & repair as required @ 38.00 per hr  1st April 2018 - 31st March 2019,2499505 ,"4,494.70", 14/03/2019,"4,494.70","5,393.64"
51,600060,Airport,Operational Services,Infrastructure and Planning,31102,Vehicle Repair and Maintenance,David Parr Engineering,D Parr Engineering   All Airport vehicles breakdown & repair as required @ 38.00 per hr  1st April 2018 - 31st March 2019,2499502 ,589.00, 14/03/2019,589.00,706.80
51,600060,Airport,Operational Services,Infrastructure and Planning,49002,Miscellaneous Expenditure,Serco Ltd,"IFTC Courses: 07/01/19
J, Johnson, Supervisor Reval
A. Watts, Firefighter Reval",2499585 ,"2,450.00", 14/03/2019,"2,450.00","2,940.00"
51,600060,Airport,Operational Services,Infrastructure and Planning,49002,Miscellaneous Expenditure,Serco Ltd,"IFTC Courses: 07/01/19
J, Johnson, Supervisor Reval
A. Watts, Firefighter Reval",2499583 ,"2,450.00", 14/03/2019,"2,450.00","2,940.00"
51,600060,Airport,Operational Services,Infrastructure and Planning,27001,Contract Cleaning,R & M Cleaners,R&M Cleaners Deep Clean Airport,2502855 ,"2,500.00", 19/03/2019,"2,500.00","3,000.00"
51,600060,Airport,Operational Services,Infrastructure and Planning,31102,Vehicle Repair and Maintenance,David Parr Engineering,"D Parr Engineering Contract
All Airport Vehicles & Machinery
1st April 2018 - 31st March 2019",2503384 ,"1,160.00", 19/03/2019,"1,160.00","1,392.00"
51,600060,Airport,Operational Services,Infrastructure and Planning,41102,Equipment Rental,Servicom (High Tech) Ltd,"Hire and Servicing of Airport UHF radios
1st April 2018 - 31st March 2019",2491718 ,778.16, 19/03/2019,778.16,933.78
51,600060,Airport,Operational Services,Infrastructure and Planning,12401,Recruitment Advertising - Job,Guardian News & Media Ltd,Guardian Jobs - ATCO,2488358 ,850.00, 21/03/2019,850.00,"1,020.00"
51,600060,Airport,Operational Services,Infrastructure and Planning,12502,Medical Fees,RBS Commercial Card Division,19-02-2019|2872|RUSSELL SCHILD|DUCHY HOSPITAL|TR1 3UP|8062|G GLENN EU CLASS 3 MEDICAL TEST|,2507927 ,"18,805.89", 22/03/2019,200.00,"19,035.00"
51,600060,Airport,Operational Services,Infrastructure and Planning,27003,Refuse Collection,RBS Commercial Card Division,22-02-2019|2872|RUSSELL SCHILD|AMZN MKTP UK MI7R71U14|L2338|5942|AIRPORT CAF� GREASE TRAP DISPOSAL BARREL|,2507927 ,"18,805.89", 22/03/2019,14.16,"19,035.00"
51,600060,Airport,Operational Services,Infrastructure and Planning,31602,Air Travel,RBS Commercial Card Division,19-02-2019|6459|TRAVEL TEAM|WWW.ISLEOFSCILLY-TRAVE|TR21 0LJ|4411|FLIGHT|IOS_NSTINSON,2507927 ,"18,805.89", 22/03/2019,169.00,"19,035.00"
51,600060,Airport,Operational Services,Infrastructure and Planning,31602,Air Travel,RBS Commercial Card Division,05-02-2019|6459|TRAVEL TEAM|WWW.ISLEOFSCILLY-TRAVE|TR21 0LJ|4411|FLIGHT 246076|IOS_NSTINSON,2507927 ,"18,805.89", 22/03/2019,410.00,"19,035.00"
51,600060,Airport,Operational Services,Infrastructure and Planning,41103,Equipment - Spares,RBS Commercial Card Division,31-01-2019|2872|RUSSELL SCHILD|RS COMPONENTS|NN179RS|5065|FLOOD LIGHTING PARTS|,2507927 ,"18,805.89", 22/03/2019,16.70,"19,035.00"
51,600060,Airport,Operational Services,Infrastructure and Planning,41109,R&M of Plant & Equipment,RBS Commercial Card Division,01-02-2019|2872|RUSSELL SCHILD|AMZN MKTP UK MI2UJ3ZF4|L2338|5942|FLOOD LIGHTING PARTS|,2507927 ,"18,805.89", 22/03/2019,29.29,"19,035.00"
51,600060,Airport,Operational Services,Infrastructure and Planning,41109,R&M of Plant & Equipment,RBS Commercial Card Division,31-01-2019|2872|RUSSELL SCHILD|RS COMPONENTS|NN179RS|5065|AGL COMPONENTS|,2507927 ,"18,805.89", 22/03/2019,138.33,"19,035.00"
51,600060,Airport,Operational Services,Infrastructure and Planning,45103,Line Rental & Installation,RBS Commercial Card Division,13-02-2019|2872|RUSSELL SCHILD|BT PAY BY PHONE|DH98 1 BT|4814|BT TELEPHONE BILL|,2507927 ,"18,805.89", 22/03/2019,50.79,"19,035.00"
51,600060,Airport,Operational Services,Infrastructure and Planning,46103,Hotel Expenses,RBS Commercial Card Division,"20-02-2019|2872|RUSSELL SCHILD|TRAVELODGE|OX9 3AT|3615|S BAXTER - FIRST AID COURSE ACCOMMODATION - REFUND OF 94 DUE, FOLLOWING BOOKING CHANGE FROM 5 TO 3 NIGHTS.|",2507927 ,"18,805.89", 22/03/2019,174.58,"19,035.00"
51,600060,Airport,Operational Services,Infrastructure and Planning,46103,Hotel Expenses,RBS Commercial Card Division,03-02-2019|2872|RUSSELL SCHILD|MANNINGS HOTEL|TR1 2QB|7011|K. GRAHAM & M. GUY COURSE ACCOMMODATION|,2507927 ,"18,805.89", 22/03/2019,125.00,"19,035.00"
51,600060,Airport,Operational Services,Infrastructure and Planning,46103,Hotel Expenses,RBS Commercial Card Division,09-02-2019|2872|RUSSELL SCHILD|MANNINGS HOTEL|TR1 2QB|7011|K. GRAHAM COURSE ACCOMMODATION|,2507927 ,"18,805.89", 22/03/2019,67.50,"19,035.00"
51,600060,Airport,Operational Services,Infrastructure and Planning,46103,Hotel Expenses,RBS Commercial Card Division,25-02-2019|2872|RUSSELL SCHILD|TRAVELODGE|OX9 3AT|3615|REFUND S BAXTER ACCOMMODATION (ORIGINAL PURCHASE TRANSACTION 20/02/19)|,2507927 ,"18,805.89", 22/03/2019,-75.83,"19,035.00"
51,600060,Airport,Operational Services,Infrastructure and Planning,25002,Security Equipment,Keysecure Safety Equipment Ltd,key Secure Safety Equipment Airport Annual April 18-MArch 19,2513815 ,"1,019.70", 28/03/2019,"1,019.70","1,019.70"
51,600060,Airport,Operational Services,Infrastructure and Planning,45103,Line Rental & Installation,Systems Interface Ltd,"Systems Interface LTD. NDB Support Service 
For St Mary's Airport 1st April 2019 - 31st March 2020",2513788 ,"3,284.00", 28/03/2019,"3,284.00","3,940.80"
51,600060,Airport,Operational Services,Infrastructure and Planning,89403,Insurance Capital Costs,Hayward Aviation,Hayward Aviation 31st March 2019 30th March  2020 Liability Insurance.,2513418 ,"8,328.80", 28/03/2019,"8,328.80","8,328.80"
51,600060,Airport,Operational Services,Infrastructure and Planning,89403,Insurance Capital Costs,Hayward Aviation,Hayward Aviation 31st March 2019 -30th March 2020 Aviaiton Traders Insurance,2513421 ,"25,575.95", 28/03/2019,"25,575.95","25,575.95"
51,600100,Adult Social Care,Adult Social Care,Community,45206,IT Software Purchases,Cornwall Council,Information Systems: Minor Works (June to December 2018),2443565 ,761.25, 15/01/2019,761.25,913.50
51,600100,Adult Social Care,Adult Social Care,Community,45206,IT Software Purchases,Cornwall Council,Information Systems: Minor Works (June to December 2018),2443565 ,761.25, 15/01/2019,-913.50,913.50
51,600100,Adult Social Care,Adult Social Care,Community,45206,IT Software Purchases,Cornwall Council,Information Systems: Minor Works (June to December 2018),2443565 ,761.25, 15/01/2019,913.50,913.50
51,600100,Adult Social Care,Adult Social Care,Community,45206,IT Software Purchases,Cornwall Council,Information Systems: Minor Works (June to December 2018),2443556 ,"1,509.73", 15/01/2019,"1,509.73","1,811.68"
51,600100,Adult Social Care,Adult Social Care,Community,52001,Payments to Other Local Authorities,Cornwall Council,"Cornwall Council: Cornwall and Isles of Scilly contributions to safeguarding board 2017/18, inv#: 298248851, date 23-03-18",2443450 ,"3,590.00", 15/01/2019,"3,590.00","3,590.00"
51,600100,Adult Social Care,Adult Social Care,Community,31102,Vehicle Repair and Maintenance,RBS Commercial Card Division,28-11-2018|6459|TRAVEL TEAM|ISLES OF SCILLY SS CO|TR21 0LJ|4411|RETURN FLIGHT FOR MARK FULLER - 235412|IOS_NSTINSON,2450082 ,"10,070.35", 25/01/2019,174.00,"10,375.06"
51,600100,Adult Social Care,Adult Social Care,Community,31602,Air Travel,RBS Commercial Card Division,28-11-2018|6459|TRAVEL TEAM|ISLES OF SCILLY SS CO|TR21 0LJ|4411|RETURN FLIGHT FOR MARK FULLER - 235413|IOS_NSTINSON,2450082 ,"10,070.35", 25/01/2019,165.30,"10,375.06"
51,600100,Adult Social Care,Adult Social Care,Community,31602,Air Travel,RBS Commercial Card Division,29-11-2018|6459|TRAVEL TEAM|ISLES OF SCILLY SS CO|TR21 0LJ|4411|AMENDMENT FOR MARK FULLER - 235413|IOS_NSTINSON,2450082 ,"10,070.35", 25/01/2019,10.00,"10,375.06"
51,600100,Adult Social Care,Adult Social Care,Community,31602,Air Travel,RBS Commercial Card Division,03-12-2018|6459|TRAVEL TEAM|ISLES OF SCILLY SS CO|TR21 0LJ|4411|RETURN FLIGHT FOR C SHORE - 235862|IOS_NSTINSON,2450082 ,"10,070.35", 25/01/2019,169.10,"10,375.06"
51,600100,Adult Social Care,Adult Social Care,Community,31602,Air Travel,RBS Commercial Card Division,04-12-2018|6459|TRAVEL TEAM|ISLES OF SCILLY SS CO|TR21 0LJ|4411|RETURN FLIGHTS FOR CLAUDIA SCHWARZ - 236021|IOS_NSTINSON,2450082 ,"10,070.35", 25/01/2019,161.50,"10,375.06"
51,600100,Adult Social Care,Adult Social Care,Community,31602,Air Travel,RBS Commercial Card Division,06-12-2018|6459|TRAVEL TEAM|ISLES OF SCILLY SS CO|TR21 0LJ|4411|REFUND FOR AISLING KHAN - 235353|IOS_NSTINSON,2450082 ,"10,070.35", 25/01/2019,-173.50,"10,375.06"
51,600100,Adult Social Care,Adult Social Care,Community,31602,Air Travel,RBS Commercial Card Division,07-12-2018|6459|TRAVEL TEAM|ISLES OF SCILLY SS CO|TR21 0LJ|4411|AMENDMENT FOR B HOOK - 236154|IOS_NSTINSON,2450082 ,"10,070.35", 25/01/2019,21.28,"10,375.06"
51,600100,Adult Social Care,Adult Social Care,Community,31602,Air Travel,RBS Commercial Card Division,11-12-2018|6459|TRAVEL TEAM|ISLES OF SCILLY SS CO|TR21 0LJ|4411|RETURN FLIGHTS FOR MARK FULLER - 236796|IOS_NSTINSON,2450082 ,"10,070.35", 25/01/2019,113.06,"10,375.06"
51,600100,Adult Social Care,Adult Social Care,Community,31602,Air Travel,RBS Commercial Card Division,14-12-2018|6459|TRAVEL TEAM|ISLES OF SCILLY SS CO|TR21 0LJ|4411|RETURN FLIGHTS FOR JENNIFER CANDY - 237082|IOS_NSTINSON,2450082 ,"10,070.35", 25/01/2019,113.06,"10,375.06"
51,600100,Adult Social Care,Adult Social Care,Community,46103,Hotel Expenses,RBS Commercial Card Division,10-12-2018|6517|SCOTT FULLER|PREMIER INN|DY9 9JS|3811||,2450082 ,"10,070.35", 25/01/2019,135.00,"10,375.06"
51,600100,Adult Social Care,Adult Social Care,Community,46103,Hotel Expenses,RBS Commercial Card Division,15-12-2018|6517|SCOTT FULLER|THE GREENBANK HOTEL|TR11 2SR|7011||,2450082 ,"10,070.35", 25/01/2019,57.50,"10,375.06"
51,600100,Adult Social Care,Adult Social Care,Community,46103,Hotel Expenses,RBS Commercial Card Division,14-12-2018|6517|SCOTT FULLER|HOMESTEAD COURT HOTEL|AL7 4LX|7011||,2450082 ,"10,070.35", 25/01/2019,65.83,"10,375.06"
51,600100,Adult Social Care,Adult Social Care,Community,46106,External Legal Exps,Cornwall Council,50120  General Matters Social Care Adult�s Team Only � ongoing,2460364 ,451.20, 05/02/2019,76.80,541.44
51,600100,Adult Social Care,Adult Social Care,Community,46106,External Legal Exps,Cornwall Council,50120  General Matters Social Care Adult�s Team Only � ongoing,2460364 ,451.20, 05/02/2019,144.00,541.44
51,600100,Adult Social Care,Adult Social Care,Community,46106,External Legal Exps,Cornwall Council,Legal Services. Community DoL for client ref: 5780.,2460364 ,451.20, 05/02/2019,9.60,541.44
51,600100,Adult Social Care,Adult Social Care,Community,43504,Consultants - Management,Community 1st Cornwall Ltd,Community 1st Cornwall Ltd Professional Fees for One Public Estate,2468311 ,"15,452.89", 14/02/2019,"15,452.89","18,543.47"
51,600100,Adult Social Care,Adult Social Care,Community,31602,Air Travel,RBS Commercial Card Division,09-01-2019|6459|TRAVEL TEAM|ISLES OF SCILLY SS CO|TR21 0LJ|4411|RETURN FLIGHTS FOR SCOTT FULLER - 240346|IOS_NSTINSON,2478449 ,"18,207.67", 22/02/2019,160.55,"19,082.78"
51,600100,Adult Social Care,Adult Social Care,Community,31602,Air Travel,RBS Commercial Card Division,17-01-2019|6459|TRAVEL TEAM|ISLES OF SCILLY SS CO|TR21 0LJ|4411|RETURN FLIGHTS FOR MARK FULLER - 242311|IOS_NSTINSON,2478449 ,"18,207.67", 22/02/2019,156.75,"19,082.78"
51,600100,Adult Social Care,Adult Social Care,Community,46103,Hotel Expenses,RBS Commercial Card Division,09-01-2019|6517|SCOTT FULLER|PREMIER INN|TR14 0RT|3811||IOS_AKHAN,2478449 ,"18,207.67", 22/02/2019,88.99,"19,082.78"
51,600100,Adult Social Care,Adult Social Care,Community,46103,Hotel Expenses,RBS Commercial Card Division,19-01-2019|6517|SCOTT FULLER|PREMIER INN|PL25 4EL|3811||IOS_AKHAN,2478449 ,"18,207.67", 22/02/2019,71.66,"19,082.78"
51,600100,Adult Social Care,Adult Social Care,Community,22501,Rent,Natalie Jones,LINE 562,2490522 ,690.00, 08/03/2019,690.00,690.00
51,600100,Adult Social Care,Adult Social Care,Community,31602,Air Travel,RBS Commercial Card Division,21-02-2019|6459|TRAVEL TEAM|ISLES OF SCILLY SS CO|TR21 0LJ|4411|FLIGHT 248996|IOS_NSTINSON,2507927 ,"18,805.89", 22/03/2019,165.30,"19,035.00"
51,600100,Adult Social Care,Adult Social Care,Community,31602,Air Travel,RBS Commercial Card Division,04-02-2019|6459|TRAVEL TEAM|ISLES OF SCILLY SS CO|TR21 0LJ|4411|FLIGHT 245877|IOS_NSTINSON,2507927 ,"18,805.89", 22/03/2019,322.05,"19,035.00"
51,600100,Adult Social Care,Adult Social Care,Community,31602,Air Travel,RBS Commercial Card Division,01-02-2019|6459|TRAVEL TEAM|ISLES OF SCILLY SS CO|TR21 0LJ|4411|FLIGHT 245495|IOS_NSTINSON,2507927 ,"18,805.89", 22/03/2019,165.30,"19,035.00"
51,600100,Adult Social Care,Adult Social Care,Community,31602,Air Travel,RBS Commercial Card Division,08-02-2019|6459|TRAVEL TEAM|ISLES OF SCILLY SS CO|TR21 0LJ|4411|FLIGHT 245495 REFUND|IOS_NSTINSON,2507927 ,"18,805.89", 22/03/2019,-24.09,"19,035.00"
51,600100,Adult Social Care,Adult Social Care,Community,31602,Air Travel,RBS Commercial Card Division,27-02-2019|6459|TRAVEL TEAM|ROYAL CORNWALL HOS|TR1 3LJ|8062|FLIGHT AMENDMENT|IOS_NSTINSON,2507927 ,"18,805.89", 22/03/2019,10.00,"19,035.00"
51,600101,Better Care Fund,Adult Social Care,Community,31603,Other Public Transport,Tresco Estate,"Concessionary Fares single tickets for Bryher, Tresco & St. Martins, 1st April 2018 - 31st March 2019",2431636 ,"1,298.00", 03/01/2019,"1,298.00","1,298.00"
51,600101,Better Care Fund,Adult Social Care,Community,47013,Grants & Conts to Other Bodies - Discretionary,Age UK Cornwall & The Isles of Scilly (Age Concern In Cornwall & The Isles of Scilly),LINE 418 AGE UK,2437852 ,"3,375.00", 11/01/2019,"3,375.00","3,375.00"
51,600101,Better Care Fund,Adult Social Care,Community,47013,Grants & Conts to Other Bodies - Discretionary,Age UK Cornwall & The Isles of Scilly (Age Concern In Cornwall & The Isles of Scilly),LINE 426 AGE UK,2437855 ,"3,375.00", 11/01/2019,"3,375.00","3,375.00"
51,600101,Better Care Fund,Adult Social Care,Community,62004,Direct Payments,One Off Payments,LINE 382 HOLWIILS A,2437843 ,"1,056.00", 11/01/2019,"1,056.00","1,056.00"
51,600101,Better Care Fund,Adult Social Care,Community,31603,Other Public Transport,Tresco Estate,"Concessionary Fares single tickets for Bryher, Tresco & St. Martins, 1st April 2018 - 31st March 2019",2447406 ,"1,754.50", 17/01/2019,"1,754.50","1,754.50"
51,600101,Better Care Fund,Adult Social Care,Community,43532,Professional Fees - Other,St Mary's Health Centre,"Payment agreed for 2 years rehabilitation physiotherapy role 80,000 (10,000 paid each quarter)",2447252 ,"10,000.00", 17/01/2019,"10,000.00","10,000.00"
51,600101,Better Care Fund,Adult Social Care,Community,47013,Grants & Conts to Other Bodies - Discretionary,Cornwall Council,AGE UK,2457918 ,"11,797.40", 31/01/2019,"3,375.00","11,797.40"
51,600101,Better Care Fund,Adult Social Care,Community,62004,Direct Payments,One Off Payments,line 451,2458311 ,"1,056.00", 01/02/2019,"1,056.00","1,056.00"
51,600101,Better Care Fund,Adult Social Care,Community,31603,Other Public Transport,Tresco Estate,"Concessionary Fares single tickets for Bryher, Tresco & St. Martins, 1st April 2018 - 31st March 2019",2463804 ,902.50, 07/02/2019,902.50,902.50
51,600101,Better Care Fund,Adult Social Care,Community,47013,Grants & Conts to Other Bodies - Discretionary,Age UK Cornwall & The Isles of Scilly (Age Concern In Cornwall & The Isles of Scilly),LINE 495,2473394 ,"3,375.00", 15/02/2019,"3,375.00","3,375.00"
51,600101,Better Care Fund,Adult Social Care,Community,62004,Direct Payments,One Off Payments,LINE 514,2473399 ,"1,056.00", 15/02/2019,"1,056.00","1,056.00"
51,600101,Better Care Fund,Adult Social Care,Community,47013,Grants & Conts to Other Bodies - Discretionary,Age UK Cornwall & The Isles of Scilly (Age Concern In Cornwall & The Isles of Scilly),LINE 552,2490517 ,"3,375.00", 08/03/2019,"3,375.00","3,375.00"
51,600101,Better Care Fund,Adult Social Care,Community,31603,Other Public Transport,Tresco Estate,"Concessionary Fares single tickets for Bryher, Tresco & St. Martins, 1st April 2018 - 31st March 2019",2493827 ,"1,141.50", 12/03/2019,"1,141.50","1,141.50"
51,600101,Better Care Fund,Adult Social Care,Community,21117,R&M - Disabled Adaptations - Planned,Derek Shave,Derek Shave: contractor for DFG work on 2 Launceston Close,2498675 ,"6,817.00", 14/03/2019,"6,817.00","6,817.00"
51,600101,Better Care Fund,Adult Social Care,Community,62004,Direct Payments,One Off Payments,5/3 - Line 566,2499521 ,"1,056.00", 15/03/2019,"1,056.00","1,056.00"
51,600101,Better Care Fund,Adult Social Care,Community,31603,Other Public Transport,St Agnes Boating,"Concessionary Fares single tickets for 1st April 2018-31st March 2019, St. Agnes",2506322 ,525.00, 21/03/2019,525.00,525.00
51,600102,One Public Estate_,Adult Social Care,Community,43504,Consultants - Management,Community 1st Cornwall Ltd,Consultancy re Dominic Roberts on the Isles of Scilly Health Project,2495120 ,"2,968.00", 12/03/2019,"2,968.00","3,561.60"
51,600103,Short and Long Term Support 18-64,Adult Social Care,Community,31602,Air Travel,RBS Commercial Card Division,10-12-2018|6459|TRAVEL TEAM|ISLES OF SCILLY SS CO|TR21 0LJ|4411|AMENDMENT FOR L MORRIS - 231212|IOS_NSTINSON,2450082 ,"10,070.35", 25/01/2019,13.11,"10,375.06"
51,600103,Short and Long Term Support 18-64,Adult Social Care,Community,57053,Independent Schools - Private Contractors,Cornwall Council,AUTISM WEST MIDLANDS,2457918 ,"11,797.40", 31/01/2019,"6,691.40","11,797.40"
51,600103,Short and Long Term Support 18-64,Adult Social Care,Community,62004,Direct Payments,Cornwall Council,A HOLWIL,2457918 ,"11,797.40", 31/01/2019,"1,056.00","11,797.40"
51,600103,Short and Long Term Support 18-64,Adult Social Care,Community,57053,Independent Schools - Private Contractors,One Off Payments,line 448,2458313 ,"6,691.40", 01/02/2019,"6,691.40","6,691.40"
51,600103,Short and Long Term Support 18-64,Adult Social Care,Community,57053,Independent Schools - Private Contractors,One Off Payments,,2473397 ,"6,691.40", 15/02/2019,"6,691.40","6,691.40"
51,600103,Short and Long Term Support 18-64,Adult Social Care,Community,31602,Air Travel,RBS Commercial Card Division,24-01-2019|6459|TRAVEL TEAM|ISLES OF SCILLY SS CO|TR21 0LJ|4411|RETURN FLIGHTS FOR L & J MORRIS - 243755|IOS_NSTINSON,2478449 ,"18,207.67", 22/02/2019,253.65,"19,082.78"
51,600103,Short and Long Term Support 18-64,Adult Social Care,Community,31602,Air Travel,RBS Commercial Card Division,24-01-2019|6459|TRAVEL TEAM|ISLES OF SCILLY SS CO|TR21 0LJ|4411|RETURN FLIGHTS FOR L & J  MORRIS - 243753|IOS_NSTINSON,2478449 ,"18,207.67", 22/02/2019,253.65,"19,082.78"
51,600103,Short and Long Term Support 18-64,Adult Social Care,Community,31401,Car Leasing Charge and Contrib,One Off Payments,Fuel costs remuneration as stated in agreement,2486959 ,500.00, 12/03/2019,500.00,500.00
51,600103,Short and Long Term Support 18-64,Adult Social Care,Community,57053,Independent Schools - Private Contractors,One Off Payments,8/3 Line 566,2499524 ,"6,691.40", 15/03/2019,"6,691.40","6,691.40"
51,600104,Short and Long Term Support 65,Adult Social Care,Community,43532,Professional Fees - Other,Ms Jane Mccarthy,Best Interest Assessment re SH at Campania ARBD Care Home Weston Super Mare,2434136 ,505.30, 08/01/2019,505.30,505.30
51,600104,Short and Long Term Support 65,Adult Social Care,Community,43532,Professional Fees - Other,Ms Jane Mccarthy,"DoLS Best Interest Assessment x 4 in respect of AC, HP, IP and DW",2434133 ,"2,216.00", 08/01/2019,"2,216.00","2,216.00"
51,600104,Short and Long Term Support 65,Adult Social Care,Community,57066,Independent Meals at Home - Private Contractors,Cornwall Partnership NHS Foundation Trust,"Provision of Meals on Wheels for the period of 1st April 2018-31st March 2019, Meals @ 4 each, estimate of 850.00 per month before VAT.",2438342 ,916.00, 15/01/2019,916.00,"1,099.20"
51,600104,Short and Long Term Support 65,Adult Social Care,Community,57034,Other Residential Placements - Private Contractors,N Notaro Home Ltd Campania Care Home,"Care Home Fees for client 5770 from the 1st September 2018 - 31st March 2019, 43.3 weeks @ 795.00 per week",2447631 ,"3,407.14", 17/01/2019,"3,407.14","3,407.14"
51,600104,Short and Long Term Support 65,Adult Social Care,Community,57034,Other Residential Placements - Private Contractors,N Notaro Home Ltd Campania Care Home,"Care Home Fees for client 5770 from the 1st September 2018 - 31st March 2019, 43.3 weeks @ 795.00 per week",2447684 ,"3,520.71", 17/01/2019,"3,520.71","3,520.71"
51,600104,Short and Long Term Support 65,Adult Social Care,Community,57065,Independent At Home Care - Private Contractors,Helena Wakefield,Payment of private care fees until property is sold to self fund. 700 per week from 2 July 18 - (estimate of) 14th October 18,2447342 ,"7,855.66", 17/01/2019,"7,855.66","7,855.66"
51,600104,Short and Long Term Support 65,Adult Social Care,Community,57066,Independent Meals at Home - Private Contractors,Cornwall Partnership NHS Foundation Trust,"Provision of Meals on Wheels for the period of 1st April 2018-31st March 2019, Meals @ 4 each, estimate of 850.00 per month before VAT.",2460499 ,844.00, 14/02/2019,844.00,"1,012.80"
51,600104,Short and Long Term Support 65,Adult Social Care,Community,57034,Other Residential Placements - Private Contractors,N Notaro Home Ltd Campania Care Home,"Care Home Fees for client 5770 from the 1st September 2018 - 31st March 2019, 43.3 weeks @ 795.00 per week",2486880 ,"3,180.00", 05/03/2019,"3,180.00","3,180.00"
51,600104,Short and Long Term Support 65,Adult Social Care,Community,57066,Independent Meals at Home - Private Contractors,Cornwall Partnership NHS Foundation Trust,"Provision of Meals on Wheels for the period of 1st April 2018-31st March 2019, Meals @ 4 each, estimate of 850.00 per month before VAT.",2483006 ,"1,056.00", 05/03/2019,"1,056.00","1,267.20"
51,600104,Short and Long Term Support 65,Adult Social Care,Community,46106,External Legal Exps,Cornwall Council,Legal Services for Client ref 5770,2479680 ,"3,292.80", 19/03/2019,76.80,"3,951.36"
51,600104,Short and Long Term Support 65,Adult Social Care,Community,57034,Other Residential Placements - Private Contractors,N Notaro Home Ltd Campania Care Home,"Care Home Fees for client 5770 from the 1st September 2018 - 31st March 2019, 43.3 weeks @ 795.00 per week",2513576 ,"3,520.71", 28/03/2019,"3,520.71","3,520.71"
51,600105,Park House,Adult Social Care,Community,22501,Rent,One Off Payments,LINE 431 NATALIE JONES,2437860 ,690.00, 11/01/2019,690.00,690.00
51,600105,Park House,Adult Social Care,Community,22501,Rent,One Off Payments,LINE 357 NATALIE JONES,2437820 ,690.00, 11/01/2019,690.00,690.00
51,600105,Park House,Adult Social Care,Community,27012,Washroom And Hygeine Services,Protec Healthcare LLP,J&P: healthcare products for Park House; delivery ref69482,2447908 ,"1,638.78", 17/01/2019,"1,638.78","1,966.54"
51,600105,Park House,Adult Social Care,Community,42503,Uniforms / Clothing,RBS Commercial Card Division,21-12-2018|6517|SCOTT FULLER|AMZN MKTP UK M21VX9HV4|L2338|5942||,2450082 ,"10,070.35", 25/01/2019,19.53,"10,375.06"
51,600105,Park House,Adult Social Care,Community,11601,Agency Costs,Phoenix Health Care Services Ltd,Phoenix agency staff (Gill Payne) for park house on (17th-22nd Jan),2454032 ,537.00, 29/01/2019,537.00,537.00
51,600105,Park House,Adult Social Care,Community,11602,Supply Cover (Agency),Phoenix Health Care Services Ltd,Phoenix Agency for Park House for GP & TL (9-14th- Jan),2453887 ,"1,283.00", 29/01/2019,"1,283.00","1,283.00"
51,600105,Park House,Adult Social Care,Community,22501,Rent,Cornwall Council,MISS NATALIE JONES,2457918 ,"11,797.40", 31/01/2019,675.00,"11,797.40"
51,600105,Park House,Adult Social Care,Community,45207,IT Hardware Purchases,Person Centred Software,Person Centred Software: IT system for care support at Park House,2468620 ,979.17, 12/02/2019,979.17,"1,175.00"
51,600105,Park House,Adult Social Care,Community,43532,Professional Fees - Other,Care Quality Commission,CQC: annual fee for Park House,2459637 ,"2,783.00", 14/02/2019,"2,783.00","2,783.00"
51,600105,Park House,Adult Social Care,Community,22501,Rent,Natalie Jones,LINE 502,2473396 ,690.00, 15/02/2019,690.00,690.00
51,600105,Park House,Adult Social Care,Community,11602,Supply Cover (Agency),Phoenix Health Care Services Ltd,Phoenix Agency staff for Park House 30Jan-5Feb,2474123 ,"2,001.75", 19/02/2019,"2,001.75","2,001.75"
51,600105,Park House,Adult Social Care,Community,21116,R&M - Other - Planned,Paul Lewis T/A Island Carpets,Island Carpets: carpet fitting for Park House lounge,2474254 ,873.80, 19/02/2019,873.80,873.80
51,600105,Park House,Adult Social Care,Community,21221,R&M - Responsive Drain cleaning,Davey & Gilbert Ltd,David&Gilbert fix PH room9 tap,2478213 ,482.75, 21/02/2019,482.75,579.30
51,600105,Park House,Adult Social Care,Community,31503,Taxi and Minibus,RBS Commercial Card Division,16-01-2019|6459|TRAVEL TEAM|ISLES OF SCILLY SS CO|TR21 0LJ|4411|BUS TRANSPORT FOR GILLIAN PAYNE - 242108|IOS_NSTINSON,2478449 ,"18,207.67", 22/02/2019,12.00,"19,082.78"
51,600105,Park House,Adult Social Care,Community,31602,Air Travel,RBS Commercial Card Division,02-01-2019|6459|TRAVEL TEAM|ISLES OF SCILLY SS CO|TR21 0LJ|4411|RETURN FLIGHTS FOR TALUTHA LANDRY - 238774|IOS_NSTINSON,2478449 ,"18,207.67", 22/02/2019,168.75,"19,082.78"
51,600105,Park House,Adult Social Care,Community,31602,Air Travel,RBS Commercial Card Division,02-01-2019|6459|TRAVEL TEAM|ISLES OF SCILLY SS CO|TR21 0LJ|4411|RETURN FLIGHTS FOR GILLIAN PAYNE - 238772|IOS_NSTINSON,2478449 ,"18,207.67", 22/02/2019,168.75,"19,082.78"
51,600105,Park House,Adult Social Care,Community,31602,Air Travel,RBS Commercial Card Division,07-01-2019|6459|TRAVEL TEAM|ISLES OF SCILLY SS CO|TR21 0LJ|4411|RETURN FLIGHT FOR CLAUDIA SCHWARTZ - 239740|IOS_NSTINSON,2478449 ,"18,207.67", 22/02/2019,156.75,"19,082.78"
51,600105,Park House,Adult Social Care,Community,31602,Air Travel,RBS Commercial Card Division,07-01-2019|6459|TRAVEL TEAM|ISLES OF SCILLY SS CO|TR21 0LJ|4411|RETURN FLIGHTS FOR LOUISE HICKS - 239740|IOS_NSTINSON,2478449 ,"18,207.67", 22/02/2019,280.25,"19,082.78"
51,600105,Park House,Adult Social Care,Community,31602,Air Travel,RBS Commercial Card Division,16-01-2019|6459|TRAVEL TEAM|ISLES OF SCILLY SS CO|TR21 0LJ|4411|RETURN FLIGHTS FOR GILLIAN PAYNE - 242108|IOS_NSTINSON,2478449 ,"18,207.67", 22/02/2019,156.75,"19,082.78"
51,600105,Park House,Adult Social Care,Community,31602,Air Travel,RBS Commercial Card Division,22-01-2019|6459|TRAVEL TEAM|ISLES OF SCILLY SS CO|TR21 0LJ|4411|RETURN FLIGHTS FOR C LEVERTON - 240084|IOS_NSTINSON,2478449 ,"18,207.67", 22/02/2019,218.50,"19,082.78"
51,600105,Park House,Adult Social Care,Community,31602,Air Travel,RBS Commercial Card Division,25-01-2019|6459|TRAVEL TEAM|ISLES OF SCILLY SS CO|TR21 0LJ|4411|RETURN FLIGHTS FOE GILLIAN PAYNE - 244087|IOS_NSTINSON,2478449 ,"18,207.67", 22/02/2019,164.00,"19,082.78"
51,600105,Park House,Adult Social Care,Community,11601,Agency Costs,Phoenix Health Care Services Ltd,Phoenix Healthcare: agency cover for Park House 15th to end Feb.,2488213 ,"1,038.38", 05/03/2019,"1,038.38","1,038.38"
51,600105,Park House,Adult Social Care,Community,11601,Agency Costs,One Off Payments,Accommodation for agency health care assistants for Park House between 15-Feb to 4-Mar 19,2494634 ,510.00, 12/03/2019,510.00,510.00
51,600105,Park House,Adult Social Care,Community,21116,R&M - Other - Planned,Protec Healthcare LLP,"Protec: hoist, sling and bath servicing.",2498726 ,449.00, 14/03/2019,449.00,538.80
51,600105,Park House,Adult Social Care,Community,41304,Cleaning & Domestic Materials,Protec Healthcare LLP,J&P: Park house domestic care supplies,2499481 ,"1,337.78", 14/03/2019,"1,337.78","1,605.34"
51,600105,Park House,Adult Social Care,Community,11601,Agency Costs,Phoenix Health Care Services Ltd,Phoenix Agency: SJG Park House cover 7-10 March (timesheet 81499),2502622 ,573.00, 19/03/2019,573.00,573.00
51,600105,Park House,Adult Social Care,Community,31602,Air Travel,RBS Commercial Card Division,20-02-2019|6459|TRAVEL TEAM|WWW.ISLEOFSCILLY-TRAVE|TR21 0LJ|4411|FLIGHT 247634|IOS_NSTINSON,2507927 ,"18,805.89", 22/03/2019,169.00,"19,035.00"
51,600105,Park House,Adult Social Care,Community,31602,Air Travel,RBS Commercial Card Division,05-02-2019|6459|TRAVEL TEAM|ISLES OF SCILLY SS CO|TR21 0LJ|4411|FLIGHT 244087|IOS_NSTINSON,2507927 ,"18,805.89", 22/03/2019,8.55,"19,035.00"
51,600105,Park House,Adult Social Care,Community,31602,Air Travel,RBS Commercial Card Division,30-01-2019|6459|TRAVEL TEAM|ISLES OF SCILLY SS CO|TR21 0LJ|4411|FLIGHT 245013|IOS_NSTINSON,2507927 ,"18,805.89", 22/03/2019,169.10,"19,035.00"
51,600105,Park House,Adult Social Care,Community,31602,Air Travel,RBS Commercial Card Division,30-01-2019|6459|TRAVEL TEAM|ISLES OF SCILLY SS CO|TR21 0LJ|4411|FLIGHT 245008|IOS_NSTINSON,2507927 ,"18,805.89", 22/03/2019,169.10,"19,035.00"
51,600105,Park House,Adult Social Care,Community,31602,Air Travel,RBS Commercial Card Division,30-01-2019|6459|TRAVEL TEAM|ISLES OF SCILLY SS CO|TR21 0LJ|4411|FLIGHT 245009|IOS_NSTINSON,2507927 ,"18,805.89", 22/03/2019,169.10,"19,035.00"
51,600105,Park House,Adult Social Care,Community,31602,Air Travel,RBS Commercial Card Division,30-01-2019|6459|TRAVEL TEAM|ISLES OF SCILLY SS CO|TR21 0LJ|4411|FLIGHT 245010|IOS_NSTINSON,2507927 ,"18,805.89", 22/03/2019,169.10,"19,035.00"
51,600105,Park House,Adult Social Care,Community,31602,Air Travel,RBS Commercial Card Division,30-01-2019|6459|TRAVEL TEAM|ISLES OF SCILLY SS CO|TR21 0LJ|4411|FLIGHT 245012|IOS_NSTINSON,2507927 ,"18,805.89", 22/03/2019,169.10,"19,035.00"
51,600105,Park House,Adult Social Care,Community,31602,Air Travel,RBS Commercial Card Division,31-01-2019|6459|TRAVEL TEAM|ISLES OF SCILLY SS CO|TR21 0LJ|4411|FLIGHT 245183|IOS_NSTINSON,2507927 ,"18,805.89", 22/03/2019,113.06,"19,035.00"
51,600105,Park House,Adult Social Care,Community,31602,Air Travel,RBS Commercial Card Division,11-02-2019|6459|TRAVEL TEAM|ISLES OF SCILLY SS CO|TR21 0LJ|4411|FLIGHT 247215|IOS_NSTINSON,2507927 ,"18,805.89", 22/03/2019,113.06,"19,035.00"
51,600105,Park House,Adult Social Care,Community,41304,Cleaning & Domestic Materials,Protec Healthcare LLP,Protec: healthcare supplies for park house personal care,2508681 ,933.80, 26/03/2019,933.80,"1,120.56"
51,600105,Park House,Adult Social Care,Community,11601,Agency Costs,Phoenix Health Care Services Ltd,Phoenix: agency carer for park house 19-26th March (G Payne),2513325 ,655.50, 28/03/2019,655.50,655.50
51,600111,Universal Youth Services,Childrens Services,Community,31602,Air Travel,RBS Commercial Card Division,21-12-2018|6459|TRAVEL TEAM|ISLES OF SCILLY SS CO|TR21 0LJ|4411|RETURN FLIGHTS FOR G CHARLES - 237644|IOS_NSTINSON,2450082 ,"10,070.35", 25/01/2019,169.75,"10,375.06"
51,600111,Universal Youth Services,Childrens Services,Community,31602,Air Travel,RBS Commercial Card Division,04-01-2019|6459|TRAVEL TEAM|ISLES OF SCILLY SS CO|TR21 0LJ|4411|FLIGHT 239308|IOS_NSTINSON,2478449 ,"18,207.67", 22/02/2019,218.50,"19,082.78"
51,600111,Universal Youth Services,Childrens Services,Community,31602,Air Travel,RBS Commercial Card Division,09-01-2019|6459|TRAVEL TEAM|ISLES OF SCILLY SS CO|TR21 0LJ|4411|FLIGHT 240463|IOS_NSTINSON,2478449 ,"18,207.67", 22/02/2019,168.75,"19,082.78"
51,600111,Universal Youth Services,Childrens Services,Community,31602,Air Travel,RBS Commercial Card Division,21-01-2019|6459|TRAVEL TEAM|ISLES OF SCILLY SS CO|TR21 0LJ|4411|FLIGHT 243069|IOS_NSTINSON,2478449 ,"18,207.67", 22/02/2019,168.75,"19,082.78"
51,600111,Universal Youth Services,Childrens Services,Community,47002,Subscriptions,Brook Young People (was Brook Cornwall).,Brook Young People Services,2490605 ,"1,147.50", 07/03/2019,"1,147.50","1,147.50"
51,600113,Early Year Provision,Childrens Services,Community,31603,Other Public Transport,Tresco Estate,Tresco Boating EYS Nov-Dec 2018,2432816 ,"1,567.75", 03/01/2019,"1,567.75","1,567.75"
51,600113,Early Year Provision,Childrens Services,Community,31603,Other Public Transport,Tresco Estate,"Tresco Boating for EYS sessions 
September -October 2018",2432817 ,"1,567.75", 03/01/2019,"1,567.75","1,567.75"
51,600113,Early Year Provision,Childrens Services,Community,47013,Grants & Conts to Other Bodies - Discretionary,Katt Hennessey,Discretionary EY funding,2443651 ,989.49, 17/01/2019,989.49,989.49
51,600113,Early Year Provision,Childrens Services,Community,47013,Grants & Conts to Other Bodies - Discretionary,Katt Hennessey,Non Discretionary EY funding,2447814 ,524.40, 17/01/2019,524.40,524.40
51,600113,Early Year Provision,Childrens Services,Community,31603,Other Public Transport,Tresco Estate,Tresco Boating EYS Nov-Dec 2018,2437052 ,"4,321.25", 22/01/2019,765.25,"4,321.25"
51,600113,Early Year Provision,Childrens Services,Community,31603,Other Public Transport,Tresco Estate,Tresco Boating EYS Nov-Dec 2018,2437052 ,"4,321.25", 22/01/2019,802.50,"4,321.25"
51,600113,Early Year Provision,Childrens Services,Community,31603,Other Public Transport,Tresco Estate,"Tresco Boating for EYS sessions 
September -October 2018",2437052 ,"4,321.25", 22/01/2019,"2,753.50","4,321.25"
51,600113,Early Year Provision,Childrens Services,Community,31603,Other Public Transport,Tresco Estate,Tresco Boating EYS Nov-Dec 2018,2432900 ,"1,567.75", 22/01/2019,"1,567.75","1,567.75"
51,600113,Early Year Provision,Childrens Services,Community,47001,Grants & Conts to Other Bodies - Non Discretionary,Leading Edge Academies Partnership (Five Islands),,2458190 ,"14,779.98", 31/01/2019,"14,779.98","14,779.98"
51,600113,Early Year Provision,Childrens Services,Community,31603,Other Public Transport,Tresco Estate,Tresco Boat Services -EY Tresco & St Martins 3/1/19-18/1/19,2462673 ,"1,769.00", 05/02/2019,"1,769.00","1,769.00"
51,600113,Early Year Provision,Childrens Services,Community,47001,Grants & Conts to Other Bodies - Non Discretionary,Katt Hennessey,Non Discretionary EY funding,2468437 ,934.02, 12/02/2019,248.40,934.02
51,600113,Early Year Provision,Childrens Services,Community,47001,Grants & Conts to Other Bodies - Non Discretionary,Mrs H V Glenn,EY Grant non discretionary,2468442 ,747.43, 12/02/2019,447.12,747.43
51,600113,Early Year Provision,Childrens Services,Community,47013,Grants & Conts to Other Bodies - Discretionary,Mrs T Wallace,EY Grant discretionary,2468434 ,631.16, 12/02/2019,631.16,631.16
51,600113,Early Year Provision,Childrens Services,Community,47013,Grants & Conts to Other Bodies - Discretionary,Katt Hennessey,Discretionary EY funding,2468437 ,934.02, 12/02/2019,685.62,934.02
51,600113,Early Year Provision,Childrens Services,Community,47013,Grants & Conts to Other Bodies - Discretionary,Mrs H V Glenn,EY Grant discretionary,2468442 ,747.43, 12/02/2019,300.31,747.43
51,600113,Early Year Provision,Childrens Services,Community,31603,Other Public Transport,Tresco Estate,Tresco Boats EYS Inv 53910 Jan Feb 19,2493924 ,"2,836.50", 12/03/2019,"2,836.50","2,836.50"
51,600113,Early Year Provision,Childrens Services,Community,47001,Grants & Conts to Other Bodies - Non Discretionary,Katt Hennessey,EY funding,2498830 ,750.60, 14/03/2019,82.80,750.60
51,600113,Early Year Provision,Childrens Services,Community,47001,Grants & Conts to Other Bodies - Non Discretionary,Mrs H V Glenn,EY funding,2498834 ,817.90, 14/03/2019,502.32,817.90
51,600113,Early Year Provision,Childrens Services,Community,47013,Grants & Conts to Other Bodies - Discretionary,Katt Hennessey,EY funding,2498830 ,750.60, 14/03/2019,667.80,750.60
51,600113,Early Year Provision,Childrens Services,Community,47013,Grants & Conts to Other Bodies - Discretionary,Mrs H V Glenn,EY funding,2498834 ,817.90, 14/03/2019,315.58,817.90
51,600113,Early Year Provision,Childrens Services,Community,47013,Grants & Conts to Other Bodies - Discretionary,Mrs T Wallace,EY Grant discretionary,2498838 ,587.90, 14/03/2019,587.90,587.90
51,600113,Early Year Provision,Childrens Services,Community,47001,Grants & Conts to Other Bodies - Non Discretionary,Leading Edge Academies Partnership (Five Islands),EY Grant non discretionary,2506514 ,"12,875.40", 21/03/2019,"12,875.40","12,875.40"
51,600113,Early Year Provision,Childrens Services,Community,47001,Grants & Conts to Other Bodies - Non Discretionary,Leading Edge Academies Partnership (Five Islands),EY Grant non discretionary,2506511 ,"13,482.60", 21/03/2019,"13,482.60","13,482.60"
51,600115,Children Centres,Childrens Services,Community,31602,Air Travel,RBS Commercial Card Division,15-01-2019|6459|TRAVEL TEAM|ISLES OF SCILLY SS CO|TR21 0LJ|4411|FLIGHT 241792|IOS_NSTINSON,2478449 ,"18,207.67", 22/02/2019,152.00,"19,082.78"
51,600117,Five Island School,Childrens Services,Community,43506,Professional Fees - Legal,Gillian Boreham,Reimbursement of costs for G Boreham Inv GBO 0189,2457929 ,"1,562.70", 31/01/2019,"1,562.70","1,562.70"
51,600117,Five Island School,Childrens Services,Community,47001,Grants & Conts to Other Bodies - Non Discretionary,Leading Edge Academies Partnership (Five Islands),2019-Pupil Premium Q3 Grant payment �School Share,2457951 ,"3,231.00", 31/01/2019,"3,231.00","3,231.00"
51,600117,Five Island School,Childrens Services,Community,11411,Pension Payments,Cornwall Council,Fire Pensions Apr18 � Jan 19 / Teacher Pensions Apr18 � Jan 19,2467865 ,"8,207.22", 12/02/2019,"5,723.56","8,207.22"
51,600117,Five Island School,Childrens Services,Community,11411,Pension Payments,Cornwall Council,Fire Pensions 2017-18 / Teacher Pensions 2017-18,2467863 ,"5,374.63", 21/02/2019,"4,167.98","5,374.63"
51,600117,Five Island School,Childrens Services,Community,43506,Professional Fees - Legal,Cornwall Council,Re Legal Services and Support for Five Islands School re MUGA Pitch,2479680 ,"3,292.80", 19/03/2019,249.60,"3,951.36"
51,600117,Five Island School,Childrens Services,Community,89408,Other Costs,RBS Commercial Card Division,07-02-2019|7427|LYNN PLUMMER|CAPITA RECRUITMENT VET|S14EB|8999||,2507927 ,"18,805.89", 22/03/2019,43.42,"19,035.00"
51,600117,Five Island School,Childrens Services,Community,11411,Pension Payments,Cornwall Council,Teacher Pensions Feb19 � Mar19,2509741 ,"2,406.62", 28/03/2019,"1,909.50","2,406.62"
51,600120,Post 16 Travel and Accommodation Grant,Childrens Services,Community,12301,Training,ICS Learning Systems,CIPS L4 Course for Keith Grossett,2437751 ,"1,166.67", 15/01/2019,"1,166.67","1,400.00"
51,600120,Post 16 Travel and Accommodation Grant,Childrens Services,Community,47016,Accomodation Grants,Mrs F Guy,2018-19 Post 16 Grant A4 Guy D,2449168 ,852.66, 22/01/2019,852.66,852.66
51,600120,Post 16 Travel and Accommodation Grant,Childrens Services,Community,47016,Accomodation Grants,Niki Hicks,2018-19 Post 16 Grant Burns J,2451330 ,852.66, 22/01/2019,852.66,852.66
51,600120,Post 16 Travel and Accommodation Grant,Childrens Services,Community,47016,Accomodation Grants,Ms E Driscoll,2018-19 Post 16 Grant A4 Driscoll-Johnson M,2449227 ,852.66, 22/01/2019,852.66,852.66
51,600120,Post 16 Travel and Accommodation Grant,Childrens Services,Community,47016,Accomodation Grants,Diana Mompoloki,2018-19 Post 16 Grant Mompoloki K,2450075 ,952.66, 22/01/2019,852.66,952.66
51,600120,Post 16 Travel and Accommodation Grant,Childrens Services,Community,47016,Accomodation Grants,Mrs C Hicks,2018-19 Post 16 Grant A4 Hicks A,2449161 ,852.66, 22/01/2019,852.66,852.66
51,600120,Post 16 Travel and Accommodation Grant,Childrens Services,Community,47016,Accomodation Grants,Sarah Jenkins,2018-19 Post 16 Grant A4 Jenkins S,2449941 ,852.66, 22/01/2019,852.66,852.66
51,600120,Post 16 Travel and Accommodation Grant,Childrens Services,Community,47017,Travel Grant,Diana Mompoloki,2018-19 Post 16 Grant Mompoloki K,2450075 ,952.66, 22/01/2019,100.00,952.66
51,600120,Post 16 Travel and Accommodation Grant,Childrens Services,Community,47016,Accomodation Grants,Mrs A Langdon,2018-19 Post 16 Grant A4 Langdon Z,2453263 ,760.00, 24/01/2019,760.00,760.00
51,600120,Post 16 Travel and Accommodation Grant,Childrens Services,Community,47016,Accomodation Grants,Mr & Mrs A Gilbert,2018-19 Post 16 Grant A4 Gilbert S,2453188 ,852.66, 24/01/2019,852.66,852.66
51,600120,Post 16 Travel and Accommodation Grant,Childrens Services,Community,47016,Accomodation Grants,Mrs S Twynham,2018-19 Post 16 Grant Twynham S,2455969 ,852.66, 29/01/2019,852.66,852.66
51,600120,Post 16 Travel and Accommodation Grant,Childrens Services,Community,47016,Accomodation Grants,Mr & Mrs P Whittaker,2018-19 Post 16 Grant A4 Whittaker M,2456253 ,852.66, 29/01/2019,852.66,852.66
51,600120,Post 16 Travel and Accommodation Grant,Childrens Services,Community,47016,Accomodation Grants,Mrs Jo Hathway,2019- Post 16 Grant A4  Hathway J,2457915 ,942.11, 31/01/2019,852.66,942.11
51,600120,Post 16 Travel and Accommodation Grant,Childrens Services,Community,47017,Travel Grant,Mrs Jo Hathway,2019- Post 16 Grant T3 Hathway J,2457915 ,942.11, 31/01/2019,89.45,942.11
51,600120,Post 16 Travel and Accommodation Grant,Childrens Services,Community,47016,Accomodation Grants,R Thornton,2018-19 Post 16 Grant A4 Underwood I,2467561 ,852.66, 12/02/2019,852.66,852.66
51,600120,Post 16 Travel and Accommodation Grant,Childrens Services,Community,47016,Accomodation Grants,M G Smalley,2019-Post 16 Grant A4 Smalley C,2476969 ,952.66, 19/02/2019,852.66,952.66
51,600120,Post 16 Travel and Accommodation Grant,Childrens Services,Community,47016,Accomodation Grants,Mrs G Hulands,2019- Post 16 Grant A4 Hulands K,2477002 ,930.91, 19/02/2019,852.66,930.91
51,600120,Post 16 Travel and Accommodation Grant,Childrens Services,Community,47017,Travel Grant,M G Smalley,2019-Post 16 Grant T3 Smalley C,2476969 ,952.66, 19/02/2019,100.00,952.66
51,600120,Post 16 Travel and Accommodation Grant,Childrens Services,Community,47017,Travel Grant,Mrs G Hulands,2019- Post 16 Grant T3 Hulands K,2477002 ,930.91, 19/02/2019,78.25,930.91
51,600120,Post 16 Travel and Accommodation Grant,Childrens Services,Community,47016,Accomodation Grants,Mrs S Twynham,2018-19 Post 16 Grant A5 Twynham S  2018-19 Post 16 Grant T3,2489814 ,952.66, 07/03/2019,852.66,952.66
51,600120,Post 16 Travel and Accommodation Grant,Childrens Services,Community,47016,Accomodation Grants,Mr Matthew Honeychurch,2018-19 Post 16 Grant A4 Jesenko J,2488392 ,852.66, 07/03/2019,852.66,852.66
51,600120,Post 16 Travel and Accommodation Grant,Childrens Services,Community,47017,Travel Grant,Mrs S Twynham,2018-19 Post 16 Grant A5 Twynham S  2018-19 Post 16 Grant T3,2489814 ,952.66, 07/03/2019,100.00,952.66
51,600120,Post 16 Travel and Accommodation Grant,Childrens Services,Community,47016,Accomodation Grants,Niki Hicks,2018-19 Post 16 Grant A5 Burns J,2502923 ,852.66, 21/03/2019,852.66,852.66
51,600120,Post 16 Travel and Accommodation Grant,Childrens Services,Community,47016,Accomodation Grants,Mr & Mrs A Gilbert,2018-19 Post 16 Grant A5 Gilbert S / 2018-19 Post 16 Grant T2 Gilbert S,2506455 ,934.41, 21/03/2019,852.66,934.41
51,600120,Post 16 Travel and Accommodation Grant,Childrens Services,Community,47016,Accomodation Grants,Mr & Mrs B Hicks,2018-19 Post 16 Grant A3 Hicks X,2502921 ,"1,705.33", 21/03/2019,"1,705.33","1,705.33"
51,600120,Post 16 Travel and Accommodation Grant,Childrens Services,Community,47016,Accomodation Grants,Sarah Jenkins,2018-19 Post 16 Grant A5 Jenkins S,2502884 ,845.00, 21/03/2019,845.00,845.00
51,600120,Post 16 Travel and Accommodation Grant,Childrens Services,Community,47016,Accomodation Grants,Mr J Badcock,2018-19 Post 16 Grant A3 Badcock E,2502934 ,"1,705.33", 21/03/2019,"1,705.33","1,705.33"
51,600120,Post 16 Travel and Accommodation Grant,Childrens Services,Community,47016,Accomodation Grants,Mrs F Guy,2018-19 Post 16 Grant A5 Guy D,2502922 ,852.66, 21/03/2019,852.66,852.66
51,600120,Post 16 Travel and Accommodation Grant,Childrens Services,Community,47016,Accomodation Grants,Sarah Poat,2019- Post 16 Grant A3 Poat S,2502947 ,"1,705.33", 21/03/2019,"1,705.33","1,705.33"
51,600120,Post 16 Travel and Accommodation Grant,Childrens Services,Community,47016,Accomodation Grants,Mrs A Langdon,2018-19 Post 16 Grant A5 Langdon Z,2502920 ,740.00, 21/03/2019,740.00,740.00
51,600120,Post 16 Travel and Accommodation Grant,Childrens Services,Community,47016,Accomodation Grants,Mr & Mrs P Osborne,2018-19 Post 16 Grant,2506584 ,"1,868.83", 21/03/2019,"1,705.33","1,868.83"
51,600120,Post 16 Travel and Accommodation Grant,Childrens Services,Community,47016,Accomodation Grants,Tamasin Bridge,2018-19 Post 16 Grant A3 Chuter D,2502915 ,"1,705.33", 21/03/2019,"1,705.33","1,705.33"
51,600120,Post 16 Travel and Accommodation Grant,Childrens Services,Community,47016,Accomodation Grants,Ms E Driscoll,2018-19 Post 16 Grant A5 Driscoll Johnson M,2502928 ,948.36, 21/03/2019,852.66,948.36
51,600120,Post 16 Travel and Accommodation Grant,Childrens Services,Community,47016,Accomodation Grants,Michelle Morel,2018-19 POST 16 GRANT A3 MOREL F,2502935 ,"1,705.33", 21/03/2019,"1,705.33","1,705.33"
51,600120,Post 16 Travel and Accommodation Grant,Childrens Services,Community,47017,Travel Grant,Mr & Mrs A Gilbert,2018-19 Post 16 Grant A5 Gilbert S / 2018-19 Post 16 Grant T2 Gilbert S,2506455 ,934.41, 21/03/2019,81.75,934.41
51,600120,Post 16 Travel and Accommodation Grant,Childrens Services,Community,47017,Travel Grant,Mr & Mrs P Osborne,2018-19 Post 16 Grant,2506584 ,"1,868.83", 21/03/2019,81.75,"1,868.83"
51,600120,Post 16 Travel and Accommodation Grant,Childrens Services,Community,47017,Travel Grant,Mr & Mrs P Osborne,2018-19 Post 16 Grant,2506584 ,"1,868.83", 21/03/2019,81.75,"1,868.83"
51,600120,Post 16 Travel and Accommodation Grant,Childrens Services,Community,47017,Travel Grant,Ms E Driscoll,2018-19 Post 16 Grant T4 Driscoll Johnson M,2502928 ,948.36, 21/03/2019,95.70,948.36
51,600120,Post 16 Travel and Accommodation Grant,Childrens Services,Community,47016,Accomodation Grants,Mrs C Hicks,2018-19 Post 16 Grant A5 Hicks A,2508083 ,952.66, 26/03/2019,852.66,952.66
51,600120,Post 16 Travel and Accommodation Grant,Childrens Services,Community,47016,Accomodation Grants,Mr Piers Lewin,2018-19 Post 16 Grant A3 Lewin L,2509070 ,"1,905.33", 26/03/2019,"1,705.33","1,905.33"
51,600120,Post 16 Travel and Accommodation Grant,Childrens Services,Community,47017,Travel Grant,Mrs C Hicks,2018-19 Post 16 Grant A5 Hicks A and 2018-19 Post 16 Grant T4 Hicks A,2508083 ,952.66, 26/03/2019,100.00,952.66
51,600120,Post 16 Travel and Accommodation Grant,Childrens Services,Community,47017,Travel Grant,Mr Piers Lewin,2018-19 Post 16 Grant T4 Lewin L,2509070 ,"1,905.33", 26/03/2019,100.00,"1,905.33"
51,600120,Post 16 Travel and Accommodation Grant,Childrens Services,Community,47017,Travel Grant,Mr Piers Lewin,2018-19 Post 16 Grant T3 Lewin L,2509070 ,"1,905.33", 26/03/2019,100.00,"1,905.33"
51,600120,Post 16 Travel and Accommodation Grant,Childrens Services,Community,47016,Accomodation Grants,Diana Mompoloki,2018-19 Post 16 Grant A5 Mompoloki K,2511812 ,952.66, 28/03/2019,852.66,952.66
51,600120,Post 16 Travel and Accommodation Grant,Childrens Services,Community,47016,Accomodation Grants,R Thornton,2018-19 Post 16 Grant A5 Underwood I,2511778 ,852.66, 28/03/2019,852.66,852.66
51,600120,Post 16 Travel and Accommodation Grant,Childrens Services,Community,47017,Travel Grant,Diana Mompoloki,2018-19 Post 16 Grant A5 / T4 Mompoloki K,2511812 ,952.66, 28/03/2019,100.00,952.66
51,600121,Home to School Transport,Childrens Services,Community,31603,Other Public Transport,Tresco Estate,Tresco Boats HTS Travel Nov-Dec 2018,2432820 ,"1,225.00", 03/01/2019,"1,225.00","1,225.00"
51,600121,Home to School Transport,Childrens Services,Community,31812,Home to School Transport - Volunteer and Other Payments,Joanne Whitaker,2018-Re-Tresco Sch Esc JW INV 121,2432807 ,"1,900.00", 08/01/2019,"1,900.00","1,900.00"
51,600121,Home to School Transport,Childrens Services,Community,12604,CRB checks - Employees,Cornwall Council,"Re-imbursement for foreign payment in polish Zloty 
Travel & accom for KG NK 4/6/18",2447701 ,518.76, 17/01/2019,11.90,555.06
51,600121,Home to School Transport,Childrens Services,Community,12604,CRB checks - Employees,Cornwall Council,"Re-imbursement for foreign payment in polish Zloty 
Travel & accom for KG NK 4/6/18",2447701 ,518.76, 17/01/2019,-18.30,555.06
51,600121,Home to School Transport,Childrens Services,Community,12604,CRB checks - Employees,Cornwall Council,"Re-imbursement for foreign payment in polish Zloty 
Travel & accom for KG NK 4/6/18",2447701 ,518.76, 17/01/2019,18.30,555.06
51,600121,Home to School Transport,Childrens Services,Community,12604,CRB checks - Employees,Cornwall Council,"Re-imbursement for foreign payment in polish Zloty 
Travel & accom for KG NK 4/6/18",2447701 ,518.76, 17/01/2019,6.40,555.06
51,600121,Home to School Transport,Childrens Services,Community,31603,Other Public Transport,Tresco Estate,Tresco Boat Services- Home to School Boating 7/1/19-18/01/19,2462674 ,"1,200.00", 05/02/2019,"1,200.00","1,200.00"
51,600121,Home to School Transport,Childrens Services,Community,31603,Other Public Transport,James & Alison Stedeford,2019-HtS Travel HS SEN Feb 19,2467860 ,613.24, 12/02/2019,613.24,613.24
51,600121,Home to School Transport,Childrens Services,Community,31603,Other Public Transport,Tresco Estate,Tresco Boats HtS Travel Inv 53902 Jan-Feb 19,2493964 ,"2,325.00", 12/03/2019,"2,325.00","2,325.00"
51,600122,Children Services Staff Costs,Childrens Services,Community,43532,Professional Fees - Other,Mrs Jackie Eason,Final IEB Payment -J Eason 1456,2437671 ,"1,000.00", 10/01/2019,"1,000.00","1,000.00"
51,600122,Children Services Staff Costs,Childrens Services,Community,31602,Air Travel,Cornwall Council,"Re-imbursement for foreign payment in polish Zloty 
Travel & accom for KG NK 4/6/18",2447701 ,518.76, 17/01/2019,207.36,555.06
51,600122,Children Services Staff Costs,Childrens Services,Community,31602,Air Travel,Cornwall Council,"Re-imbursement for foreign payment in polish Zloty 
Travel & accom for KG NK 4/6/18",2447701 ,518.76, 17/01/2019,-318.96,555.06
51,600122,Children Services Staff Costs,Childrens Services,Community,31602,Air Travel,Cornwall Council,"Re-imbursement for foreign payment in polish Zloty 
Travel & accom for KG NK 4/6/18",2447701 ,518.76, 17/01/2019,318.96,555.06
51,600122,Children Services Staff Costs,Childrens Services,Community,31602,Air Travel,Cornwall Council,"Re-imbursement for foreign payment in polish Zloty 
Travel & accom for KG NK 4/6/18",2447701 ,518.76, 17/01/2019,111.60,555.06
51,600122,Children Services Staff Costs,Childrens Services,Community,43532,Professional Fees - Other,Tozers,Tozers Solicitors Inv 20726 (28/9/18),2447945 ,"1,050.00", 17/01/2019,"1,050.00","1,260.00"
51,600122,Children Services Staff Costs,Childrens Services,Community,46103,Hotel Expenses,Cornwall Council,"Re-imbursement for foreign payment in polish Zloty 
Travel & accom for KG NK 4/6/18",2447701 ,518.76, 17/01/2019,118.00,555.06
51,600122,Children Services Staff Costs,Childrens Services,Community,46103,Hotel Expenses,Cornwall Council,"Re-imbursement for foreign payment in polish Zloty 
Travel & accom for KG NK 4/6/18",2447701 ,518.76, 17/01/2019,-181.50,555.06
51,600122,Children Services Staff Costs,Childrens Services,Community,46103,Hotel Expenses,Cornwall Council,"Re-imbursement for foreign payment in polish Zloty 
Travel & accom for KG NK 4/6/18",2447701 ,518.76, 17/01/2019,181.50,555.06
51,600122,Children Services Staff Costs,Childrens Services,Community,46103,Hotel Expenses,Cornwall Council,"Re-imbursement for foreign payment in polish Zloty 
Travel & accom for KG NK 4/6/18",2447701 ,518.76, 17/01/2019,63.50,555.06
51,600122,Children Services Staff Costs,Childrens Services,Community,43525,Land Registry Fees,RBS Commercial Card Division,10-12-2018|6509|KEITH GROSSETT|LAND REGISTRY|WC2A 3PH|9399||,2450082 ,"10,070.35", 25/01/2019,3.00,"10,375.06"
51,600122,Children Services Staff Costs,Childrens Services,Community,43525,Land Registry Fees,RBS Commercial Card Division,10-12-2018|6509|KEITH GROSSETT|LAND REGISTRY|WC2A 3PH|9399||,2450082 ,"10,070.35", 25/01/2019,3.00,"10,375.06"
51,600122,Children Services Staff Costs,Childrens Services,Community,43532,Professional Fees - Other,PCC Of The Isles Of Scilly,IEB FIS Work- Rev Canon P Gay,2434925 ,"4,200.00", 29/01/2019,"-4,200.00","4,200.00"
51,600122,Children Services Staff Costs,Childrens Services,Community,43532,Professional Fees - Other,PCC Of The Isles Of Scilly,IEB FIS Work- Rev Canon P Gay,2434925 ,"4,200.00", 29/01/2019,"4,200.00","4,200.00"
51,600122,Children Services Staff Costs,Childrens Services,Community,43532,Professional Fees - Other,PCC Of The Isles Of Scilly,IEB FIS Work- Rev Canon P Gay,2434925 ,"4,200.00", 29/01/2019,"4,200.00","4,200.00"
51,600122,Children Services Staff Costs,Childrens Services,Community,43532,Professional Fees - Other,Tozers,Tozers- Inv 22849 Conv FIS,2467648 ,"2,100.00", 12/02/2019,"2,100.00","2,520.00"
51,600122,Children Services Staff Costs,Childrens Services,Community,31602,Air Travel,RBS Commercial Card Division,04-01-2019|6459|TRAVEL TEAM|ISLES OF SCILLY SS CO|TR21 0LJ|4411|FLIGHT 239124|IOS_NSTINSON,2478449 ,"18,207.67", 22/02/2019,166.55,"19,082.78"
51,600122,Children Services Staff Costs,Childrens Services,Community,31602,Air Travel,RBS Commercial Card Division,07-01-2019|6459|TRAVEL TEAM|ISLES OF SCILLY SS CO|TR21 0LJ|4411|FLIGHT 239775|IOS_NSTINSON,2478449 ,"18,207.67", 22/02/2019,164.00,"19,082.78"
51,600122,Children Services Staff Costs,Childrens Services,Community,47002,Subscriptions,FFT Education Ltd,FFT LA Aspire renewal contract,2499638 ,"2,523.60", 14/03/2019,"2,523.60","3,028.32"
51,600122,Children Services Staff Costs,Childrens Services,Community,31602,Air Travel,RBS Commercial Card Division,29-01-2019|6459|TRAVEL TEAM|ISLES OF SCILLY SS CO|TR21 0LJ|4411|FLIGHT 24484|IOS_NSTINSON,2507927 ,"18,805.89", 22/03/2019,161.50,"19,035.00"
51,600122,Children Services Staff Costs,Childrens Services,Community,31603,Other Public Transport,Toot's Taxis,Toots taxi Jan -Feb 2019,2465529 ,545.50, 26/03/2019,18.00,545.50
51,600123,High Need SEND,Childrens Services,Community,43532,Professional Fees - Other,Cornwall Council,Global Mediation Subs 2018-19,2431131 ,"1,000.00", 03/01/2019,"1,000.00","1,000.00"
51,600123,High Need SEND,Childrens Services,Community,43532,Professional Fees - Other,Cornwall Council,"Cornwall Council Ed Psych 2017-18
Inv 97192331- 28/12/18",2447938 ,"2,992.00", 24/01/2019,"2,992.00","2,992.00"
51,600123,High Need SEND,Childrens Services,Community,43532,Professional Fees - Other,Cornwall Council,"Cornwall Council -Inv 97187977  Traning/Report Writing- A Mercer
April 2018",2455076 ,"2,095.33", 29/01/2019,"1,125.00","2,095.33"
51,600123,High Need SEND,Childrens Services,Community,57053,Independent Schools - Private Contractors,St Joseph's School,EFA Placement Spring 2019,2467851 ,"54,788.00", 12/02/2019,"54,788.00","54,788.00"
51,600123,High Need SEND,Childrens Services,Community,31602,Air Travel,RBS Commercial Card Division,23-01-2019|6459|TRAVEL TEAM|ISLES OF SCILLY SS CO|TR21 0LJ|4411|FLIGHT 243616|IOS_NSTINSON,2478449 ,"18,207.67", 22/02/2019,206.63,"19,082.78"
51,600123,High Need SEND,Childrens Services,Community,47001,Grants & Conts to Other Bodies - Non Discretionary,Leading Edge Academies Partnership (Five Islands),SEND Top Up High Needs,2503463 ,"15,519.63", 21/03/2019,"15,519.63","15,519.63"
51,600124,SEND Development,Childrens Services,Community,12301,Training,Torbay Council,"SW Reg Conf  Dec 18 
Inv 0853736",2451355 ,552.00, 22/01/2019,552.00,662.40
51,600124,SEND Development,Childrens Services,Community,12301,Training,RBS Commercial Card Division,23-01-2019|7435|JOANNA EVANS|PAYPAL  DARTINGTON|TW91EH|8398||IOS_NSTINSON,2478449 ,"18,207.67", 22/02/2019,-30.00,"19,082.78"
51,600124,SEND Development,Childrens Services,Community,12301,Training,RBS Commercial Card Division,23-01-2019|7435|JOANNA EVANS|PAYPAL  DARTINGTON|TW91EH|8398||IOS_NSTINSON,2478449 ,"18,207.67", 22/02/2019,30.00,"19,082.78"
51,600124,SEND Development,Childrens Services,Community,31602,Air Travel,RBS Commercial Card Division,24-01-2019|6459|TRAVEL TEAM|ISLES OF SCILLY SS CO|TR21 0LJ|4411|FLIGHT 243882|IOS_NSTINSON,2478449 ,"18,207.67", 22/02/2019,168.75,"19,082.78"
51,600124,SEND Development,Childrens Services,Community,43505,Consultants - Other,Genuine Partnerships CIC,Consultancy Costs for Genuine Partnerships SEND Grant,2488378 ,"2,500.00", 05/03/2019,"2,500.00","2,500.00"
51,600124,SEND Development,Childrens Services,Community,31602,Air Travel,RBS Commercial Card Division,04-02-2019|6459|TRAVEL TEAM|ISLES OF SCILLY SS CO|TR21 0LJ|4411|FLIGHT 245968|IOS_NSTINSON,2507927 ,"18,805.89", 22/03/2019,126.66,"19,035.00"
51,600124,SEND Development,Childrens Services,Community,31602,Air Travel,RBS Commercial Card Division,04-02-2019|6459|TRAVEL TEAM|ISLES OF SCILLY SS CO|TR21 0LJ|4411|FLIGHT 245968|IOS_NSTINSON,2507927 ,"18,805.89", 22/03/2019,450.00,"19,035.00"
51,600124,SEND Development,Childrens Services,Community,47013,Grants & Conts to Other Bodies - Discretionary,Cornwall Council,Grant Payment for SI Coordinator,2511639 ,"25,179.00", 26/03/2019,"25,179.00","25,179.00"
51,600130,Children Social Care - Strategic,Childrens Social Care,Community,31602,Air Travel,RBS Commercial Card Division,30-11-2018|6459|TRAVEL TEAM|ISLES OF SCILLY SS CO|TR21 0LJ|4411|RETURN FLIGHTS FOR AISLING KHAN - 235647|IOS_NSTINSON,2450082 ,"10,070.35", 25/01/2019,173.50,"10,375.06"
51,600130,Children Social Care - Strategic,Childrens Social Care,Community,31602,Air Travel,RBS Commercial Card Division,19-12-2018|6459|TRAVEL TEAM|ISLES OF SCILLY SS CO|TR21 0LJ|4411|RETURN FLIGHTS FOR LYN PLUMMER - 237409|IOS_NSTINSON,2450082 ,"10,070.35", 25/01/2019,160.55,"10,375.06"
51,600130,Children Social Care - Strategic,Childrens Social Care,Community,46103,Hotel Expenses,RBS Commercial Card Division,21-12-2018|7427|LYNN PLUMMER|WWW.BOSAVERN.COM|TR19 7RD|7011|ACCOMODATION LYNN PLUMMER AND AISLING KHAN|,2450082 ,"10,070.35", 25/01/2019,50.00,"10,375.06"
51,600130,Children Social Care - Strategic,Childrens Social Care,Community,46103,Hotel Expenses,RBS Commercial Card Division,21-12-2018|7427|LYNN PLUMMER|HOLIDAY INNS|TA1 2PX|3501|ACCOMODATION LPLUMMER AND A KHAN|,2450082 ,"10,070.35", 25/01/2019,106.67,"10,375.06"
51,600130,Children Social Care - Strategic,Childrens Social Care,Community,62005,Section 17 Payments,RBS Commercial Card Division,10-12-2018|7427|LYNN PLUMMER|AMZN MKTP UK M070I9984|L2338|5942|BIKE FUNDED BY CHARITY TO BE REPAID TO CSC|,2450082 ,"10,070.35", 25/01/2019,82.50,"10,375.06"
51,600130,Children Social Care - Strategic,Childrens Social Care,Community,52001,Payments to Other Local Authorities,Cornwall Council,"LADO charges for September 2018. Chairing, preparing and minuting meetings, including advice and guidance.",2455076 ,"2,095.33", 29/01/2019,970.33,"2,095.33"
51,600130,Children Social Care - Strategic,Childrens Social Care,Community,52001,Payments to Other Local Authorities,Cornwall Council,"LADO services for Oct, Nov and Dec 2018 - invoice no: 98265556.",2457541 ,"1,008.00", 07/02/2019,"1,008.00","1,008.00"
51,600130,Children Social Care - Strategic,Childrens Social Care,Community,31602,Air Travel,RBS Commercial Card Division,21-01-2019|6459|TRAVEL TEAM|ISLES OF SCILLY SS CO|TR21 0LJ|4411|FLIGHT 243158|IOS_NSTINSON,2478449 ,"18,207.67", 22/02/2019,187.15,"19,082.78"
51,600130,Children Social Care - Strategic,Childrens Social Care,Community,46103,Hotel Expenses,RBS Commercial Card Division,03-01-2019|7427|LYNN PLUMMER|WWW.BOSAVERN.COM|TR19 7RD|7011|ACCOMMODATION AISLING KHAN|IOS_AKHAN,2478449 ,"18,207.67", 22/02/2019,56.25,"19,082.78"
51,600130,Children Social Care - Strategic,Childrens Social Care,Community,46103,Hotel Expenses,RBS Commercial Card Division,18-01-2019|7427|LYNN PLUMMER|PREMIER INN|TR8 4LE|3811|ACCOMMODATION B HOOK VISIT SERVICE USER|IOS_AKHAN,2478449 ,"18,207.67", 22/02/2019,57.50,"19,082.78"
51,600130,Children Social Care - Strategic,Childrens Social Care,Community,31601,Rail,RBS Commercial Card Division,07-02-2019|7427|LYNN PLUMMER|HTTP://WWW.ARRIVAT|LD1 5BB|4112|TRAIN TICKET BRIAN HOOK|,2507927 ,"18,805.89", 22/03/2019,65.83,"19,035.00"
51,600130,Children Social Care - Strategic,Childrens Social Care,Community,31602,Air Travel,RBS Commercial Card Division,27-02-2019|6459|TRAVEL TEAM|ISLES OF SCILLY SS CO|TR21 0LJ|4411|FLIGHT 250118|IOS_NSTINSON,2507927 ,"18,805.89", 22/03/2019,338.20,"19,035.00"
51,600131,Children Social Care - Commissioning,Childrens Social Care,Community,11601,Agency Costs,Sanctuary Personnel Ltd,"Agency fee's for Locum Children's Social Worker, Brian Hook, Invoice number INV00331351.",2432989 ,438.00, 15/01/2019,438.00,525.60
51,600131,Children Social Care - Commissioning,Childrens Social Care,Community,11601,Agency Costs,Sanctuary Personnel Ltd,"Agency fees for locum Children's Social Worker, Brian Hook, INV00352282",2432989 ,438.00, 15/01/2019,438.00,525.60
51,600131,Children Social Care - Commissioning,Childrens Social Care,Community,11601,Agency Costs,Sanctuary Personnel Ltd,"Agency fee's for Locum Children's Social Worker, Brian Hook, Invoice number INV00331351.",2432989 ,438.00, 15/01/2019,-438.00,525.60
51,600131,Children Social Care - Commissioning,Childrens Social Care,Community,43532,Professional Fees - Other,A Stacey SW Ltd,Professional services of independent children's social worker.,2447739 ,"2,070.00", 17/01/2019,"2,070.00","2,070.00"
51,600131,Children Social Care - Commissioning,Childrens Social Care,Community,11601,Agency Costs,Sanctuary Personnel Ltd,"Agency fees for Locum Children's Social Worker, Brian Hook INV00355420",2431597 ,"1,113.25", 22/01/2019,"1,113.25","1,335.90"
51,600131,Children Social Care - Commissioning,Childrens Social Care,Community,31602,Air Travel,RBS Commercial Card Division,30-11-2018|6459|TRAVEL TEAM|ISLES OF SCILLY SS CO|TR21 0LJ|4411|RETURN FLIGHTS FOR AISLING KHAN - 235648|IOS_NSTINSON,2450082 ,"10,070.35", 25/01/2019,125.06,"10,375.06"
51,600131,Children Social Care - Commissioning,Childrens Social Care,Community,31602,Air Travel,RBS Commercial Card Division,05-12-2018|6459|TRAVEL TEAM|ISLES OF SCILLY SS CO|TR21 0LJ|4411|RETURN FLIGHTS FOR B HOOK - 236154|IOS_NSTINSON,2450082 ,"10,070.35", 25/01/2019,215.65,"10,375.06"
51,600131,Children Social Care - Commissioning,Childrens Social Care,Community,11601,Agency Costs,Sanctuary Personnel Ltd,"Agency cost for locum Children's Social Worker, Brian Hook. INV00361141.",2453911 ,"1,350.50", 29/01/2019,"1,350.50","1,620.60"
51,600131,Children Social Care - Commissioning,Childrens Social Care,Community,11601,Agency Costs,Sanctuary Personnel Ltd,"Agency costs for Children's Social Worker, Brian Hook INV00361143",2453913 ,"1,113.25", 12/02/2019,"1,113.25","1,335.90"
51,600131,Children Social Care - Commissioning,Childrens Social Care,Community,31602,Air Travel,RBS Commercial Card Division,07-01-2019|6459|TRAVEL TEAM|ISLES OF SCILLY SS CO|TR21 0LJ|4411|FLIGHT 239968|IOS_NSTINSON,2478449 ,"18,207.67", 22/02/2019,113.06,"19,082.78"
51,600131,Children Social Care - Commissioning,Childrens Social Care,Community,31602,Air Travel,RBS Commercial Card Division,14-01-2019|6459|TRAVEL TEAM|ISLES OF SCILLY SS CO|TR21 0LJ|4411|FLIGHT 241499|IOS_NSTINSON,2478449 ,"18,207.67", 22/02/2019,206.63,"19,082.78"
51,600131,Children Social Care - Commissioning,Childrens Social Care,Community,11601,Agency Costs,Sanctuary Personnel Ltd,"Agency fee's for Locum Children's Social Worker, Brian Hook, Invoice number INV00331351.",2468351 ,"1,350.50", 28/02/2019,"1,350.50","1,620.60"
51,600131,Children Social Care - Commissioning,Childrens Social Care,Community,11601,Agency Costs,Sanctuary Personnel Ltd,"Agency fee's for Locum Children's Social Worker, Brian Hook w/c 14/01/19 invoice number: INV00368262.",2472422 ,"1,350.50", 05/03/2019,"1,350.50","1,620.60"
51,600131,Children Social Care - Commissioning,Childrens Social Care,Community,46108,Board and Lodging,Scilly Hols Ltd,"Self catering accommodation for locum Children's Social Worker, Brian Hook.",2494817 ,770.00, 12/03/2019,770.00,770.00
51,600131,Children Social Care - Commissioning,Childrens Social Care,Community,43571,Agency Fees,Sanctuary Personnel Ltd,"Agency fees for locum Children's Social Worker Brian Hook, INV00375704",2494216 ,"1,350.50", 19/03/2019,"1,350.50","1,620.60"
51,600131,Children Social Care - Commissioning,Childrens Social Care,Community,46108,Board and Lodging,Scilly Hols Ltd,"Electricity used in Gulls Way by Locum SW from  08 Oct 2018 to 31 Jan 2019, invoice 129.",2505203 ,"1,051.57", 19/03/2019,"1,051.57","1,051.57"
51,600131,Children Social Care - Commissioning,Childrens Social Care,Community,31602,Air Travel,RBS Commercial Card Division,22-02-2019|6459|TRAVEL TEAM|ISLES OF SCILLY SS CO|TR21 0LJ|4411|FLIGHT 249187 AMENDMENT|IOS_NSTINSON,2507927 ,"18,805.89", 22/03/2019,18.70,"19,035.00"
51,600131,Children Social Care - Commissioning,Childrens Social Care,Community,31602,Air Travel,RBS Commercial Card Division,22-02-2019|6459|TRAVEL TEAM|ISLES OF SCILLY SS CO|TR21 0LJ|4411|FLIGHT 249187|IOS_NSTINSON,2507927 ,"18,805.89", 22/03/2019,181.10,"19,035.00"
51,600131,Children Social Care - Commissioning,Childrens Social Care,Community,31602,Air Travel,RBS Commercial Card Division,07-02-2019|6459|TRAVEL TEAM|ISLES OF SCILLY SS CO|TR21 0LJ|4411|FLIGHT 246466|IOS_NSTINSON,2507927 ,"18,805.89", 22/03/2019,90.55,"19,035.00"
51,600131,Children Social Care - Commissioning,Childrens Social Care,Community,31602,Air Travel,RBS Commercial Card Division,28-01-2019|6459|TRAVEL TEAM|ISLES OF SCILLY SS CO|TR21 0LJ|4411|FLIGHT 244543|IOS_NSTINSON,2507927 ,"18,805.89", 22/03/2019,206.63,"19,035.00"
51,600131,Children Social Care - Commissioning,Childrens Social Care,Community,31602,Air Travel,RBS Commercial Card Division,07-02-2019|6459|TRAVEL TEAM|ISLES OF SCILLY SS CO|TR21 0LJ|4411|FLIGHT 246497|IOS_NSTINSON,2507927 ,"18,805.89", 22/03/2019,106.40,"19,035.00"
51,600131,Children Social Care - Commissioning,Childrens Social Care,Community,11601,Agency Costs,Sanctuary Personnel Ltd,"Agency fees for locum Children's Social Worker, Brian Hook. Invoice No: INV00380881.",2511709 ,"1,350.50", 28/03/2019,"1,350.50","1,620.60"
51,600131,Children Social Care - Commissioning,Childrens Social Care,Community,43571,Agency Fees,Sanctuary Personnel Ltd,"Agency fees for Children's Social Worker, Brian Hook. Inv.No: INV00377775.",2501776 ,"1,003.75", 28/03/2019,"1,003.75","1,204.50"
51,600131,Children Social Care - Commissioning,Childrens Social Care,Community,91708,DWP - non-specific grants,DWP,Reducing Parental Conflict Isles of Scilly SLS Grant overpayment  - cost centre 10386190,2512255 ,"7,500.00", 28/03/2019,"7,500.00","7,500.00"
51,600132,S17 Family Support,Childrens Social Care,Community,62005,Section 17 Payments,RBS Commercial Card Division,11-12-2018|7427|LYNN PLUMMER|CO-OP GROUP 160128|TR21 0LL|5411|XMAS BOX FOR YOUNG CARERS AND HOSPITALITY/TRAINING COFFEE|,2450082 ,"10,070.35", 25/01/2019,15.42,"10,375.06"
51,600132,S17 Family Support,Childrens Social Care,Community,46103,Hotel Expenses,RBS Commercial Card Division,08-01-2019|7427|LYNN PLUMMER|COUNTY ARMS|TR1 3PY|7011|ACCOMMODATION FOR PARENT OF CHILD IN HOSPITAL|IOS_AKHAN,2478449 ,"18,207.67", 22/02/2019,66.75,"19,082.78"
51,600133,CSC Short Break Care,Childrens Social Care,Community,57014,Client Related Personal Needs - Private Contractors,Emma Day,Reimbursement for Short Breaks Care Budget,2494230 ,670.00, 12/03/2019,670.00,670.00
51,600133,CSC Short Break Care,Childrens Social Care,Community,57014,Client Related Personal Needs - Private Contractors,Laura Hicks,Reimbursement to SBCB client for family break,2499506 ,809.23, 19/03/2019,809.23,809.23
51,600140,Public Health,Public Health,Community,57083,Public Health Contracts - Private Contractors,Cornwall Council,Public Health Service for the Isles of Scilly 2018/2019 Invoice 2,2494965 ,"58,000.00", 12/03/2019,"58,000.00","58,000.00"
51,600141,Community Safety,Community Safety,Community,73645,Floating Support Service (Non VATable),Cornwall Council,Domestic Violence Services,2480406 ,"5,000.00", 07/03/2019,"5,000.00","5,000.00"
51,600141,Community Safety,Community Safety,Community,31602,Air Travel,RBS Commercial Card Division,07-02-2019|6459|TRAVEL TEAM|ISLES OF SCILLY SS CO|TR21 0LJ|4411|FLIGHT 246541|IOS_NSTINSON,2507927 ,"18,805.89", 22/03/2019,169.10,"19,035.00"
51,600150,Community SLT,Community Management,Community,31601,Rail,RBS Commercial Card Division,10-12-2018|2419|AISLING KHAN|GWR PENZANCE TO|TR18 2LT|4112|SCP MEETING|IOS_TLEIJSER,2450082 ,"10,070.35", 25/01/2019,7.40,"10,375.06"
51,600150,Community SLT,Community Management,Community,46103,Hotel Expenses,RBS Commercial Card Division,11-12-2018|2419|AISLING KHAN|MANNINGS HOTEL|TR1 2QB|7011|SCP/ONE VISION MEETING|IOS_TLEIJSER,2450082 ,"10,070.35", 25/01/2019,75.00,"10,375.06"
51,600150,Community SLT,Community Management,Community,31503,Taxi and Minibus,RBS Commercial Card Division,25-01-2019|2419|AISLING KHAN|A2B TAXIS TRURO LTD|TR4 9AU|4121|TAXI TO MEETING|,2478449 ,"18,207.67", 22/02/2019,5.13,"19,082.78"
51,600150,Community SLT,Community Management,Community,31503,Taxi and Minibus,RBS Commercial Card Division,23-01-2019|2419|AISLING KHAN|A2B TAXIS TRURO LTD|TR4 9AU|4121|TAXI TO MEETING|,2478449 ,"18,207.67", 22/02/2019,5.00,"19,082.78"
51,600150,Community SLT,Community Management,Community,31503,Taxi and Minibus,RBS Commercial Card Division,23-01-2019|2419|AISLING KHAN|A2B TAXIS TRURO LTD|TR4 9AU|4121|TAXI TO MEETING|,2478449 ,"18,207.67", 22/02/2019,5.00,"19,082.78"
51,600150,Community SLT,Community Management,Community,31503,Taxi and Minibus,RBS Commercial Card Division,23-01-2019|2419|AISLING KHAN|A2B TAXIS TRURO LTD|TR4 9AU|4121|TRAVEL TO MEETING|,2478449 ,"18,207.67", 22/02/2019,5.00,"19,082.78"
51,600150,Community SLT,Community Management,Community,31503,Taxi and Minibus,RBS Commercial Card Division,24-01-2019|2419|AISLING KHAN|A2B TAXIS TRURO LTD|TR4 9AU|4121|TAXI TO MEETING|,2478449 ,"18,207.67", 22/02/2019,5.20,"19,082.78"
51,600150,Community SLT,Community Management,Community,31601,Rail,RBS Commercial Card Division,08-01-2019|2419|AISLING KHAN|GWR PENZANCE SST|TR18 2LT|4112|TRAIN TO MEETING|,2478449 ,"18,207.67", 22/02/2019,7.20,"19,082.78"
51,600150,Community SLT,Community Management,Community,31601,Rail,RBS Commercial Card Division,16-01-2019|2419|AISLING KHAN|GWR PENZANCE SST|TR18 2LT|4112|TRAIN TO MEETING|,2478449 ,"18,207.67", 22/02/2019,7.20,"19,082.78"
51,600150,Community SLT,Community Management,Community,31601,Rail,RBS Commercial Card Division,23-01-2019|2419|AISLING KHAN|GWR PENZANCE SST|TR18 2LT|4112|TRAIN TO MEETINGS|,2478449 ,"18,207.67", 22/02/2019,7.20,"19,082.78"
51,600150,Community SLT,Community Management,Community,31601,Rail,RBS Commercial Card Division,25-01-2019|2419|AISLING KHAN|GWR TRURO SST|TR1 3HH|4112|TRAIN TO MEETING|,2478449 ,"18,207.67", 22/02/2019,7.30,"19,082.78"
51,600150,Community SLT,Community Management,Community,46103,Hotel Expenses,RBS Commercial Card Division,17-01-2019|2419|AISLING KHAN|MANNINGS HOTEL|TR1 2QB|7011|OVERNIGHT STAY FOR MEETINGS|,2478449 ,"18,207.67", 22/02/2019,90.00,"19,082.78"
51,600150,Community SLT,Community Management,Community,46103,Hotel Expenses,RBS Commercial Card Division,25-01-2019|2419|AISLING KHAN|MANNINGS HOTEL|TR1 2QB|7011|OVERNIGHT STAY FOR MEETINGS (FOG ONE NIGHT)|,2478449 ,"18,207.67", 22/02/2019,108.33,"19,082.78"
51,600200,Environmental Health & Food,Environmental Services,Strategic Development and Finance,12301,Training,RBS Commercial Card Division,30-11-2018|7468|MICHAEL COATES|ROYAL SOCIETY FOR|E18 AN|8398||IOS_NSTINSON,2450082 ,"10,070.35", 25/01/2019,30.00,"10,375.06"
51,600200,Environmental Health & Food,Environmental Services,Strategic Development and Finance,31602,Air Travel,RBS Commercial Card Division,18-12-2018|6459|TRAVEL TEAM|ISLES OF SCILLY SS CO|TR21 0LJ|4411|RETURN FLIGHTS FOR MIKE COATES & SANDY CAMPBELL - 237318|IOS_NSTINSON,2450082 ,"10,070.35", 25/01/2019,313.50,"10,375.06"
51,600200,Environmental Health & Food,Environmental Services,Strategic Development and Finance,43532,Professional Fees - Other,Cornwall Council,Trading Standards Inspections to the IOS in September 2018 - Matt Collings,2472268 ,434.16, 14/02/2019,51.15,510.76
51,600200,Environmental Health & Food,Environmental Services,Strategic Development and Finance,43532,Professional Fees - Other,Cornwall Council,Trading Standards Inspections to the IOS in September 2018 - Matt Collings,2472268 ,434.16, 14/02/2019,383.01,510.76
51,600200,Environmental Health & Food,Environmental Services,Strategic Development and Finance,43532,Professional Fees - Other,Cornwall Council,Trading Standards Inspections to the IOS in September 2018 - Matt Collings,2472268 ,434.16, 14/02/2019,-434.16,510.76
51,600200,Environmental Health & Food,Environmental Services,Strategic Development and Finance,43532,Professional Fees - Other,Cornwall Council,Trading Standards Inspections to the IOS in September 2018 - Matt Collings,2472268 ,434.16, 14/02/2019,434.16,510.76
51,600200,Environmental Health & Food,Environmental Services,Strategic Development and Finance,31602,Air Travel,RBS Commercial Card Division,07-01-2019|6459|TRAVEL TEAM|ISLES OF SCILLY SS CO|TR21 0LJ|4411|ADJUSTMENT FOR M COATES & S CAMPBELL - 237318|IOS_NSTINSON,2478449 ,"18,207.67", 22/02/2019,39.90,"19,082.78"
51,600200,Environmental Health & Food,Environmental Services,Strategic Development and Finance,46103,Hotel Expenses,RBS Commercial Card Division,09-01-2019|7468|MICHAEL COATES|PREMIER INN|TQ12 3AF|3811||IOS_NSTINSON,2478449 ,"18,207.67", 22/02/2019,175.00,"19,082.78"
51,600200,Environmental Health & Food,Environmental Services,Strategic Development and Finance,46103,Hotel Expenses,RBS Commercial Card Division,10-01-2019|7468|MICHAEL COATES|PREMIER INN|TR27 4PN|3811||IOS_NSTINSON,2478449 ,"18,207.67", 22/02/2019,141.00,"19,082.78"
51,600200,Environmental Health & Food,Environmental Services,Strategic Development and Finance,43506,Professional Fees - Legal,Cornwall Council,For Legal services relating to Treboeth,2479680 ,"3,292.80", 19/03/2019,950.40,"3,951.36"
51,600200,Environmental Health & Food,Environmental Services,Strategic Development and Finance,31602,Air Travel,RBS Commercial Card Division,18-02-2019|6459|TRAVEL TEAM|ISLES OF SCILLY SS CO|TR21 0LJ|4411|FLIGHT 248358|IOS_NSTINSON,2507927 ,"18,805.89", 22/03/2019,156.75,"19,035.00"
51,600200,Environmental Health & Food,Environmental Services,Strategic Development and Finance,43532,Professional Fees - Other,RBS Commercial Card Division,30-01-2019|7468|MICHAEL COATES|WWW.IOSH.CO.UK|LE18 1NN|8699||,2507927 ,"18,805.89", 22/03/2019,165.00,"19,035.00"
51,600200,Environmental Health & Food,Environmental Services,Strategic Development and Finance,43532,Professional Fees - Other,RBS Commercial Card Division,30-01-2019|7468|MICHAEL COATES|WWW.IOSH.CO.UK|LE18 1NN|8699||,2507927 ,"18,805.89", 22/03/2019,165.00,"19,035.00"
51,600200,Environmental Health & Food,Environmental Services,Strategic Development and Finance,31503,Taxi and Minibus,Toot's Taxis,Taxi to airport for Mike Coates & Sandy Campbell - 9th Jan 19,2465529 ,545.50, 26/03/2019,8.00,545.50
51,600210,Adult Education,Learning and  Library,Strategic Development and Finance,43576,Purchased Training (Not for Staff),Comera Medical Training Ltd,Delivery of EFAW course 14th Jan 19,2447726 ,425.00, 17/01/2019,425.00,510.00
51,600210,Adult Education,Learning and  Library,Strategic Development and Finance,42001,Catering - Provisions,RBS Commercial Card Division,14-12-2018|7435|JOANNA EVANS|CO-OP GROUP 160128|TR21 0LL|5411||IOS_NSTINSON,2450082 ,"10,070.35", 25/01/2019,1.90,"10,375.06"
51,600210,Adult Education,Learning and  Library,Strategic Development and Finance,46103,Hotel Expenses,RBS Commercial Card Division,30-11-2018|7435|JOANNA EVANS|HOTEL ON BOOKING.COM|1017 SG|7011||IOS_NSTINSON,2450082 ,"10,070.35", 25/01/2019,49.00,"10,375.06"
51,600210,Adult Education,Learning and  Library,Strategic Development and Finance,12301,Training,In Safe Hands Health & Safety Training & Consultancy Ltd,L2 Principles of Risk Assessments. One day training for CIOS staff,2462975 ,595.00, 07/02/2019,595.00,714.00
51,600210,Adult Education,Learning and  Library,Strategic Development and Finance,12301,Training,TS Training Ltd,Counterbalance forklift training for 6 people 22nd and 23rd jan,2464031 ,480.00, 14/02/2019,480.00,576.00
51,600210,Adult Education,Learning and  Library,Strategic Development and Finance,12301,Training,TS Training Ltd,Counterbalance forklift training for 6 people 22nd and 23rd jan,2464031 ,480.00, 14/02/2019,-480.00,576.00
51,600210,Adult Education,Learning and  Library,Strategic Development and Finance,12301,Training,TS Training Ltd,Counterbalance Forklift Training for 6 people on the 22nd and 23rd jan 19,2464031 ,480.00, 14/02/2019,240.00,576.00
51,600210,Adult Education,Learning and  Library,Strategic Development and Finance,43576,Purchased Training (Not for Staff),TS Training Ltd,Counterbalance Forklift Training for 6 people on the 22nd and 23rd jan 19,2464031 ,480.00, 14/02/2019,240.00,576.00
51,600210,Adult Education,Learning and  Library,Strategic Development and Finance,31602,Air Travel,RBS Commercial Card Division,02-01-2019|6459|TRAVEL TEAM|ISLES OF SCILLY SS CO|TR21 0LJ|4411|RETURN FLIGHT FOR TIM SAMALS - 238742|IOS_NSTINSON,2478449 ,"18,207.67", 22/02/2019,171.50,"19,082.78"
51,600210,Adult Education,Learning and  Library,Strategic Development and Finance,31602,Air Travel,RBS Commercial Card Division,17-01-2019|6459|TRAVEL TEAM|ISLES OF SCILLY SS CO|TR21 0LJ|4411|FLIGHT 242379|IOS_NSTINSON,2478449 ,"18,207.67", 22/02/2019,152.00,"19,082.78"
51,600210,Adult Education,Learning and  Library,Strategic Development and Finance,31602,Air Travel,RBS Commercial Card Division,24-01-2019|6459|TRAVEL TEAM|ISLES OF SCILLY SS CO|TR21 0LJ|4411|RETURN FLIGHTS FOR H TITE - 243801|IOS_NSTINSON,2478449 ,"18,207.67", 22/02/2019,152.00,"19,082.78"
51,600210,Adult Education,Learning and  Library,Strategic Development and Finance,43512,Publicity Promotions & Marketing,RBS Commercial Card Division,04-01-2019|7435|JOANNA EVANS|FACEBK 3S9P7J22E2|2|7311||IOS_NSTINSON,2478449 ,"18,207.67", 22/02/2019,8.44,"19,082.78"
51,600210,Adult Education,Learning and  Library,Strategic Development and Finance,43539,Exam Fees,RBS Commercial Card Division,03-01-2019|7435|JOANNA EVANS|CIM|SL6 9QH|7392||IOS_NSTINSON,2478449 ,"18,207.67", 22/02/2019,145.00,"19,082.78"
51,600210,Adult Education,Learning and  Library,Strategic Development and Finance,12301,Training,Lee Holley,Delivery of 4 day NPLQ Qualification and materials plus assessor fee,2486068 ,"1,603.00", 05/03/2019,"1,603.00","1,603.00"
51,600210,Adult Education,Learning and  Library,Strategic Development and Finance,12301,Training,Southern Lifeguard Training,NPLQ TA course payment,2486991 ,"1,240.00", 05/03/2019,"1,240.00","1,240.00"
51,600210,Adult Education,Learning and  Library,Strategic Development and Finance,12301,Training,John Mills (Consultancy) Ltd,John Mills Travel from Gatwick to Newquay invoicing us for his travel expenses,2483182 ,"1,134.23", 05/03/2019,139.23,"1,134.23"
51,600210,Adult Education,Learning and  Library,Strategic Development and Finance,12301,Training,John Mills (Consultancy) Ltd,John Mills Travel from Gatwick to Newquay invoicing us for his travel expenses,2483182 ,"1,134.23", 05/03/2019,-104.78,"1,134.23"
51,600210,Adult Education,Learning and  Library,Strategic Development and Finance,12301,Training,John Mills (Consultancy) Ltd,John Mills Travel from Gatwick to Newquay invoicing us for his travel expenses,2483182 ,"1,134.23", 05/03/2019,104.78,"1,134.23"
51,600210,Adult Education,Learning and  Library,Strategic Development and Finance,43536,Assessment Fees,Assessment Services Ltd,Matrix Assessment accreditation for Learn Scilly,2468577 ,"1,550.00", 05/03/2019,"1,550.00","1,860.00"
51,600210,Adult Education,Learning and  Library,Strategic Development and Finance,73401,Training / Course Fees (Conducted by Cormac) Exp,John Mills (Consultancy) Ltd,The delivery of Job Evaluation training to CIOS employees,2483182 ,"1,134.23", 05/03/2019,995.00,"1,134.23"
51,600210,Adult Education,Learning and  Library,Strategic Development and Finance,73401,Training / Course Fees (Conducted by Cormac) Exp,John Mills (Consultancy) Ltd,The delivery of Job Evaluation training to CIOS employees,2483182 ,"1,134.23", 05/03/2019,-29.45,"1,134.23"
51,600210,Adult Education,Learning and  Library,Strategic Development and Finance,73401,Training / Course Fees (Conducted by Cormac) Exp,John Mills (Consultancy) Ltd,The delivery of Job Evaluation training to CIOS employees,2483182 ,"1,134.23", 05/03/2019,"-1,000.00","1,134.23"
51,600210,Adult Education,Learning and  Library,Strategic Development and Finance,73401,Training / Course Fees (Conducted by Cormac) Exp,John Mills (Consultancy) Ltd,The delivery of Job Evaluation training to CIOS employees,2483182 ,"1,134.23", 05/03/2019,29.45,"1,134.23"
51,600210,Adult Education,Learning and  Library,Strategic Development and Finance,73401,Training / Course Fees (Conducted by Cormac) Exp,John Mills (Consultancy) Ltd,The delivery of Job Evaluation training to CIOS employees,2483182 ,"1,134.23", 05/03/2019,"1,000.00","1,134.23"
51,600210,Adult Education,Learning and  Library,Strategic Development and Finance,73401,Training / Course Fees (Conducted by Cormac) Exp,John Mills (Consultancy) Ltd,The delivery of Job Evaluation training to CIOS employees,2483182 ,"1,134.23", 05/03/2019,-995.00,"1,134.23"
51,600210,Adult Education,Learning and  Library,Strategic Development and Finance,73401,Training / Course Fees (Conducted by Cormac) Exp,John Mills (Consultancy) Ltd,The delivery of Job Evaluation training to CIOS employees,2483182 ,"1,134.23", 05/03/2019,995.00,"1,134.23"
51,600210,Adult Education,Learning and  Library,Strategic Development and Finance,43576,Purchased Training (Not for Staff),Comera Medical Training Ltd,Delivery of 1 day EFAW,2501641 ,425.00, 14/03/2019,425.00,510.00
51,600210,Adult Education,Learning and  Library,Strategic Development and Finance,31602,Air Travel,RBS Commercial Card Division,07-02-2019|6459|TRAVEL TEAM|ISLES OF SCILLY SS CO|TR21 0LJ|4411|FLIGHT 246510|IOS_NSTINSON,2507927 ,"18,805.89", 22/03/2019,113.06,"19,035.00"
51,600210,Adult Education,Learning and  Library,Strategic Development and Finance,31602,Air Travel,RBS Commercial Card Division,31-01-2019|6459|TRAVEL TEAM|ISLES OF SCILLY SS CO|TR21 0LJ|4411|FLIGHT 245214|IOS_NSTINSON,2507927 ,"18,805.89", 22/03/2019,152.00,"19,035.00"
51,600210,Adult Education,Learning and  Library,Strategic Development and Finance,31602,Air Travel,RBS Commercial Card Division,07-02-2019|6459|TRAVEL TEAM|ISLES OF SCILLY SS CO|TR21 0LJ|4411|FLIGHT 246511|IOS_NSTINSON,2507927 ,"18,805.89", 22/03/2019,169.10,"19,035.00"
51,600210,Adult Education,Learning and  Library,Strategic Development and Finance,41113,Curriculum Equipment,RBS Commercial Card Division,05-02-2019|7435|JOANNA EVANS|LAERDALMEDICAL|4002|5047||,2507927 ,"18,805.89", 22/03/2019,10.00,"19,035.00"
51,600210,Adult Education,Learning and  Library,Strategic Development and Finance,41113,Curriculum Equipment,RBS Commercial Card Division,06-02-2019|7435|JOANNA EVANS|AMZN MKTP UK MI44M1AZ4|L2338|5942||,2507927 ,"18,805.89", 22/03/2019,18.32,"19,035.00"
51,600210,Adult Education,Learning and  Library,Strategic Development and Finance,41301,Books and Publications,RBS Commercial Card Division,06-02-2019|7435|JOANNA EVANS|AMZN MKTP UK MI58B4A24|L2338|5942||,2507927 ,"18,805.89", 22/03/2019,2.79,"19,035.00"
51,600210,Adult Education,Learning and  Library,Strategic Development and Finance,41301,Books and Publications,RBS Commercial Card Division,07-02-2019|7435|JOANNA EVANS|AMZN MKTP UK MI2OI0074|L2338|5942||,2507927 ,"18,805.89", 22/03/2019,2.80,"19,035.00"
51,600210,Adult Education,Learning and  Library,Strategic Development and Finance,43532,Professional Fees - Other,RBS Commercial Card Division,27-02-2019|7435|JOANNA EVANS|WWW.CIM.CO.UK|SL6 9QH|8999||,2507927 ,"18,805.89", 22/03/2019,60.00,"19,035.00"
51,600210,Adult Education,Learning and  Library,Strategic Development and Finance,12301,Training,In Safe Hands Health & Safety Training & Consultancy Ltd,Manual Handling x 2 sessions on 16th April,2508148 ,595.00, 26/03/2019,595.00,714.00
51,600211,Library Services,Learning and  Library,Strategic Development and Finance,41113,Curriculum Equipment,RBS Commercial Card Division,30-11-2018|7435|JOANNA EVANS|BAKER ROSS|CM20 2ST|5970||IOS_NSTINSON,2450082 ,"10,070.35", 25/01/2019,28.22,"10,375.06"
51,600211,Library Services,Learning and  Library,Strategic Development and Finance,49002,Miscellaneous Expenditure,Cornwall Council,Library services,2472834 ,"9,596.68", 07/03/2019,"7,141.68","11,025.02"
51,600211,Library Services,Learning and  Library,Strategic Development and Finance,49002,Miscellaneous Expenditure,Cornwall Council,Library services,2472834 ,"9,596.68", 07/03/2019,"2,455.00","11,025.02"
51,600211,Library Services,Learning and  Library,Strategic Development and Finance,49002,Miscellaneous Expenditure,Cornwall Council,Library services,2472834 ,"9,596.68", 07/03/2019,"-9,596.68","11,025.02"
51,600211,Library Services,Learning and  Library,Strategic Development and Finance,49002,Miscellaneous Expenditure,Cornwall Council,Library services,2472834 ,"9,596.68", 07/03/2019,"9,596.68","11,025.02"
51,600211,Library Services,Learning and  Library,Strategic Development and Finance,43534,Licences,RBS Commercial Card Division,13-02-2019|7435|JOANNA EVANS|TVLICENSING.CO.UK|BS1 6AB|7392||,2507927 ,"18,805.89", 22/03/2019,150.50,"19,035.00"
51,600212,Customer Hub,Learning and  Library,Strategic Development and Finance,45301,Postage/Franking Charges,Francotyp-Postalia Ltd,Line No 496 20417548,2473269 ,500.00, 15/02/2019,500.00,500.00
51,600212,Customer Hub,Learning and  Library,Strategic Development and Finance,31602,Air Travel,RBS Commercial Card Division,08-01-2019|6459|TRAVEL TEAM|ISLES OF SCILLY SS CO|TR21 0LJ|4411|FLIGHT 239296|IOS_NSTINSON,2478449 ,"18,207.67", 22/02/2019,113.06,"19,082.78"
51,600212,Customer Hub,Learning and  Library,Strategic Development and Finance,31602,Air Travel,RBS Commercial Card Division,28-01-2019|6459|TRAVEL TEAM|ISLES OF SCILLY SS CO|TR21 0LJ|4411|FLIGHT 244656|IOS_NSTINSON,2507927 ,"18,805.89", 22/03/2019,113.06,"19,035.00"
51,600212,Customer Hub,Learning and  Library,Strategic Development and Finance,41102,Equipment Rental,Francotyp-Postalia Ltd,Line 503,2505628 ,865.93, 22/03/2019,865.93,"1,039.12"
51,600220,IFCA,Inshore Fisheries and Conservation Authoirutues,Strategic Development and Finance,12301,Training,Northumberland IFCA,IFCA training for Tom Hooper & Ricky Pender,2436947 ,"1,700.00", 10/01/2019,"1,700.00","1,700.00"
51,600220,IFCA,Inshore Fisheries and Conservation Authoirutues,Strategic Development and Finance,43506,Professional Fees - Legal,Howell Hylton Solicitors,Legal costs for the IFCA Case 3rd & 4th Dec 18,2436930 ,"5,942.50", 10/01/2019,"5,942.50","7,131.00"
51,600220,IFCA,Inshore Fisheries and Conservation Authoirutues,Strategic Development and Finance,41104,Equipment & Plant - Direct Purchase,Succorfish Ltd,"Supply of SC2 type approval iVMS device plus cable (24 month warranty), Power regulator, GSM/GPRS on 10 mins reporting - 12 month airtime & delivery",2443531 ,950.00, 15/01/2019,950.00,"1,140.00"
51,600220,IFCA,Inshore Fisheries and Conservation Authoirutues,Strategic Development and Finance,43506,Professional Fees - Legal,Colleton Chambers,IOS IFCA v Richard Carroll & Rowse Fishing Ltd,2442315 ,"2,466.90", 15/01/2019,"2,466.90","2,466.90"
51,600220,IFCA,Inshore Fisheries and Conservation Authoirutues,Strategic Development and Finance,31602,Air Travel,RBS Commercial Card Division,12-12-2018|6459|TRAVEL TEAM|ISLES OF SCILLY SS CO|TR21 0LJ|4411|RETURN TRAVEL FOR RICKY PENDER - 236905|IOS_NSTINSON,2450082 ,"10,070.35", 25/01/2019,141.31,"10,375.06"
51,600220,IFCA,Inshore Fisheries and Conservation Authoirutues,Strategic Development and Finance,31602,Air Travel,RBS Commercial Card Division,03-01-2019|6459|TRAVEL TEAM|ISLES OF SCILLY SS CO|TR21 0LJ|4411|RETURN FLIGHTS FOR RICKY PENDER - 239006|IOS_NSTINSON,2478449 ,"18,207.67", 22/02/2019,181.10,"19,082.78"
51,600220,IFCA,Inshore Fisheries and Conservation Authoirutues,Strategic Development and Finance,31602,Air Travel,RBS Commercial Card Division,07-01-2019|6459|TRAVEL TEAM|ISLES OF SCILLY SS CO|TR21 0LJ|4411|RETURN FLIGHTS FOR TOM HOOPER - 239751|IOS_NSTINSON,2478449 ,"18,207.67", 22/02/2019,164.00,"19,082.78"
51,600220,IFCA,Inshore Fisheries and Conservation Authoirutues,Strategic Development and Finance,31602,Air Travel,RBS Commercial Card Division,16-01-2019|6459|TRAVEL TEAM|ISLES OF SCILLY SS CO|TR21 0LJ|4411|RETURN FLIGHTS FOR TOM HOOPER - 242059|IOS_NSTINSON,2478449 ,"18,207.67", 22/02/2019,171.30,"19,082.78"
51,600230,Capital Development & Procurement Team,Capital Development and Procurement,Strategic Development and Finance,43532,Professional Fees - Other,Cornwall Council,Bloom Invoice re gasification feasibility Study by WYG,2459033 ,"13,025.00", 05/02/2019,"13,025.00","15,630.00"
51,600230,Capital Development & Procurement Team,Capital Development and Procurement,Strategic Development and Finance,43506,Professional Fees - Legal,Ashfords,IOS Smart Islands GOEV Delivery Partner Agreement Community Venture,2468530 ,"3,743.00", 28/02/2019,"3,743.00","4,491.60"
51,600230,Capital Development & Procurement Team,Capital Development and Procurement,Strategic Development and Finance,43506,Professional Fees - Legal,Ashfords,IOS Smart Islands GOEV Delivery Partner Agreement Community Venture,2468530 ,"3,743.00", 28/02/2019,"-374,300.00","4,491.60"
51,600230,Capital Development & Procurement Team,Capital Development and Procurement,Strategic Development and Finance,43506,Professional Fees - Legal,Ashfords,IOS Smart Islands GOEV Delivery Partner Agreement Community Venture,2468530 ,"3,743.00", 28/02/2019,"374,300.00","4,491.60"
51,600230,Capital Development & Procurement Team,Capital Development and Procurement,Strategic Development and Finance,43549,Research & Development,Cornwall Council,Cornwall Council Bloom invoice re gasification feasibility study by WYG Jan 2019,2483059 ,"19,525.00", 07/03/2019,"19,525.00","23,430.00"
51,600230,Capital Development & Procurement Team,Capital Development and Procurement,Strategic Development and Finance,43506,Professional Fees - Legal,Cornwall Council,Legal Fees for Smart Islands Project,2479680 ,"3,292.80", 19/03/2019,115.20,"3,951.36"
51,600230,Capital Development & Procurement Team,Capital Development and Procurement,Strategic Development and Finance,43532,Professional Fees - Other,Cornwall Council,Loan agreement in relation to the IOS Community Venture CIC,2479680 ,"3,292.80", 19/03/2019,"1,238.40","3,951.36"
51,600240,Social Housing,Housing Rented Property and Homelessness,Strategic Development and Finance,41302,Materials,Jewson Ltd,Various materials for 3 Ennor House,2410182 ,"2,783.92", 10/01/2019,"2,783.92","3,340.71"
51,600240,Social Housing,Housing Rented Property and Homelessness,Strategic Development and Finance,22501,Rent,Sibleys Island Homes,LINE 379 SIBLEYS ISLAND HOME LINE 379,2437840 ,550.00, 11/01/2019,550.00,550.00
51,600240,Social Housing,Housing Rented Property and Homelessness,Strategic Development and Finance,22501,Rent,One Off Payments,LINE 377 AUTISM WEST MIDLANDS,2437823 ,"6,691.40", 11/01/2019,"6,691.40","6,691.40"
51,600240,Social Housing,Housing Rented Property and Homelessness,Strategic Development and Finance,43506,Professional Fees - Legal,Cornwall Council,Legal fees for Case 053328 - RTB 15 Garrison Lane - to replace PO SD11324,2439171 ,"1,638.00", 15/01/2019,688.00,"1,828.00"
51,600240,Social Housing,Housing Rented Property and Homelessness,Strategic Development and Finance,43506,Professional Fees - Legal,Cornwall Council,Legal fees for Case 053328 - RTB 15 Garrison Lane - to replace PO SD11324,2439171 ,"1,638.00", 15/01/2019,"1,638.00","1,828.00"
51,600240,Social Housing,Housing Rented Property and Homelessness,Strategic Development and Finance,43506,Professional Fees - Legal,Cornwall Council,Legal fees for Case 053328 - RTB 15 Garrison Lane - to replace PO SD11324,2439171 ,"1,638.00", 15/01/2019,950.00,"1,828.00"
51,600240,Social Housing,Housing Rented Property and Homelessness,Strategic Development and Finance,43506,Professional Fees - Legal,Cornwall Council,Legal fees for Case 053328 - RTB 15 Garrison Lane - to replace PO SD11324,2439171 ,"1,638.00", 15/01/2019,"-1,638.00","1,828.00"
51,600240,Social Housing,Housing Rented Property and Homelessness,Strategic Development and Finance,73902,Bathroom Works  [CHL],Screwfix Direct Ltd,Plumbing items for 3 Ennor House,2435009 ,522.97, 22/01/2019,522.97,627.50
51,600240,Social Housing,Housing Rented Property and Homelessness,Strategic Development and Finance,31601,Rail,RBS Commercial Card Division,21-12-2018|7468|MICHAEL COATES|GWR WEBSALES|SN1 1HL|4112||IOS_NSTINSON,2450082 ,"10,070.35", 25/01/2019,156.10,"10,375.06"
51,600240,Social Housing,Housing Rented Property and Homelessness,Strategic Development and Finance,46103,Hotel Expenses,RBS Commercial Card Division,03-12-2018|7468|MICHAEL COATES|PREMIER INN|N1 9AA|3811||IOS_NSTINSON,2450082 ,"10,070.35", 25/01/2019,157.50,"10,375.06"
51,600240,Social Housing,Housing Rented Property and Homelessness,Strategic Development and Finance,46103,Hotel Expenses,RBS Commercial Card Division,21-12-2018|7468|MICHAEL COATES|PREMIER INN|N1 9AA|3811||IOS_NSTINSON,2450082 ,"10,070.35", 25/01/2019,261.00,"10,375.06"
51,600240,Social Housing,Housing Rented Property and Homelessness,Strategic Development and Finance,41104,Equipment & Plant - Direct Purchase,Mad Supplies ltd,1 Levpano 2 Pro Plasterboard Lifter - Horizontal & Angle Panel Fixing Device,2453976 ,654.12, 29/01/2019,654.12,784.94
51,600240,Social Housing,Housing Rented Property and Homelessness,Strategic Development and Finance,22501,Rent,Sibleys Island Homes,line 456,2458316 ,550.00, 01/02/2019,550.00,550.00
51,600240,Social Housing,Housing Rented Property and Homelessness,Strategic Development and Finance,41302,Materials,Longrock Window Company Ltd,"Double glazed door unit, for housing @ 2, Rookery Flats.",2459025 ,560.00, 05/02/2019,560.00,672.00
51,600240,Social Housing,Housing Rented Property and Homelessness,Strategic Development and Finance,25001,Fixtures and Fittings (attached to building only),RBS Commercial Card Division,03-01-2019|7468|MICHAEL COATES|AMZN MKTP UK MB86634T4|L2338|5942||IOS_NSTINSON,2478449 ,"18,207.67", 22/02/2019,58.44,"19,082.78"
51,600240,Social Housing,Housing Rented Property and Homelessness,Strategic Development and Finance,89101,Investigative Works,RBS Commercial Card Division,17-01-2019|7468|MICHAEL COATES|PUBLIC HEALTH ENGLAND|SE1 8UG|8099|RADON MONITORING EQUIPMENT|IOS_NSTINSON,2478449 ,"18,207.67", 22/02/2019,501.60,"19,082.78"
51,600240,Social Housing,Housing Rented Property and Homelessness,Strategic Development and Finance,41302,Materials,Jewson Ltd,"Fencing materials for housing properties,(8, Parsons fd & 8, Branksea Cl.)",2480772 ,984.01, 07/03/2019,984.01,"1,180.81"
51,600240,Social Housing,Housing Rented Property and Homelessness,Strategic Development and Finance,22501,Rent,Sibleys Island Homes,LINE 520,2490524 ,550.00, 08/03/2019,550.00,550.00
51,600240,Social Housing,Housing Rented Property and Homelessness,Strategic Development and Finance,21112,R&M - Voids (Non Rechargeable) - Planned,P C Green,2 Trinity: Fixtures and Fittings provided for proerty,2499598 ,"1,470.00", 14/03/2019,"1,470.00","1,470.00"
51,600240,Social Housing,Housing Rented Property and Homelessness,Strategic Development and Finance,21210,R&M - Electrical - Reactive,Davey & Gilbert Ltd,Rewire of 10 Ennor Flats,2494401 ,"4,593.00", 14/03/2019,"4,593.00","5,511.60"
51,600240,Social Housing,Housing Rented Property and Homelessness,Strategic Development and Finance,21201,R&M - Buildings - Reactive,F&K Electrical & Refrigeration Ltd,ASHP: repairs and maintenance at flat 3 Gleaner House,2503357 ,"1,517.46", 19/03/2019,"1,517.46","1,820.95"
51,600240,Social Housing,Housing Rented Property and Homelessness,Strategic Development and Finance,43506,Professional Fees - Legal,Cornwall Council,Legal assistance with SEI assets on social properties.,2479680 ,"3,292.80", 19/03/2019,364.80,"3,951.36"
51,600240,Social Housing,Housing Rented Property and Homelessness,Strategic Development and Finance,22501,Rent,One Off Payments,Line 577 Sibleys Island,2505663 ,550.00, 22/03/2019,550.00,550.00
51,600240,Social Housing,Housing Rented Property and Homelessness,Strategic Development and Finance,31601,Rail,RBS Commercial Card Division,11-02-2019|7468|MICHAEL COATES|HTTP://WWW.ARRIVAT|LD1 5BB|4112|RAIL FARE|,2507927 ,"18,805.89", 22/03/2019,211.45,"19,035.00"
51,600240,Social Housing,Housing Rented Property and Homelessness,Strategic Development and Finance,46103,Hotel Expenses,RBS Commercial Card Division,22-02-2019|7468|MICHAEL COATES|RESIDENCE SOUTH KENSI|SW7 4PL|7011|HOTEL|,2507927 ,"18,805.89", 22/03/2019,286.40,"19,035.00"
51,600241,Private Housing,Housing Rented Property and Homelessness,Strategic Development and Finance,43506,Professional Fees - Legal,Cornwall Council,"Replacement PO for SD11346, SD11324, SD11245 & SD11296 for Legal Fees for Housing",2460364 ,451.20, 05/02/2019,124.80,541.44
51,600241,Private Housing,Housing Rented Property and Homelessness,Strategic Development and Finance,31602,Air Travel,RBS Commercial Card Division,03-01-2019|6459|TRAVEL TEAM|ISLES OF SCILLY SS CO|TR21 0LJ|4411|FLIGHT REFUND - 229711|IOS_NSTINSON,2478449 ,"18,207.67", 22/02/2019,-152.00,"19,082.78"
51,600241,Private Housing,Housing Rented Property and Homelessness,Strategic Development and Finance,31602,Air Travel,RBS Commercial Card Division,04-01-2019|6459|TRAVEL TEAM|ISLES OF SCILLY SS CO|TR21 0LJ|4411|FLIGHT 229713|IOS_NSTINSON,2478449 ,"18,207.67", 22/02/2019,113.06,"19,082.78"
51,600242,Housing Staffing,Housing Rented Property and Homelessness,Strategic Development and Finance,22501,Rent,Mrs Patricia Wales,RENT FOR 8 LITTLE PORTH,2430995 ,700.00, 03/01/2019,700.00,700.00
51,600242,Housing Staffing,Housing Rented Property and Homelessness,Strategic Development and Finance,31602,Air Travel,RBS Commercial Card Division,30-11-2018|6459|TRAVEL TEAM|ISLES OF SCILLY SS CO|TR21 0LJ|4411|RETURN FLIGHTS FOR RACHEL GUY - 235636|IOS_NSTINSON,2450082 ,"10,070.35", 25/01/2019,161.50,"10,375.06"
51,600242,Housing Staffing,Housing Rented Property and Homelessness,Strategic Development and Finance,31602,Air Travel,RBS Commercial Card Division,04-12-2018|6459|TRAVEL TEAM|MANNINGS HOTEL|TR1 2QB|7011|B & B FOR RACHEL GUY|IOS_NSTINSON,2450082 ,"10,070.35", 25/01/2019,90.00,"10,375.06"
51,600242,Housing Staffing,Housing Rented Property and Homelessness,Strategic Development and Finance,31602,Air Travel,RBS Commercial Card Division,05-12-2018|6459|TRAVEL TEAM|PREMIER INN|TR27 4PN|3811|B & B FOR RACHEL GUY AS NO FLYING|IOS_NSTINSON,2450082 ,"10,070.35", 25/01/2019,79.00,"10,375.06"
51,600242,Housing Staffing,Housing Rented Property and Homelessness,Strategic Development and Finance,31602,Air Travel,RBS Commercial Card Division,21-12-2018|6459|TRAVEL TEAM|ISLES OF SCILLY SS CO|TR21 0LJ|4411|RETURN FLIGHTS FOR RACHEL GUY -|IOS_NSTINSON,2450082 ,"10,070.35", 25/01/2019,156.75,"10,375.06"
51,600242,Housing Staffing,Housing Rented Property and Homelessness,Strategic Development and Finance,49002,Miscellaneous Expenditure,Scilly Hols Ltd,"Cleaning of communal entrances - Longras, Parade Flats, Ennor House and 29 Sallyport",2458922 ,962.50, 14/02/2019,962.50,"1,155.00"
51,600242,Housing Staffing,Housing Rented Property and Homelessness,Strategic Development and Finance,31503,Taxi and Minibus,RBS Commercial Card Division,03-01-2019|6459|TRAVEL TEAM|ISLES OF SCILLY SS CO|TR21 0LJ|4411|BUS TRANSPORT FOR RACHEL GUY - 237659|IOS_NSTINSON,2478449 ,"18,207.67", 22/02/2019,12.00,"19,082.78"
51,600242,Housing Staffing,Housing Rented Property and Homelessness,Strategic Development and Finance,22501,Rent,Scillonian Holdings Ltd,Private Rental: Rear flat Cornerhouse,2483045 ,550.00, 05/03/2019,550.00,550.00
51,600242,Housing Staffing,Housing Rented Property and Homelessness,Strategic Development and Finance,22501,Rent,Mrs Patricia Wales,RENT FOR 8 LITTLEPORTH,2501832 ,700.00, 19/03/2019,700.00,700.00
51,600242,Housing Staffing,Housing Rented Property and Homelessness,Strategic Development and Finance,49002,Miscellaneous Expenditure,Cornwall Council,Legal assistance with a party wall agreement for 33 Ennor Close,2479680 ,"3,292.80", 19/03/2019,105.60,"3,951.36"
51,600242,Housing Staffing,Housing Rented Property and Homelessness,Strategic Development and Finance,31602,Air Travel,RBS Commercial Card Division,13-02-2019|6459|TRAVEL TEAM|ISLES OF SCILLY SS CO|TR21 0LJ|4411|FLIGHT HOUSING|IOS_NSTINSON,2507927 ,"18,805.89", 22/03/2019,169.10,"19,035.00"
51,600242,Housing Staffing,Housing Rented Property and Homelessness,Strategic Development and Finance,31602,Air Travel,RBS Commercial Card Division,13-02-2019|6459|TRAVEL TEAM|ISLES OF SCILLY SS CO|TR21 0LJ|4411|FLIGHT HOUSING|IOS_NSTINSON,2507927 ,"18,805.89", 22/03/2019,169.10,"19,035.00"
